Invoice Date,Transaction Number,Invoice Number,Amount,Supplier Name(T),Supplier Name,VAT Registration Number,Expense Area(T),Expense Code,Expense Code(T)
05/01/2023,3765296,Redacted Personal Data,106.85,Redacted Personal Data,RC502418,,Care Leavers,R4900,Accommodation Costs
05/01/2023,3765297,Redacted Personal Data,100,Redacted Personal Data,RC500229,,Care Leavers,R4900,Accommodation Costs
05/01/2023,3765298,Redacted Personal Data,103.65,Redacted Personal Data,RC500229,,Care Leavers,R4900,Accommodation Costs
05/01/2023,3765299,Redacted Personal Data,100,Redacted Personal Data,RC507010,,Care Leavers,R4900,Accommodation Costs
05/01/2023,3765300,Redacted Personal Data,103.65,Redacted Personal Data,RC507010,,Care Leavers,R4900,Accommodation Costs
05/01/2023,3765301,Redacted Personal Data,100,Redacted Personal Data,RC301144,,Care Leavers,R4900,Accommodation Costs
05/01/2023,3765302,Redacted Personal Data,103.65,Redacted Personal Data,RC301144,,Care Leavers,R4900,Accommodation Costs
05/01/2023,3765303,Redacted Personal Data,203.56,Redacted Personal Data,RC301349,,Care Leavers,R4900,Accommodation Costs
05/01/2023,3765304,Redacted Personal Data,203.56,Redacted Personal Data,RC301349,,Care Leavers,R4900,Accommodation Costs
05/01/2023,3765305,Redacted Personal Data,137.31,Redacted Personal Data,RC302049,,Care Leavers,R4900,Accommodation Costs
05/01/2023,3765306,Redacted Personal Data,61.22,Redacted Personal Data,RC301656,,Care Leavers,R6292,Section 24 Payments
05/01/2023,3765307,Redacted Personal Data,61.22,Redacted Personal Data,RC301917,,Care Leavers,R6292,Section 24 Payments
05/01/2023,3765308,Redacted Personal Data,61.22,Redacted Personal Data,RC302269,,Care Leavers,R6292,Section 24 Payments
05/01/2023,3765309,Redacted Personal Data,64,Redacted Personal Data,RC508568,,Care Leavers,R6292,Section 24 Payments
05/01/2023,3765310,Redacted Personal Data,50,Redacted Personal Data,RC301475,,Care Leavers,R6292,Section 24 Payments
05/01/2023,3765311,Redacted Personal Data,284,Redacted Personal Data,RC508778,,Placements,R5017,TPP - Other
05/01/2023,3765312,Redacted Personal Data,188,Redacted Personal Data,RC506075,,Placements,R5017,TPP - Other
05/01/2023,3765313,Redacted Personal Data,284,Redacted Personal Data,RC506286,,Placements,R5017,TPP - Other
05/01/2023,3765314,Redacted Personal Data,188,Redacted Personal Data,RC300814,,Placements,R5017,TPP - Other
05/01/2023,3765315,Redacted Personal Data,284,Redacted Personal Data,RC301960,,Placements,R5017,TPP - Other
05/01/2023,3765316,Redacted Personal Data,284,Redacted Personal Data,RC301144,,Placements,R5017,TPP - Other
05/01/2023,3765317,Redacted Personal Data,284,Redacted Personal Data,RC507222,,Placements,R5017,TPP - Other
05/01/2023,3765318,Redacted Personal Data,188,Redacted Personal Data,RC301040,,Placements,R5017,TPP - Other
05/01/2023,3765319,Redacted Personal Data,188,Redacted Personal Data,RC301040,,Placements,R5017,TPP - Other
05/01/2023,3765320,Redacted Personal Data,284,Redacted Personal Data,RC301893,,Placements,R5017,TPP - Other
05/01/2023,3765321,Redacted Personal Data,143.95,Redacted Personal Data,RC301658,,Placements,R5017,TPP - Other
05/01/2023,3765322,Redacted Personal Data,188,Redacted Personal Data,RC302008,,Placements,R5017,TPP - Other
05/01/2023,3765323,Redacted Personal Data,188,Redacted Personal Data,RC302008,,Placements,R5017,TPP - Other
05/01/2023,3765324,Redacted Personal Data,165,Redacted Personal Data,RC302283,,Placements,R5017,TPP - Other
05/01/2023,3765325,Redacted Personal Data,188,Redacted Personal Data,RC302290,,Placements,R5017,TPP - Other
05/01/2023,3765326,Redacted Personal Data,165,Redacted Personal Data,RC302290,,Placements,R5017,TPP - Other
05/01/2023,3765327,Redacted Personal Data,249,Redacted Personal Data,RC508778,,Placements,R5017,TPP - Other
05/01/2023,3765328,Redacted Personal Data,249,Redacted Personal Data,RC506075,,Placements,R5017,TPP - Other
05/01/2023,3765329,Redacted Personal Data,249,Redacted Personal Data,RC506286,,Placements,R5017,TPP - Other
05/01/2023,3765330,Redacted Personal Data,249,Redacted Personal Data,RC300814,,Placements,R5017,TPP - Other
05/01/2023,3765331,Redacted Personal Data,197,Redacted Personal Data,RC301960,,Placements,R5017,TPP - Other
05/01/2023,3765332,Redacted Personal Data,249,Redacted Personal Data,RC301144,,Placements,R5017,TPP - Other
05/01/2023,3765333,Redacted Personal Data,249,Redacted Personal Data,RC507222,,Placements,R5017,TPP - Other
05/01/2023,3765334,Redacted Personal Data,142,Redacted Personal Data,RC301040,,Placements,R5017,TPP - Other
05/01/2023,3765335,Redacted Personal Data,107,Redacted Personal Data,RC301040,,Placements,R5017,TPP - Other
05/01/2023,3765336,Redacted Personal Data,197,Redacted Personal Data,RC507547,,Placements,R5017,TPP - Other
05/01/2023,3765337,Redacted Personal Data,142,Redacted Personal Data,RC302008,,Placements,R5017,TPP - Other
05/01/2023,3765338,Redacted Personal Data,107,Redacted Personal Data,RC302008,,Placements,R5017,TPP - Other
05/01/2023,3765339,Redacted Personal Data,710,Redacted Personal Data,RC302283,,Placements,R5017,TPP - Other
05/01/2023,3765340,Redacted Personal Data,163,Redacted Personal Data,RC508167,,Placements,R5017,TPP - Other
05/01/2023,3765341,Redacted Personal Data,167.4,Redacted Personal Data,RC507009,,Placements,R5017,TPP - Other
05/01/2023,3765342,Redacted Personal Data,168.13,Redacted Personal Data,RC507009,,Placements,R5017,TPP - Other
05/01/2023,3765343,Redacted Personal Data,139.85,Redacted Personal Data,RC503878,,Placements,R5017,TPP - Other
05/01/2023,3765344,Redacted Personal Data,404.59,Redacted Personal Data,RC508604,,Placements,R5017,TPP - Other
05/01/2023,3765345,Redacted Personal Data,120,Redacted Personal Data,RC507391,,Placements,R5017,TPP - Other
05/01/2023,3765346,Redacted Personal Data,124,Redacted Personal Data,RC300006,,Placements,R5017,TPP - Other
05/01/2023,3765347,Redacted Personal Data,206,Redacted Personal Data,RC502500,,Placements,R5017,TPP - Other
05/01/2023,3765348,Redacted Personal Data,249,Redacted Personal Data,RC502500,,Placements,R5017,TPP - Other
05/01/2023,3765349,Redacted Personal Data,130.77,Redacted Personal Data,RC507903,,Placements,R5017,TPP - Other
05/01/2023,3765350,Redacted Personal Data,121.08,Redacted Personal Data,RC508044,,Placements,R5017,TPP - Other
05/01/2023,3765351,Redacted Personal Data,295.62,Redacted Personal Data,RC300308,,Placements,R5017,TPP - Other
05/01/2023,3765352,Redacted Personal Data,163,Redacted Personal Data,RC506313,,Placements,R5017,TPP - Other
05/01/2023,3765353,Redacted Personal Data,289.74,Redacted Personal Data,RC301477,,Placements,R5017,TPP - Other
05/01/2023,3765354,Redacted Personal Data,249,Redacted Personal Data,RC505729,,Placements,R5017,TPP - Other
05/01/2023,3765355,Redacted Personal Data,249,Redacted Personal Data,RC505729,,Placements,R5017,TPP - Other
05/01/2023,3765356,Redacted Personal Data,289.7,Redacted Personal Data,RC301689,,Placements,R5017,TPP - Other
05/01/2023,3765357,Redacted Personal Data,145,Redacted Personal Data,RC301485,,Placements,R5017,TPP - Other
05/01/2023,3765358,Redacted Personal Data,5,Redacted Personal Data,RC302190,,UASC 16-17,R6292,Section 24 Payments
05/01/2023,3765359,Redacted Personal Data,61.22,Redacted Personal Data,RC302190,,UASC 16-17,R6293,Asylum Seekers Allowance
05/01/2023,3765360,Redacted Personal Data,11.99,Redacted Personal Data,RC300975,,Unaccompanied Asylum Seekers - Over 18,R6292,Section 24 Payments
05/01/2023,3765361,Redacted Personal Data,5,Redacted Personal Data,RC301476,,Unaccompanied Asylum Seekers - Over 18,R6292,Section 24 Payments
05/01/2023,3765362,Redacted Personal Data,45,Redacted Personal Data,RC301960,,Placements,R6291,Section 23 Payments
05/01/2023,3765363,Redacted Personal Data,45,Redacted Personal Data,RC506075,,Placements,R6291,Section 23 Payments
05/01/2023,3765364,Redacted Personal Data,45,Redacted Personal Data,RC506286,,Placements,R6291,Section 23 Payments
05/01/2023,3765365,Redacted Personal Data,"1,125.00",Redacted Personal Data,RC301728,,Placements,R4400,Professional Fees
05/01/2023,3765374,Dec 2022Apprenticeship Levy GL,"6,053.00",HM Revenue & Customs,RC502557,,External Levies,R5013,TPP - Government Departments
05/01/2023,3765385,Dec 2022Charitable Giving Admin Fee,0.69,Charitable Giving Client,RC505683,,Corporate Financial Expenses,R4401,Fees and Charges
05/01/2023,3765389,Dec 2022Apprenticeship Levy Rebate,"-1,250.00",HM Revenue & Customs,RC502557,,External Levies,R5013,TPP - Government Departments
05/01/2023,3765392,Redacted Personal Data,80,Redacted Personal Data,RC300802,,Household Support Fund,R5017,TPP - Other
12/01/2023,3765393,January 2023 dripfeed - High Needs Block Allocation,"1,040.96",Brooke Hill Academy Trust Ltd,RC501837,,SEN Funding Maintained Schools and Academies,R6300,Schools - Budget Share
12/01/2023,3765394,Cottesmore January 2023 dripfeed - High Needs Block Allocation,990.95,The Rutland Learning Trust,RC300895,,SEN Funding Maintained Schools and Academies,R6300,Schools - Budget Share
12/01/2023,3765395,January 2023 dripfeed - LAC Pupil Premium,650,The Rutland Learning Trust,RC300895,,Pupil Premium Plus,R6300,Schools - Budget Share
12/01/2023,3765396,January 2023 dripfeed - High Needs Block Allocation,"1,967.78",St Thomas Aquinas Catholic Multi Academy Trust T/A English Martyrs Catholic Voluntary Academy,RC507715,,SEN Funding Maintained Schools and Academies,R6300,Schools - Budget Share
12/01/2023,3765397,Empingham January 2023 - High Needs Block Allocation,769.27,The Rutland Learning Trust,RC300895,,SEN Funding Maintained Schools and Academies,R6300,Schools - Budget Share
12/01/2023,3765399,January 2023 dripfeed - High Needs Block Allocation,"9,722.15",Edith Weston Academy,RC509059,,SEN Funding Maintained Schools and Academies,R6300,Schools - Budget Share
12/01/2023,3765400,January 2023 dripfeed - Homes for Ukraine,"6,580.00",Edith Weston Academy,RC509059,,Homes for Ukraine,R5022,TPP - Schools & Colleges
12/01/2023,3765401,Exton January 2023 - High Needs Block Allocation,"1,266.94",The Rutland Learning Trust,RC300895,,SEN Funding Maintained Schools and Academies,R6300,Schools - Budget Share
12/01/2023,3765402,Exton January 2023 - Homes 4 Ukraine,"1,645.00",The Rutland Learning Trust,RC300895,,Homes for Ukraine,R5022,TPP - Schools & Colleges
12/01/2023,3765403,Gt Cast January 2023 dripfeed - High Needs Block Allocation,"2,103.94",The Rutland Learning Trust,RC300895,,SEN Funding Maintained Schools and Academies,R6300,Schools - Budget Share
12/01/2023,3765405,Ketton January 2023 - High Needs Block allocation,565.73,The Rutland Learning Trust,RC300895,,SEN Funding Maintained Schools and Academies,R6300,Schools - Budget Share
12/01/2023,3765406,Langham January 2023 - High Needs Block Allocation,"2,936.54",The Rutland Learning Trust,RC300895,,SEN Funding Maintained Schools and Academies,R6300,Schools - Budget Share
12/01/2023,3765407,Langham January 2023 - Homes 4 Ukraine,"6,580.00",The Rutland Learning Trust,RC300895,,Homes for Ukraine,R5022,TPP - Schools & Colleges
12/01/2023,3765408,January 2023 dripfeed - High Needs Block Allocation,"1,063.62",Leighfield Academy,RC507697,,SEN Funding Maintained Schools and Academies,R6300,Schools - Budget Share
12/01/2023,3765409,January 2023 dripfeed - Homes 4 Ukraine,"11,515.00",Leighfield Academy,RC507697,,Homes for Ukraine,R5022,TPP - Schools & Colleges
12/01/2023,3765410,January 2023 dripfeed - High Needs Block Allocation,"2,872.18",North Luffenham C Of E Primary School,RC500422,,SEN Funding Maintained Schools and Academies,R6300,Schools - Budget Share
12/01/2023,3765411,January 2023 dripfeed - Forces Pupil Premium,746.67,North Luffenham C Of E Primary School,RC500422,,Pupil Premium,R6300,Schools - Budget Share
12/01/2023,3765412,January 2023 dripfeed - Disadvantaged Pupil Premium,"1,500.41",North Luffenham C Of E Primary School,RC500422,,Pupil Premium,R6300,Schools - Budget Share
12/01/2023,3765413,January 2023 dripfeed - Post LAC Pupil Premium,602.5,North Luffenham C Of E Primary School,RC500422,,Pupil Premium,R6300,Schools - Budget Share
12/01/2023,3765414,January 2023 dripfeed - Schools Block Allocation,"64,084.10",North Luffenham C Of E Primary School,RC500422,,DSG,R6300,Schools - Budget Share
12/01/2023,3765415,January 2023 dripfeed - Recovery Premium,"1,088.00",North Luffenham C Of E Primary School,RC500422,,Pupil Premium,R5022,TPP - Schools & Colleges
12/01/2023,3765416,January 2023 dripfeed - School Led Tutoring,"3,348.00",North Luffenham C Of E Primary School,RC500422,,Pupil Premium,R5022,TPP - Schools & Colleges
12/01/2023,3765417,January 2023 dripfeed - NCT RB 21/22,"1,576.10",North Luffenham C Of E Primary School,RC500422,,Pupil Premium,R5022,TPP - Schools & Colleges
12/01/2023,3765418,January 2023 dripfeed - PE & Sport Grant,"7,308.00",North Luffenham C Of E Primary School,RC500422,,Pupil Premium,R5022,TPP - Schools & Colleges
12/01/2023,3765419,January 2023 dripfeed - School Supplementary Grant,"13,242.00",North Luffenham C Of E Primary School,RC500422,,Pupil Premium,R5022,TPP - Schools & Colleges
12/01/2023,3765420,January 2023 dripfeed - PE and Sport Grant,"7,604.00",Oakham C Of E Primary School,RC500457,,Pupil Premium,R5022,TPP - Schools & Colleges
12/01/2023,3765421,January 2023 dripfeed - UIFSM,"4,898.00",Oakham C Of E Primary School,RC500457,,Pupil Premium,R5022,TPP - Schools & Colleges
12/01/2023,3765422,January 2023 dripfeed - Recovery Premium,"4,132.00",Oakham C Of E Primary School,RC500457,,Pupil Premium,R5022,TPP - Schools & Colleges
12/01/2023,3765423,January 2023 dripfeed - School Led Tutoring,"9,792.00",Oakham C Of E Primary School,RC500457,,Pupil Premium,R5022,TPP - Schools & Colleges
12/01/2023,3765424,January 2023 dripfeed - Schools Supplementary Grant,"33,175.00",Oakham C Of E Primary School,RC500457,,Pupil Premium,R5022,TPP - Schools & Colleges
12/01/2023,3765425,January 2023 dripfeed - Homes for Ukraine,"13,160.00",Oakham C Of E Primary School,RC500457,,Homes for Ukraine,R5022,TPP - Schools & Colleges
12/01/2023,3765426,January 2023 dripfeed - Schools Block Allocation,"92,301.29",Oakham C Of E Primary School,RC500457,,DSG,R6300,Schools - Budget Share
12/01/2023,3765427,January 2023 dripfeed - High Needs Statemented Pupils,"5,867.69",Oakham C Of E Primary School,RC500457,,SEN Funding Maintained Schools and Academies,R6300,Schools - Budget Share
12/01/2023,3765428,January 2023 dripfeed - In County Adjustment,"2,774.98",Oakham C Of E Primary School,RC500457,,SEN Funding Maintained Schools and Academies,R6300,Schools - Budget Share
12/01/2023,3765429,January 2023 dripfeed - High Needs Placement Funding,"11,666.00",Oakham C Of E Primary School,RC500457,,SEN Funding Maintained Schools and Academies,R6300,Schools - Budget Share
12/01/2023,3765430,January 2023 dripfeed - High Needs Additional Support,"18,857.98",Oakham C Of E Primary School,RC500457,,SEN Funding Maintained Schools and Academies,R6300,Schools - Budget Share
12/01/2023,3765431,January 2023 dripfeed - Forces Pupil Premium,626.67,Oakham C Of E Primary School,RC500457,,Pupil Premium,R6300,Schools - Budget Share
12/01/2023,3765432,January 2023 dripfeed - Disadvantaged Pupil Premium,"6,463.34",Oakham C Of E Primary School,RC500457,,Pupil Premium,R6300,Schools - Budget Share
12/01/2023,3765433,January 2023 dripfeed - Post LAC Pupil Premium,301.25,Oakham C Of E Primary School,RC500457,,Pupil Premium,R6300,Schools - Budget Share
12/01/2023,3765434,January 2023 dripfeed - LAC Pupil Premium,650,Oakham C Of E Primary School,RC500457,,Pupil Premium Plus,R6300,Schools - Budget Share
12/01/2023,3765435,January 2023 dripfeed - Devolved Formula Capital - Energy Efficiency,"15,637.00",Oakham C Of E Primary School,RC500457,,Capital Programme People - Adults,C1150,Capital Grant Expenditure
12/01/2023,3765437,Ryhall January 2023 - High Needs Block Allocation,820.5,Ryhall CE Academy,RC508475,,SEN Funding Maintained Schools and Academies,R6300,Schools - Budget Share
12/01/2023,3765438,January 2023 dripfeed - Homes 4 Ukraine,"8,225.00",Ryhall CE Academy,RC508475,,Homes for Ukraine,R5022,TPP - Schools & Colleges
12/01/2023,3765439,January 2023 dripfeed - Primary High Needs Block Allocation,"1,345.94",Rutland & District Schools' Federation (catmose),RC502547,,SEN Funding Maintained Schools and Academies,R6300,Schools - Budget Share
12/01/2023,3765440,January 2023 dripfeed - LAC Pupil Premium,650,Rutland & District Schools' Federation (catmose),RC502547,,Pupil Premium Plus,R6300,Schools - Budget Share
12/01/2023,3765441,St Nicholas January 2023 - High Needs Block Allocation,"2,407.16",The Rutland Learning Trust,RC300895,,SEN Funding Maintained Schools and Academies,R6300,Schools - Budget Share
12/01/2023,3765442,St Nicholas January 2023 - Homes 4 Ukraine,"6,580.00",The Rutland Learning Trust,RC300895,,Homes for Ukraine,R5022,TPP - Schools & Colleges
12/01/2023,3765443,Upp Primary January 2023 - High Needs Block Allocation,"1,763.95",The Rutland Learning Trust,RC300895,,SEN Funding Maintained Schools and Academies,R6300,Schools - Budget Share
12/01/2023,3765444,Upp Primary January 2023 - Homes 4 Ukraine,"18,095.00",The Rutland Learning Trust,RC300895,,Homes for Ukraine,R5022,TPP - Schools & Colleges
12/01/2023,3765445,Whissendine January 2023 - High Needs Block Allocation,"1,733.75",The Rutland Learning Trust,RC300895,,SEN Funding Maintained Schools and Academies,R6300,Schools - Budget Share
12/01/2023,3765446,Whissendine January 2023 - Homes 4 Ukraine,"8,225.00",The Rutland Learning Trust,RC300895,,Homes for Ukraine,R5022,TPP - Schools & Colleges
12/01/2023,3765447,January 2023 - High Needs Block Allocation,"2,069.86",Casterton College,RC502333,,SEN Funding Maintained Schools and Academies,R6300,Schools - Budget Share
12/01/2023,3765448,January 2023 - LAC PP,650,Casterton College,RC502333,,Pupil Premium Plus,R6300,Schools - Budget Share
12/01/2023,3765449,January 2023 - Homes 4 Ukraine,"63,475.00",Casterton College,RC502333,,Homes for Ukraine,R5022,TPP - Schools & Colleges
12/01/2023,3765450,January 2023 - High Needs Block allocation,"3,520.93",Uppingham Community College,RC501260,111 5329 57,SEN Funding Maintained Schools and Academies,R6300,Schools - Budget Share
12/01/2023,3765451,January 2023 - ERP,"8,975.71",Uppingham Community College,RC501260,111 5329 57,SEN Funding Maintained Schools and Academies,R6300,Schools - Budget Share
12/01/2023,3765452,January 2023 - Mainstream+ Funding Guarentee,"48,635.00",Uppingham Community College,RC501260,111 5329 57,SEN Funding Maintained Schools and Academies,R6300,Schools - Budget Share
12/01/2023,3765453,January 2023 - Mainstream+ Top Up Funding,"38,364.36",Uppingham Community College,RC501260,111 5329 57,SEN Funding Maintained Schools and Academies,R6300,Schools - Budget Share
12/01/2023,3765454,January 2023 - LAC PP,650,Uppingham Community College,RC501260,111 5329 57,Rutland Adult Skill Budget Post July 2014,R5022,TPP - Schools & Colleges
12/01/2023,3765455,January 2023 - Homes 4 Ukraine,"32,832.00",Uppingham Community College,RC501260,111 5329 57,Homes for Ukraine,R5022,TPP - Schools & Colleges
12/01/2023,3765456,January 2023 - Mainstream+ Phase 2 Capital,"120,221.22",Uppingham Community College,RC501260,111 5329 57,Capital Programme People � Childrens,C1150,Capital Grant Expenditure
12/01/2023,3765457,January 2023 - College High Needs Statemented Pupils,"-2,990.82",Rutland & District Schools' Federation (catmose),RC502547,,SEN Funding Maintained Schools and Academies,R6300,Schools - Budget Share
12/01/2023,3765458,January 2023 - College High Needs DSP,"18,320.30",Rutland & District Schools' Federation (catmose),RC502547,,SEN Funding Maintained Schools and Academies,R6300,Schools - Budget Share
12/01/2023,3765459,January 2023 - HNF App NB,"13,937.07",Rutland & District Schools' Federation (catmose),RC502547,,Education Otherwise,R6300,Schools - Budget Share
12/01/2023,3765460,January 2023 - LAC PP,250,Rutland & District Schools' Federation (catmose),RC502547,,Rutland Adult Skill Budget Post July 2014,R5022,TPP - Schools & Colleges
12/01/2023,3765461,January 2023 - Homes 4 Ukraine,"30,644.00",Rutland & District Schools' Federation (catmose),RC502547,,Homes for Ukraine,R5022,TPP - Schools & Colleges
12/01/2023,3765462,January 2023 dripfeed - Placement Funding,"6,250.00",The Parks Nursery School,RC501123,,SEN Funding Maintained Schools and Academies,R6300,Schools - Budget Share
12/01/2023,3765463,January 2023 dripfeed - High Needs Additional Support,"16,283.98",The Parks Nursery School,RC501123,,SEN Funding Maintained Schools and Academies,R6300,Schools - Budget Share
12/01/2023,3765464,January 2023 dripfeed - Disadvantaged Pupil Premium,230.83,The Parks Nursery School,RC501123,,Pupil Premium,R6300,Schools - Budget Share
12/01/2023,3765465,January 2023 dripfeed - Devolved Formula Capital - Energy Efficiency,"10,596.00",The Parks Nursery School,RC501123,,Capital Programme People - Adults,C1150,Capital Grant Expenditure
12/01/2023,3765467,January 2023 dripfeed - UIFSM,321,The Parks Nursery School,RC501123,,Pupil Premium,R5022,TPP - Schools & Colleges
12/01/2023,3765468,January 2023 dripfeed - PE and Sport Grant,417,The Parks Nursery School,RC501123,,Pupil Premium,R5022,TPP - Schools & Colleges
12/01/2023,3765469,2 Year Funding -January 2023 Claim and December 2022 Adjustment,"1,898.26",The Ark Association (1),RC501043,,2 Year Old Nursery Funding,R5020,TPP - Nursery Provision
12/01/2023,3765470,2 Year Funding -January 2023 Claim and December 2022 Adjustment,842.19,The Ark Association (Early Yrs) 2,RC501044,,2 Year Old Nursery Funding,R5020,TPP - Nursery Provision
12/01/2023,3765471,2 Year Funding -January 2023 Claim and December 2022 Adjustment,701.82,Belton Pre-School,RC500093,,2 Year Old Nursery Funding,R5020,TPP - Nursery Provision
12/01/2023,3765472,2 Year Funding -January 2023 Claim and December 2022 Adjustment,701.82,Bright Sparks Pre-School,RC501571,,2 Year Old Nursery Funding,R5020,TPP - Nursery Provision
12/01/2023,3765473,2 Year Funding -January 2023 Claim and December 2022 Adjustment,"1,846.79",Casterton Nursery,RC500449,,2 Year Old Nursery Funding,R5020,TPP - Nursery Provision
12/01/2023,3765474,2 Year Funding -January 2023 Claim and December 2022 Adjustment,350.91,Little Ospreys,RC501514,,2 Year Old Nursery Funding,R5020,TPP - Nursery Provision
12/01/2023,3765475,2 Year Funding -January 2023 Claim and December 2022 Adjustment,257.33,Langham Nursery,RC501101,,2 Year Old Nursery Funding,R5020,TPP - Nursery Provision
12/01/2023,3765476,2 Year Funding -January 2023 Claim and December 2022 Adjustment,"1,448.87",Little Angels Uppingham Ltd,RC505798,,2 Year Old Nursery Funding,R5020,TPP - Nursery Provision
12/01/2023,3765477,2 Year Funding -January 2023 Claim and December 2022 Adjustment,350.91,Redacted Personal Data,RC300792,,2 Year Old Nursery Funding,R5020,TPP - Nursery Provision
12/01/2023,3765478,2 Year Funding -January 2023 Claim and December 2022 Adjustment,350.91,Rainbows - Exton,RC506365,,2 Year Old Nursery Funding,R5020,TPP - Nursery Provision
12/01/2023,3765479,2 Year Funding -January 2023 Claim and December 2022 Adjustment,350.91,Ryhall Childcare Centre,RC500824,,2 Year Old Nursery Funding,R5020,TPP - Nursery Provision
12/01/2023,3765480,2 Year Funding -January 2023 Claim and December 2022 Adjustment,"1,088.16",Scallywags Day Nursery,RC500853,,2 Year Old Nursery Funding,R5020,TPP - Nursery Provision
12/01/2023,3765481,2 Year Funding -January 2023 Claim and December 2022 Adjustment,350.91,Climbing High Nurseries Ltd - The Day Nursery At Oakham,RC300926,,2 Year Old Nursery Funding,R5020,TPP - Nursery Provision
12/01/2023,3765482,3 and 4 Year Funding -January 2023 Claim and December 2022 Adjustment,"6,112.94",The Ark Association (1),RC501043,,3 & 4 Year Old Nursery Funding,R5020,TPP - Nursery Provision
12/01/2023,3765483,3 and 4 Year Funding -January 2023 Claim and December 2022 Adjustment,"7,715.74",The Ark Association (Early Yrs) 2,RC501044,,3 & 4 Year Old Nursery Funding,R5020,TPP - Nursery Provision
12/01/2023,3765484,3 and 4 Year Funding -January 2023 Claim and December 2022 Adjustment,"6,521.37",Belton Pre-School,RC500093,,3 & 4 Year Old Nursery Funding,R5020,TPP - Nursery Provision
12/01/2023,3765485,3 and 4 Year Funding -January 2023 Claim and December 2022 Adjustment,"3,035.34",Bright Sparks Pre-School,RC501571,,3 & 4 Year Old Nursery Funding,R5020,TPP - Nursery Provision
12/01/2023,3765486,3 and 4 Year Funding -January 2023 Claim and December 2022 Adjustment,"11,227.20",Brooke Hill Academy Trust Ltd,RC501837,,3 & 4 Year Old Nursery Funding,R5020,TPP - Nursery Provision
12/01/2023,3765487,3 and 4 Year Funding -January 2023 Claim and December 2022 Adjustment,"6,070.68",Brooke Priory School Ltd,RC501848,,3 & 4 Year Old Nursery Funding,R5020,TPP - Nursery Provision
12/01/2023,3765488,3 and 4 Year Funding -January 2023 Claim and December 2022 Adjustment,"9,347.01",Casterton Nursery,RC500449,,3 & 4 Year Old Nursery Funding,R5020,TPP - Nursery Provision
12/01/2023,3765489,3 and 4 Year Funding -January 2023 Claim and December 2022 Adjustment,"3,513.63",Little Ospreys,RC501514,,3 & 4 Year Old Nursery Funding,R5020,TPP - Nursery Provision
12/01/2023,3765490,3 and 4 Year Funding -January 2023 Claim and December 2022 Adjustment,"6,255.89",Ketton Playgroup,RC501972,,3 & 4 Year Old Nursery Funding,R5020,TPP - Nursery Provision
12/01/2023,3765491,3 and 4 Year Funding -January 2023 Claim and December 2022 Adjustment,"5,868.32",Langham Nursery,RC501101,,3 & 4 Year Old Nursery Funding,R5020,TPP - Nursery Provision
12/01/2023,3765492,3 and 4 Year Funding -January 2023 Claim and December 2022 Adjustment,"11,203.26",Little Angels Uppingham Ltd,RC505798,,3 & 4 Year Old Nursery Funding,R5020,TPP - Nursery Provision
12/01/2023,3765493,3 and 4 Year Funding -January 2023 Claim and December 2022 Adjustment,"12,842.22",Redacted Personal Data,RC300792,,3 & 4 Year Old Nursery Funding,R5020,TPP - Nursery Provision
12/01/2023,3765494,3 and 4 Year Funding -January 2023 Claim and December 2022 Adjustment,"10,240.44",Little Saints,RC508480,,3 & 4 Year Old Nursery Funding,R5020,TPP - Nursery Provision
12/01/2023,3765495,3 and 4 Year Funding -January 2023 Claim and December 2022 Adjustment,"3,073.14",Rainbows - Exton,RC506365,,3 & 4 Year Old Nursery Funding,R5020,TPP - Nursery Provision
12/01/2023,3765496,3 and 4 Year Funding -January 2023 Claim and December 2022 Adjustment,"3,421.66",Ryhall Childcare Centre,RC500824,,3 & 4 Year Old Nursery Funding,R5020,TPP - Nursery Provision
12/01/2023,3765497,3 and 4 Year Funding -January 2023 Claim and December 2022 Adjustment,"8,840.33",Scallywags Day Nursery,RC500853,,3 & 4 Year Old Nursery Funding,R5020,TPP - Nursery Provision
12/01/2023,3765498,3 and 4 Year Funding -January 2023 Claim and December 2022 Adjustment,"5,489.23",Stepping Stones Pre-School (Upp),RC500975,,3 & 4 Year Old Nursery Funding,R5020,TPP - Nursery Provision
12/01/2023,3765499,3 and 4 Year Funding -January 2023 Claim and December 2022 Adjustment,"8,607.69",Climbing High Nurseries Ltd - The Day Nursery At Oakham,RC300926,,3 & 4 Year Old Nursery Funding,R5020,TPP - Nursery Provision
12/01/2023,3765500,3 and 4 Year Funding -January 2023 Claim and December 2022 Adjustment,777.45,Redacted Personal Data,RC302305,,3 & 4 Year Old Nursery Funding,R5020,TPP - Nursery Provision
12/01/2023,3765501,3 and 4 Year Funding -January 2023 Claim and December 2022 Adjustment,634.06,Redacted Personal Data,RC509420,,3 & 4 Year Old Nursery Funding,R5020,TPP - Nursery Provision
12/01/2023,3765502,3 and 4 Year Funding -January 2023 Claim and December 2022 Adjustment,863.4,Redacted Personal Data,RC301464,,3 & 4 Year Old Nursery Funding,R5020,TPP - Nursery Provision
12/01/2023,3765503,3 and 4 Year Funding -January 2023 Claim and December 2022 Adjustment,"1,931.59",Redacted Personal Data,RC301224,,3 & 4 Year Old Nursery Funding,R5020,TPP - Nursery Provision
12/01/2023,3765504,3 and 4 Year Funding -January 2023 Claim and December 2022 Adjustment,551.88,Redacted Personal Data,RC506113,,3 & 4 Year Old Nursery Funding,R5020,TPP - Nursery Provision
12/01/2023,3765505,3 and 4 Year Funding -January 2023 Claim and December 2022 Adjustment,651.75,Redacted Personal Data,RC509223,,3 & 4 Year Old Nursery Funding,R5020,TPP - Nursery Provision
12/01/2023,3765506,3 and 4 Year Funding -January 2023 Claim and December 2022 Adjustment,"10,258.06",Redacted Personal Data,RC507202,,3 & 4 Year Old Nursery Funding,R5020,TPP - Nursery Provision
12/01/2023,3765507,3 and 4 Year Funding -January 2023 Claim and December 2022 Adjustment,938.2,Redacted Personal Data,RC508806,,3 & 4 Year Old Nursery Funding,R5020,TPP - Nursery Provision
12/01/2023,3765508,Redacted Personal Data,106.85,Redacted Personal Data,RC502418,,Care Leavers,R4900,Accommodation Costs
12/01/2023,3765509,Redacted Personal Data,100,Redacted Personal Data,RC500229,,Care Leavers,R4900,Accommodation Costs
12/01/2023,3765510,Redacted Personal Data,103.65,Redacted Personal Data,RC500229,,Care Leavers,R4900,Accommodation Costs
12/01/2023,3765511,Redacted Personal Data,100,Redacted Personal Data,RC507010,,Care Leavers,R4900,Accommodation Costs
12/01/2023,3765512,Redacted Personal Data,103.65,Redacted Personal Data,RC507010,,Care Leavers,R4900,Accommodation Costs
12/01/2023,3765513,Redacted Personal Data,100,Redacted Personal Data,RC301144,,Care Leavers,R4900,Accommodation Costs
12/01/2023,3765514,Redacted Personal Data,103.65,Redacted Personal Data,RC301144,,Care Leavers,R4900,Accommodation Costs
12/01/2023,3765515,Redacted Personal Data,203.56,Redacted Personal Data,RC301349,,Care Leavers,R4900,Accommodation Costs
12/01/2023,3765516,Redacted Personal Data,203.56,Redacted Personal Data,RC301349,,Care Leavers,R4900,Accommodation Costs
12/01/2023,3765517,Redacted Personal Data,61.22,Redacted Personal Data,RC301656,,Care Leavers,R6292,Section 24 Payments
12/01/2023,3765518,Redacted Personal Data,61.22,Redacted Personal Data,RC301917,,Care Leavers,R6292,Section 24 Payments
12/01/2023,3765519,Redacted Personal Data,61.22,Redacted Personal Data,RC302269,,Care Leavers,R6292,Section 24 Payments
12/01/2023,3765520,Redacted Personal Data,64,Redacted Personal Data,RC508568,,Care Leavers,R6292,Section 24 Payments
12/01/2023,3765521,Redacted Personal Data,10,Redacted Personal Data,RC301475,,Care Leavers,R6292,Section 24 Payments
12/01/2023,3765522,Redacted Personal Data,48,Redacted Personal Data,RC302132,,Care Leavers,R6292,Section 24 Payments
12/01/2023,3765523,Redacted Personal Data,284,Redacted Personal Data,RC508778,,Placements,R5017,TPP - Other
12/01/2023,3765524,Redacted Personal Data,188,Redacted Personal Data,RC506075,,Placements,R5017,TPP - Other
12/01/2023,3765525,Redacted Personal Data,284,Redacted Personal Data,RC506286,,Placements,R5017,TPP - Other
12/01/2023,3765526,Redacted Personal Data,188,Redacted Personal Data,RC300814,,Placements,R5017,TPP - Other
12/01/2023,3765527,Redacted Personal Data,284,Redacted Personal Data,RC301960,,Placements,R5017,TPP - Other
12/01/2023,3765528,Redacted Personal Data,284,Redacted Personal Data,RC301144,,Placements,R5017,TPP - Other
12/01/2023,3765529,Redacted Personal Data,284,Redacted Personal Data,RC507222,,Placements,R5017,TPP - Other
12/01/2023,3765530,Redacted Personal Data,188,Redacted Personal Data,RC301040,,Placements,R5017,TPP - Other
12/01/2023,3765531,Redacted Personal Data,188,Redacted Personal Data,RC301040,,Placements,R5017,TPP - Other
12/01/2023,3765532,Redacted Personal Data,284,Redacted Personal Data,RC301893,,Placements,R5017,TPP - Other
12/01/2023,3765533,Redacted Personal Data,143.95,Redacted Personal Data,RC301658,,Placements,R5017,TPP - Other
12/01/2023,3765534,Redacted Personal Data,188,Redacted Personal Data,RC302008,,Placements,R5017,TPP - Other
12/01/2023,3765535,Redacted Personal Data,188,Redacted Personal Data,RC302008,,Placements,R5017,TPP - Other
12/01/2023,3765536,Redacted Personal Data,165,Redacted Personal Data,RC302283,,Placements,R5017,TPP - Other
12/01/2023,3765537,Redacted Personal Data,188,Redacted Personal Data,RC302290,,Placements,R5017,TPP - Other
12/01/2023,3765538,Redacted Personal Data,165,Redacted Personal Data,RC302290,,Placements,R5017,TPP - Other
12/01/2023,3765539,Redacted Personal Data,249,Redacted Personal Data,RC508778,,Placements,R5017,TPP - Other
12/01/2023,3765540,Redacted Personal Data,249,Redacted Personal Data,RC506075,,Placements,R5017,TPP - Other
12/01/2023,3765541,Redacted Personal Data,249,Redacted Personal Data,RC506286,,Placements,R5017,TPP - Other
12/01/2023,3765542,Redacted Personal Data,249,Redacted Personal Data,RC300814,,Placements,R5017,TPP - Other
12/01/2023,3765543,Redacted Personal Data,197,Redacted Personal Data,RC301960,,Placements,R5017,TPP - Other
12/01/2023,3765544,Redacted Personal Data,249,Redacted Personal Data,RC301144,,Placements,R5017,TPP - Other
12/01/2023,3765545,Redacted Personal Data,249,Redacted Personal Data,RC507222,,Placements,R5017,TPP - Other
12/01/2023,3765546,Redacted Personal Data,142,Redacted Personal Data,RC301040,,Placements,R5017,TPP - Other
12/01/2023,3765547,Redacted Personal Data,107,Redacted Personal Data,RC301040,,Placements,R5017,TPP - Other
12/01/2023,3765548,Redacted Personal Data,197,Redacted Personal Data,RC507547,,Placements,R5017,TPP - Other
12/01/2023,3765549,Redacted Personal Data,142,Redacted Personal Data,RC302008,,Placements,R5017,TPP - Other
12/01/2023,3765550,Redacted Personal Data,107,Redacted Personal Data,RC302008,,Placements,R5017,TPP - Other
12/01/2023,3765551,Redacted Personal Data,142,Redacted Personal Data,RC302283,,Placements,R5017,TPP - Other
12/01/2023,3765552,Redacted Personal Data,163,Redacted Personal Data,RC508167,,Placements,R5017,TPP - Other
12/01/2023,3765553,Redacted Personal Data,167.4,Redacted Personal Data,RC507009,,Placements,R5017,TPP - Other
12/01/2023,3765554,Redacted Personal Data,168.13,Redacted Personal Data,RC507009,,Placements,R5017,TPP - Other
12/01/2023,3765555,Redacted Personal Data,139.85,Redacted Personal Data,RC503878,,Placements,R5017,TPP - Other
12/01/2023,3765556,Redacted Personal Data,404.59,Redacted Personal Data,RC508604,,Placements,R5017,TPP - Other
12/01/2023,3765557,Redacted Personal Data,120,Redacted Personal Data,RC507391,,Placements,R5017,TPP - Other
12/01/2023,3765558,Redacted Personal Data,124,Redacted Personal Data,RC300006,,Placements,R5017,TPP - Other
12/01/2023,3765559,Redacted Personal Data,206,Redacted Personal Data,RC502500,,Placements,R5017,TPP - Other
12/01/2023,3765560,Redacted Personal Data,249,Redacted Personal Data,RC502500,,Placements,R5017,TPP - Other
12/01/2023,3765561,Redacted Personal Data,130.77,Redacted Personal Data,RC507903,,Placements,R5017,TPP - Other
12/01/2023,3765562,Redacted Personal Data,121.08,Redacted Personal Data,RC508044,,Placements,R5017,TPP - Other
12/01/2023,3765563,Redacted Personal Data,295.62,Redacted Personal Data,RC300308,,Placements,R5017,TPP - Other
12/01/2023,3765564,Redacted Personal Data,163,Redacted Personal Data,RC506313,,Placements,R5017,TPP - Other
12/01/2023,3765565,Redacted Personal Data,289.74,Redacted Personal Data,RC301477,,Placements,R5017,TPP - Other
12/01/2023,3765566,Redacted Personal Data,249,Redacted Personal Data,RC505729,,Placements,R5017,TPP - Other
12/01/2023,3765567,Redacted Personal Data,249,Redacted Personal Data,RC505729,,Placements,R5017,TPP - Other
12/01/2023,3765568,Redacted Personal Data,289.7,Redacted Personal Data,RC301689,,Placements,R5017,TPP - Other
12/01/2023,3765569,Redacted Personal Data,145,Redacted Personal Data,RC301485,,Placements,R5017,TPP - Other
12/01/2023,3765570,Redacted Personal Data,5,Redacted Personal Data,RC302190,,UASC 16-17,R6292,Section 24 Payments
12/01/2023,3765571,Redacted Personal Data,48,Redacted Personal Data,RC302190,,UASC 16-17,R6292,Section 24 Payments
12/01/2023,3765572,Redacted Personal Data,61.22,Redacted Personal Data,RC302190,,UASC 16-17,R6293,Asylum Seekers Allowance
12/01/2023,3765573,Redacted Personal Data,30,Redacted Personal Data,RC301476,,Unaccompanied Asylum Seekers - Over 18,R6292,Section 24 Payments
12/01/2023,3765574,Redacted Personal Data,354.6,Redacted Personal Data,RC302008,,Placements,R5017,TPP - Other
12/01/2023,3765575,Redacted Personal Data,"3,150.00",Redacted Personal Data,RC302087,112544059,Unaccompanied Asylum Seekers - Over 18,R4900,Accommodation Costs
12/01/2023,3765576,Redacted Personal Data,499,Redacted Personal Data,RC302049,,Care Leavers,R4900,Accommodation Costs
12/01/2023,3765577,Redacted Personal Data,400,Redacted Personal Data,RC301676,,Aiming High,R4400,Professional Fees
12/01/2023,3765578,Redacted Personal Data,400,Redacted Personal Data,RC301676,,Aiming High,R4400,Professional Fees
12/01/2023,3765579,Redacted Personal Data,400,Redacted Personal Data,RC302296,,Aiming High,R4400,Professional Fees
12/01/2023,3765580,Autumn 22 Term Payment 1,"1,322.00",Redacted Personal Data,RC301764,,SEN Funding EOTAS & Tuition,R6280,Direct Payments
12/01/2023,3765581,Autumn 22 Term Payment 2,"1,322.00",Redacted Personal Data,RC301764,,SEN Funding EOTAS & Tuition,R6280,Direct Payments
12/01/2023,3765582,Spring 23 Term Payment 1,"1,322.00",Redacted Personal Data,RC301764,,SEN Funding EOTAS & Tuition,R6280,Direct Payments
12/01/2023,3765583,Parent Mileage Jan 2023,323.35,Redacted Personal Data,RC500229,,SEN Transport,R3200,Hire of Vehicles & Plant
12/01/2023,3765584,Parent Mileage Jan 2023,951.84,Redacted Personal Data,RC502467,,SEN Transport,R3200,Hire of Vehicles & Plant
12/01/2023,3765585,Parent Mileage Jan 2023,209.86,Redacted Personal Data,RC300200,,SEN Transport,R3200,Hire of Vehicles & Plant
12/01/2023,3765586,Parent Mileage Jan 2023,31.09,Redacted Personal Data,RC300314,,SEN Transport,R3200,Hire of Vehicles & Plant
12/01/2023,3765587,Parent Mileage Jan 2023,808.36,Redacted Personal Data,RC300759,,SEN Transport,R3200,Hire of Vehicles & Plant
12/01/2023,3765588,Parent Mileage Jan 2023,893.45,Redacted Personal Data,RC300853,,SEN Transport,R3200,Hire of Vehicles & Plant
12/01/2023,3765589,Parent Mileage Jan 2023,126.65,Redacted Personal Data,RC300907,,SEN Transport,R3200,Hire of Vehicles & Plant
12/01/2023,3765590,Parent Mileage Jan 2023,298.47,Redacted Personal Data,RC301342,,SEN Transport,R3200,Hire of Vehicles & Plant
12/01/2023,3765591,Parent Mileage Jan 2023,491.24,Redacted Personal Data,RC301575,,SEN Transport,R3200,Hire of Vehicles & Plant
12/01/2023,3765592,Parent Mileage Jan 2023,223.85,Redacted Personal Data,RC301576,,SEN Transport,R3200,Hire of Vehicles & Plant
12/01/2023,3765593,Parent Mileage Jan 2023,206.75,Redacted Personal Data,RC301577,,SEN Transport,R3200,Hire of Vehicles & Plant
12/01/2023,3765594,Parent Mileage Jan 2023,621.82,Redacted Personal Data,RC301807,,SEN Transport,R3200,Hire of Vehicles & Plant
12/01/2023,3765595,Parent Mileage Jan 2023,310.91,Redacted Personal Data,RC301900,,SEN Transport,R3200,Hire of Vehicles & Plant
12/01/2023,3765596,Parent Mileage Jan 2023,272.06,Redacted Personal Data,RC301909,,SEN Transport,R3200,Hire of Vehicles & Plant
12/01/2023,3765597,Parent Mileage Jan 2023,190.26,Redacted Personal Data,RC302099,,SEN Transport,R3200,Hire of Vehicles & Plant
12/01/2023,3765598,Parent Mileage Jan 2023,304.69,Redacted Personal Data,RC302131,,SEN Transport,R3200,Hire of Vehicles & Plant
12/01/2023,3765599,Parent Mileage Jan 2023,304.69,Redacted Personal Data,RC302191,,SEN Transport,R3200,Hire of Vehicles & Plant
12/01/2023,3765600,Parent Mileage Jan 2023,154.28,Redacted Personal Data,RC302203,,SEN Transport,R3200,Hire of Vehicles & Plant
12/01/2023,3765601,Parent Mileage Jan 2023,354.86,Redacted Personal Data,RC507974,,SEN Transport,R3200,Hire of Vehicles & Plant
12/01/2023,3765602,Parent Mileage Jan 2023,271.86,Redacted Personal Data,RC302110,,SEN Transport,R3200,Hire of Vehicles & Plant
12/01/2023,3765603,Parent Mileage Jan 2023,532,Redacted Personal Data,RC301861,,SEN Transport,R3200,Hire of Vehicles & Plant
09/01/2023,3765604,48324/1,"1,020.00",Aberdeen House Care Limited,RC506722,,Older People,R5028,TPP - Residental Care
09/01/2023,3765605,48324/2,"1,116.00",Aberdeen House Care Limited,RC506722,,Older People,R5028,TPP - Residental Care
09/01/2023,3765606,48324/3,"1,046.00",Aberdeen House Care Limited,RC506722,,Older People,R5028,TPP - Residental Care
09/01/2023,3765607,48324/4,"1,116.00",Aberdeen House Care Limited,RC506722,,Older People,R5028,TPP - Residental Care
09/01/2023,3765608,48324/5,"1,046.00",Aberdeen House Care Limited,RC506722,,Older People,R5028,TPP - Residental Care
09/01/2023,3765610,48324/7,"1,500.00",Aberdeen House Care Limited,RC506722,,Older People,R5028,TPP - Residental Care
09/01/2023,3765611,48365/8,"3,749.48",Leonard Cheshire Disability,RC302253,,Physical Disability,R5028,TPP - Residental Care
09/01/2023,3765612,48363/9,"1,700.00",Askham Village Community Ltd,RC302186,,Physical Disability,R5034,TPP - Nursing Care
09/01/2023,3765613,48334/10,"1,800.00",Redacted Personal Data,RC301932,,Physical Disability,R5028,TPP - Residental Care
09/01/2023,3765614,48334/11,"1,800.00",Redacted Personal Data,RC301932,,Older People,R5028,TPP - Residental Care
09/01/2023,3765615,48335/12,"1,046.00",Kross Investments Ltd T/A Belton House Retirement Home,RC502319,,Older People,R5028,TPP - Residental Care
09/01/2023,3765616,48335/13,"1,116.00",Kross Investments Ltd T/A Belton House Retirement Home,RC502319,,Mental Health,R5025,TPP - Short Term Care
09/01/2023,3765617,48335/14,"1,116.00",Kross Investments Ltd T/A Belton House Retirement Home,RC502319,,Older People,R5028,TPP - Residental Care
09/01/2023,3765618,48335/15,"1,116.00",Kross Investments Ltd T/A Belton House Retirement Home,RC502319,,Older People,R5028,TPP - Residental Care
09/01/2023,3765619,48335/16,"1,046.00",Kross Investments Ltd T/A Belton House Retirement Home,RC502319,,Older People,R5028,TPP - Residental Care
09/01/2023,3765620,48335/17,79.71,Kross Investments Ltd T/A Belton House Retirement Home,RC502319,,Older People,R5028,TPP - Residental Care
09/01/2023,3765621,48335/18,"1,116.00",Kross Investments Ltd T/A Belton House Retirement Home,RC502319,,Older People,R5028,TPP - Residental Care
09/01/2023,3765622,48335/19,"-10,758.85",Kross Investments Ltd T/A Belton House Retirement Home,RC502319,,Older People,R5028,TPP - Residental Care
09/01/2023,3765623,48335/20,"2,869.71",Kross Investments Ltd T/A Belton House Retirement Home,RC502319,,Older People,R5028,TPP - Residental Care
09/01/2023,3765624,48344/21,"1,252.00",Braceborough Hall,RC502352,,Older People,R5028,TPP - Residental Care
09/01/2023,3765626,48345/23,"1,230.00",Broadoak Group Of Care Homes (Grange),RC502363,,Older People,R5028,TPP - Residental Care
09/01/2023,3765627,48368/24,"2,138.64",Rutland House Community Trust Ltd,RC502287,,ASC S&R Homecare LD,R5029,TPP - Home Care
09/01/2023,3765628,48368/25,"1,783.50",Rutland House Community Trust Ltd,RC502287,,ASC S&R Homecare LD,R5029,TPP - Home Care
09/01/2023,3765629,48368/26,754,Rutland House Community Trust Ltd,RC502287,,ASC S&R Homecare PD,R5029,TPP - Home Care
09/01/2023,3765630,48325/27,"1,116.00",Chater Lodge Care Home,RC502286,,Older People,R5028,TPP - Residental Care
09/01/2023,3765631,48325/28,"1,116.00",Chater Lodge Care Home,RC502286,,Older People,R5028,TPP - Residental Care
09/01/2023,3765632,48325/29,"1,116.00",Chater Lodge Care Home,RC502286,,Older People,R5028,TPP - Residental Care
09/01/2023,3765633,48325/30,"1,116.00",Chater Lodge Care Home,RC502286,,Older People,R5028,TPP - Residental Care
09/01/2023,3765634,48346/31,"1,919.50",Chestnuts (Arnesby) Limited,RC506807,,Learning Disability,R5028,TPP - Residental Care
09/01/2023,3765635,48346/32,"2,387.50",Chestnuts (Arnesby) Limited,RC506807,,Learning Disability,R5028,TPP - Residental Care
09/01/2023,3765636,48347/33,"1,380.00",Royal Masonic Benevolent Institution No 4 A/C,RC508527,,Older People,R5034,TPP - Nursing Care
09/01/2023,3765637,48339/34,"1,134.00",Whitefriars,RC502306,,Older People,R5028,TPP - Residental Care
09/01/2023,3765638,48348/35,"2,064.18",PJ Care Ltd,RC507400,,Memory and Cognitive,R5028,TPP - Residental Care
09/01/2023,3765639,48348/36,"2,014.18",PJ Care Ltd,RC507400,,Older People,R5028,TPP - Residental Care
09/01/2023,3765640,48360/37,-179.72,Pilgrims Friend Society,RC301921,,Older People,R5028,TPP - Residental Care
09/01/2023,3765641,48349/38,"1,200.00",St Bernard's Hallaton Manor Ltd,RC502292,,Older People,R5034,TPP - Nursing Care
09/01/2023,3765642,48359/39,"7,144.70",Outcomes First Group,RC501992,,Learning Disability,R5028,TPP - Residental Care
09/01/2023,3765643,48364/40,"1,700.00",Hunters Lodge Retirement Home Limited,RC302237,,Older People,R5025,TPP - Short Term Care
09/01/2023,3765644,48350/41,"6,448.06",Kisimul Group Ltd,RC506920,,Learning Disability,R5028,TPP - Residental Care
09/01/2023,3765645,48351/42,"1,276.00",Leicestershire County Care Ltd,RC509037,,Older People,R5028,TPP - Residental Care
09/01/2023,3765646,48352/43,"1,027.94",Longueville Court Care Home,RC509439,,Older People,R5034,TPP - Nursing Care
09/01/2023,3765647,48326/44,"-1,833.43",Manton Hall (Foundation),RC502541,,Older People,R5028,TPP - Residental Care
09/01/2023,3765648,48326/45,650,Manton Hall (Foundation),RC502541,,Older People,R5028,TPP - Residental Care
09/01/2023,3765649,48326/46,-318.86,Manton Hall (Foundation),RC502541,,Older People,R5028,TPP - Residental Care
09/01/2023,3765650,48326/47,"1,116.00",Manton Hall (Foundation),RC502541,,Older People,R5028,TPP - Residental Care
09/01/2023,3765651,48326/48,"1,116.00",Manton Hall (Foundation),RC502541,,Older People,R5028,TPP - Residental Care
09/01/2023,3765652,48326/49,"1,116.00",Manton Hall (Foundation),RC502541,,Older People,R5028,TPP - Residental Care
09/01/2023,3765654,48326/51,"1,100.00",Manton Hall (Foundation),RC502541,,Older People,R5028,TPP - Residental Care
09/01/2023,3765655,48326/52,558,Manton Hall (Foundation),RC502541,,Older People,R5028,TPP - Residental Care
09/01/2023,3765656,48326/53,"1,116.00",Manton Hall (Foundation),RC502541,,Older People,R5028,TPP - Residental Care
09/01/2023,3765657,48326/54,"1,116.00",Manton Hall (Foundation),RC502541,,Older People,R5028,TPP - Residental Care
09/01/2023,3765658,48326/55,"1,046.00",Manton Hall (Foundation),RC502541,,Older People,R5028,TPP - Residental Care
09/01/2023,3765659,48326/56,"1,116.00",Manton Hall (Foundation),RC502541,,Older People,R5028,TPP - Residental Care
09/01/2023,3765660,48326/57,"1,116.00",Manton Hall (Foundation),RC502541,,Older People,R5028,TPP - Residental Care
09/01/2023,3765661,48326/58,"1,116.00",Manton Hall (Foundation),RC502541,,Older People,R5028,TPP - Residental Care
09/01/2023,3765662,48326/59,"4,304.57",Manton Hall (Foundation),RC502541,,Older People,R5028,TPP - Residental Care
09/01/2023,3765663,48333/60,"2,722.50",Ardale (Oakham) Limited,RC301619,,Older People,R5028,TPP - Residental Care
09/01/2023,3765664,48333/61,"2,700.00",Ardale (Oakham) Limited,RC301619,,Older People,R5028,TPP - Residental Care
09/01/2023,3765665,48343/62,"2,852.00",Orchard Court Leicester Ltd,RC300743,,Learning Disability,R5028,TPP - Residental Care
09/01/2023,3765666,48362/63,"1,342.28",Orchard Manor View Ltd,RC302140,,Older People,R5028,TPP - Residental Care
09/01/2023,3765667,48338/64,"1,600.00",Peaker Park Care Village,RC507500,,Older People,R5034,TPP - Nursing Care
09/01/2023,3765668,48338/65,"1,678.90",Peaker Park Care Village,RC507500,,Older People,R5028,TPP - Residental Care
09/01/2023,3765669,48337/66,"3,043.40",Portland College,RC508221,117 7675 47,Learning Disability,R5028,TPP - Residental Care
09/01/2023,3765670,48353/67,"1,144.72",Craegmoor Mar Lodge Priory,RC502624,,Learning Disability,R5028,TPP - Residental Care
09/01/2023,3765671,48327/68,"2,415.00",Prime Life Ltd,RC502626,729 8397 74,Older People,R5028,TPP - Residental Care
09/01/2023,3765672,48327/69,"2,415.00",Prime Life Ltd,RC502626,729 8397 74,Older People,R5028,TPP - Residental Care
09/01/2023,3765673,48327/70,"1,700.00",Prime Life Ltd,RC502626,729 8397 74,Older People,R5028,TPP - Residental Care
09/01/2023,3765674,48328/71,"1,116.00",Prime Life Ltd,RC502626,729 8397 74,Older People,R5028,TPP - Residental Care
09/01/2023,3765675,48328/72,"5,585.71",Prime Life Ltd,RC502626,729 8397 74,Older People,R5028,TPP - Residental Care
09/01/2023,3765676,48328/73,"1,116.00",Prime Life Ltd,RC502626,729 8397 74,Older People,R5028,TPP - Residental Care
09/01/2023,3765677,48328/74,"3,278.57",Prime Life Ltd,RC502626,729 8397 74,Older People,R5028,TPP - Residental Care
09/01/2023,3765678,48328/75,"10,200.00",Prime Life Ltd,RC502626,729 8397 74,Older People,R5028,TPP - Residental Care
09/01/2023,3765679,48328/76,850,Prime Life Ltd,RC502626,729 8397 74,Older People,R5025,TPP - Short Term Care
09/01/2023,3765680,48354/77,"1,146.00",Roman Park Ltd,RC502283,,Learning Disability,R5028,TPP - Residental Care
09/01/2023,3765681,48323/78,500,Roman Park Ltd (Day Care),RC300484,,ASC S&R Daycare LD,R5030,TPP - Daycare
09/01/2023,3765682,48361/79,"1,400.00",V & L Corporation Limited,RC302121,,Older People,R5028,TPP - Residental Care
09/01/2023,3765683,48342/80,"2,453.08",Choice Ltd T/A Stoke Lodge,RC300621,,Mental Health,R5028,TPP - Residental Care
09/01/2023,3765684,48355/81,"1,252.00",Tallington Care Home,RC507295,,Older People,R5028,TPP - Residental Care
09/01/2023,3765685,48366/82,79.71,The Amwell Care Home,RC300501,,Older People,R5028,TPP - Residental Care
09/01/2023,3765686,48366/83,"1,390.84",The Amwell Care Home,RC300501,,Older People,R5028,TPP - Residental Care
09/01/2023,3765687,48357/84,"5,870.16",The Hollies,RC502822,,Learning Disability,R5028,TPP - Residental Care
09/01/2023,3765688,48358/85,"1,450.00",The Linkage Community Trust,RC502300,,Learning Disability,R5028,TPP - Residental Care
09/01/2023,3765689,48329/86,"2,377.40",The Lodge Trust,RC501110,,Learning Disability,R5028,TPP - Residental Care
09/01/2023,3765690,48329/87,"2,755.50",The Lodge Trust,RC501110,,Learning Disability,R5028,TPP - Residental Care
09/01/2023,3765691,48340/88,"5,892.80",Cristalcare Ltd,RC300259,,Learning Disability,R5028,TPP - Residental Care
09/01/2023,3765692,48341/89,"3,488.26",Langley House Trust,RC300376,,Mental Health,R5028,TPP - Residental Care
09/01/2023,3765693,48336/90,"1,116.00",Tixover House Care Home,RC502297,,Older People,R5028,TPP - Residental Care
09/01/2023,3765694,48336/91,"1,116.00",Tixover House Care Home,RC502297,,Older People,R5028,TPP - Residental Care
09/01/2023,3765695,48336/92,"1,216.00",Tixover House Care Home,RC502297,,Physical Disability,R5034,TPP - Nursing Care
09/01/2023,3765696,48336/93,"1,900.00",Tixover House Care Home,RC502297,,Older People,R5028,TPP - Residental Care
09/01/2023,3765697,48336/94,"1,250.00",Tixover House Care Home,RC502297,,Older People,R5028,TPP - Residental Care
09/01/2023,3765698,48336/95,"2,160.00",Tixover House Care Home,RC502297,,Older People,R5028,TPP - Residental Care
09/01/2023,3765699,48336/96,"1,116.00",Tixover House Care Home,RC502297,,Older People,R5028,TPP - Residental Care
09/01/2023,3765700,48370/97,"1,019.44",TML Care Solutions Ltd,RC300982,,ASC S&R Homecare MH,R5029,TPP - Home Care
09/01/2023,3765701,48370/98,509.72,TML Care Solutions Ltd,RC300982,,ASC S&R Homecare MH,R5029,TPP - Home Care
09/01/2023,3765702,48356/99,"4,066.36",Voyage Care Ltd,RC502282,787 4551 80,Learning Disability,R5028,TPP - Residental Care
09/01/2023,3765703,48369/100,"1,058.58",Rutland House Community Trust Ltd,RC502287,,ASC S&R Homecare LD,R5029,TPP - Home Care
09/01/2023,3765704,48369/101,"2,514.58",Rutland House Community Trust Ltd,RC502287,,Learning Disability,R5028,TPP - Residental Care
09/01/2023,3765705,48369/102,"1,058.58",Rutland House Community Trust Ltd,RC502287,,Learning Disability,R5028,TPP - Residental Care
09/01/2023,3765706,48331/103,"1,936.96",Rutland House Community Trust Ltd,RC502287,,Learning Disability,R5028,TPP - Residental Care
09/01/2023,3765707,48331/104,"2,042.64",Rutland House Community Trust Ltd,RC502287,,Learning Disability,R5028,TPP - Residental Care
09/01/2023,3765708,48331/105,"2,321.60",Rutland House Community Trust Ltd,RC502287,,Learning Disability,R5028,TPP - Residental Care
09/01/2023,3765709,48331/106,"1,936.96",Rutland House Community Trust Ltd,RC502287,,Learning Disability,R5028,TPP - Residental Care
09/01/2023,3765710,48367/107,696,Rutland House Community Trust Ltd,RC502287,,ASC S&R Homecare LD,R5029,TPP - Home Care
09/01/2023,3765711,48330/108,"1,046.00",Wisteria House,RC502309,,Older People,R5028,TPP - Residental Care
12/01/2023,3765712,Discretionary Payment - Jan 23,100,Redacted Personal Data,RC301590,,Children Looked After,R6292,Section 24 Payments
19/01/2023,3765713,Redacted Personal Data,106.85,Redacted Personal Data,RC502418,,Care Leavers,R4900,Accommodation Costs
19/01/2023,3765714,Redacted Personal Data,100,Redacted Personal Data,RC500229,,Care Leavers,R4900,Accommodation Costs
19/01/2023,3765715,Redacted Personal Data,103.65,Redacted Personal Data,RC500229,,Care Leavers,R4900,Accommodation Costs
19/01/2023,3765716,Redacted Personal Data,100,Redacted Personal Data,RC507010,,Care Leavers,R4900,Accommodation Costs
19/01/2023,3765717,Redacted Personal Data,103.65,Redacted Personal Data,RC507010,,Care Leavers,R4900,Accommodation Costs
19/01/2023,3765718,Redacted Personal Data,100,Redacted Personal Data,RC301144,,Care Leavers,R4900,Accommodation Costs
19/01/2023,3765719,Redacted Personal Data,103.65,Redacted Personal Data,RC301144,,Care Leavers,R4900,Accommodation Costs
19/01/2023,3765720,Redacted Personal Data,203.56,Redacted Personal Data,RC301349,,Care Leavers,R4900,Accommodation Costs
19/01/2023,3765721,Redacted Personal Data,203.56,Redacted Personal Data,RC301349,,Care Leavers,R4900,Accommodation Costs
19/01/2023,3765722,Redacted Personal Data,61.22,Redacted Personal Data,RC301656,,Care Leavers,R6292,Section 24 Payments
19/01/2023,3765723,Redacted Personal Data,61.22,Redacted Personal Data,RC301917,,Care Leavers,R6292,Section 24 Payments
19/01/2023,3765724,Redacted Personal Data,103,Redacted Personal Data,RC301604,,Care Leavers,R6292,Section 24 Payments
19/01/2023,3765725,Redacted Personal Data,25,Redacted Personal Data,RC301604,,Care Leavers,R6292,Section 24 Payments
19/01/2023,3765726,Redacted Personal Data,61.22,Redacted Personal Data,RC302269,,Care Leavers,R6292,Section 24 Payments
19/01/2023,3765727,Redacted Personal Data,64,Redacted Personal Data,RC508568,,Care Leavers,R6292,Section 24 Payments
19/01/2023,3765728,Redacted Personal Data,284,Redacted Personal Data,RC508778,,Placements,R5017,TPP - Other
19/01/2023,3765729,Redacted Personal Data,188,Redacted Personal Data,RC506075,,Placements,R5017,TPP - Other
19/01/2023,3765730,Redacted Personal Data,284,Redacted Personal Data,RC506286,,Placements,R5017,TPP - Other
19/01/2023,3765731,Redacted Personal Data,188,Redacted Personal Data,RC300814,,Placements,R5017,TPP - Other
19/01/2023,3765732,Redacted Personal Data,284,Redacted Personal Data,RC301960,,Placements,R5017,TPP - Other
19/01/2023,3765733,Redacted Personal Data,284,Redacted Personal Data,RC301144,,Placements,R5017,TPP - Other
19/01/2023,3765734,Redacted Personal Data,284,Redacted Personal Data,RC507222,,Placements,R5017,TPP - Other
19/01/2023,3765735,Redacted Personal Data,188,Redacted Personal Data,RC301040,,Placements,R5017,TPP - Other
19/01/2023,3765736,Redacted Personal Data,188,Redacted Personal Data,RC301040,,Placements,R5017,TPP - Other
19/01/2023,3765737,Redacted Personal Data,284,Redacted Personal Data,RC301893,,Placements,R5017,TPP - Other
19/01/2023,3765738,Redacted Personal Data,143.95,Redacted Personal Data,RC301658,,Placements,R5017,TPP - Other
19/01/2023,3765739,Redacted Personal Data,188,Redacted Personal Data,RC302008,,Placements,R5017,TPP - Other
19/01/2023,3765740,Redacted Personal Data,188,Redacted Personal Data,RC302008,,Placements,R5017,TPP - Other
19/01/2023,3765741,Redacted Personal Data,165,Redacted Personal Data,RC302283,,Placements,R5017,TPP - Other
19/01/2023,3765742,Redacted Personal Data,188,Redacted Personal Data,RC302290,,Placements,R5017,TPP - Other
19/01/2023,3765743,Redacted Personal Data,165,Redacted Personal Data,RC302290,,Placements,R5017,TPP - Other
19/01/2023,3765744,Redacted Personal Data,249,Redacted Personal Data,RC508778,,Placements,R5017,TPP - Other
19/01/2023,3765745,Redacted Personal Data,249,Redacted Personal Data,RC506075,,Placements,R5017,TPP - Other
19/01/2023,3765746,Redacted Personal Data,249,Redacted Personal Data,RC506286,,Placements,R5017,TPP - Other
19/01/2023,3765747,Redacted Personal Data,249,Redacted Personal Data,RC300814,,Placements,R5017,TPP - Other
19/01/2023,3765748,Redacted Personal Data,197,Redacted Personal Data,RC301960,,Placements,R5017,TPP - Other
19/01/2023,3765749,Redacted Personal Data,249,Redacted Personal Data,RC301144,,Placements,R5017,TPP - Other
19/01/2023,3765750,Redacted Personal Data,249,Redacted Personal Data,RC507222,,Placements,R5017,TPP - Other
19/01/2023,3765751,Redacted Personal Data,142,Redacted Personal Data,RC301040,,Placements,R5017,TPP - Other
19/01/2023,3765752,Redacted Personal Data,107,Redacted Personal Data,RC301040,,Placements,R5017,TPP - Other
19/01/2023,3765753,Redacted Personal Data,197,Redacted Personal Data,RC507547,,Placements,R5017,TPP - Other
19/01/2023,3765754,Redacted Personal Data,142,Redacted Personal Data,RC302008,,Placements,R5017,TPP - Other
19/01/2023,3765755,Redacted Personal Data,107,Redacted Personal Data,RC302008,,Placements,R5017,TPP - Other
19/01/2023,3765756,Redacted Personal Data,142,Redacted Personal Data,RC302283,,Placements,R5017,TPP - Other
19/01/2023,3765757,Redacted Personal Data,163,Redacted Personal Data,RC508167,,Placements,R5017,TPP - Other
19/01/2023,3765758,Redacted Personal Data,167.4,Redacted Personal Data,RC507009,,Placements,R5017,TPP - Other
19/01/2023,3765759,Redacted Personal Data,168.13,Redacted Personal Data,RC507009,,Placements,R5017,TPP - Other
19/01/2023,3765760,Redacted Personal Data,139.85,Redacted Personal Data,RC503878,,Placements,R5017,TPP - Other
19/01/2023,3765761,Redacted Personal Data,404.59,Redacted Personal Data,RC508604,,Placements,R5017,TPP - Other
19/01/2023,3765762,Redacted Personal Data,120,Redacted Personal Data,RC507391,,Placements,R5017,TPP - Other
19/01/2023,3765763,Redacted Personal Data,124,Redacted Personal Data,RC300006,,Placements,R5017,TPP - Other
19/01/2023,3765764,Redacted Personal Data,206,Redacted Personal Data,RC502500,,Placements,R5017,TPP - Other
19/01/2023,3765765,Redacted Personal Data,249,Redacted Personal Data,RC502500,,Placements,R5017,TPP - Other
19/01/2023,3765766,Redacted Personal Data,130.77,Redacted Personal Data,RC507903,,Placements,R5017,TPP - Other
19/01/2023,3765767,Redacted Personal Data,121.08,Redacted Personal Data,RC508044,,Placements,R5017,TPP - Other
19/01/2023,3765768,Redacted Personal Data,295.62,Redacted Personal Data,RC300308,,Placements,R5017,TPP - Other
19/01/2023,3765769,Redacted Personal Data,163,Redacted Personal Data,RC506313,,Placements,R5017,TPP - Other
19/01/2023,3765770,Redacted Personal Data,289.74,Redacted Personal Data,RC301477,,Placements,R5017,TPP - Other
19/01/2023,3765771,Redacted Personal Data,249,Redacted Personal Data,RC505729,,Placements,R5017,TPP - Other
19/01/2023,3765772,Redacted Personal Data,249,Redacted Personal Data,RC505729,,Placements,R5017,TPP - Other
19/01/2023,3765773,Redacted Personal Data,289.7,Redacted Personal Data,RC301689,,Placements,R5017,TPP - Other
19/01/2023,3765774,Redacted Personal Data,145,Redacted Personal Data,RC301485,,Placements,R5017,TPP - Other
19/01/2023,3765775,Redacted Personal Data,5,Redacted Personal Data,RC302190,,UASC 16-17,R6292,Section 24 Payments
19/01/2023,3765776,Redacted Personal Data,61.22,Redacted Personal Data,RC302190,,UASC 16-17,R6293,Asylum Seekers Allowance
19/01/2023,3765777,Redacted Personal Data,495,Countrywide Residential Lettings Limited,RC301700,,Unaccompanied Asylum Seekers - Over 18,R4900,Accommodation Costs
19/01/2023,3765778,Redacted Personal Data,5,Redacted Personal Data,RC301476,,Unaccompanied Asylum Seekers - Over 18,R6292,Section 24 Payments
19/01/2023,3765779,Redacted Personal Data,100,Redacted Personal Data,RC301118,,Household Support Fund,R5017,TPP - Other
18/01/2023,3765780,48539/1,92,Redacted Personal Data,RC505078,,Carer Support,R6280,Direct Payments
18/01/2023,3765781,48539/2,184,Redacted Personal Data,RC506150,,Carer Support,R6280,Direct Payments
18/01/2023,3765782,48539/3,679.84,Redacted Personal Data,RC300077,,ASC S&R DPs PD,R6280,Direct Payments
18/01/2023,3765783,48539/4,138,Redacted Personal Data,RC506917,,Carer Support,R6280,Direct Payments
18/01/2023,3765784,48539/5,253,Redacted Personal Data,RC506641,,ASC S&R DPs MH,R6280,Direct Payments
18/01/2023,3765785,48539/6,138,Redacted Personal Data,RC506786,,Carer Support,R6280,Direct Payments
18/01/2023,3765786,48539/7,"3,864.00",Redacted Personal Data,RC506747,,ASC S&R DPs PD,R6280,Direct Payments
18/01/2023,3765787,48539/8,655.5,Redacted Personal Data,RC302000,,ASC S&R DPs PD,R6280,Direct Payments
18/01/2023,3765788,48539/9,330.68,Redacted Personal Data,RC302215,,ASC S&R DPs OP,R6280,Direct Payments
18/01/2023,3765789,48539/10,164.51,Redacted Personal Data,RC508792,,ASC S&R DPs OP,R6280,Direct Payments
18/01/2023,3765790,48539/11,92,Redacted Personal Data,RC301116,,Carer Support,R6280,Direct Payments
18/01/2023,3765791,48539/12,686.68,Redacted Personal Data,RC300365,,ASC S&R DPs LD,R6280,Direct Payments
18/01/2023,3765792,48539/13,"2,505.16",Redacted Personal Data,RC507744,,ASC S&R DPs LD,R6280,Direct Payments
18/01/2023,3765793,48539/14,705.4,Redacted Personal Data,RC301962,,ASC S&R DPs OP,R6280,Direct Payments
18/01/2023,3765794,48539/15,86.84,Redacted Personal Data,RC301099,,ASC S&R DPs OP,R6280,Direct Payments
18/01/2023,3765795,48539/16,138,Redacted Personal Data,RC300244,,Carer Support,R6280,Direct Payments
18/01/2023,3765796,48539/17,590.78,Redacted Personal Data,RC300503,,ASC S&R DPs OP,R6280,Direct Payments
18/01/2023,3765797,48539/18,623.84,Redacted Personal Data,RC300584,,ASC S&R DPs OP,R6280,Direct Payments
18/01/2023,3765798,48539/19,563.36,Redacted Personal Data,RC508054,,ASC S&R DPs LD,R6280,Direct Payments
18/01/2023,3765799,48539/20,"13,560.24",Redacted Personal Data,RC507361,,ASC S&R DPs LD,R6280,Direct Payments
18/01/2023,3765800,48539/21,586.32,Redacted Personal Data,RC509296,,ASC S&R DPs LD,R6280,Direct Payments
18/01/2023,3765801,48539/22,805.18,Redacted Personal Data,RC301415,,ASC S&R DPs OP,R6280,Direct Payments
18/01/2023,3765802,48539/23,"1,901.68",Redacted Personal Data,RC502586,,ASC S&R DPs PD,R6280,Direct Payments
18/01/2023,3765803,48539/24,276,Redacted Personal Data,RC502586,,Carer Support,R6280,Direct Payments
18/01/2023,3765804,48539/25,92,Redacted Personal Data,RC300557,,Carer Support,R6280,Direct Payments
18/01/2023,3765805,48539/26,184,Redacted Personal Data,RC300876,,Carer Support,R6280,Direct Payments
18/01/2023,3765806,48539/27,"3,581.80",Redacted Personal Data,RC507360,,ASC S&R DPs LD,R6280,Direct Payments
18/01/2023,3765807,48539/28,115,Redacted Personal Data,RC506275,,ASC S&R DPs OP,R6280,Direct Payments
18/01/2023,3765808,48539/29,"12,109.80",Redacted Personal Data,RC509308,,ASC S&R DPs LD,R6280,Direct Payments
18/01/2023,3765809,48539/30,"8,708.76",Redacted Personal Data,RC301536,,ASC S&R DPs LD,R6280,Direct Payments
18/01/2023,3765810,48539/31,5.4,Redacted Personal Data,RC301963,,ASC S&R DPs LD,R6280,Direct Payments
18/01/2023,3765811,48539/32,184,Redacted Personal Data,RC500328,,Carer Support,R6280,Direct Payments
18/01/2023,3765812,48539/33,"1,221.07",Redacted Personal Data,RC502467,,ASC S&R DPs LD,R6280,Direct Payments
18/01/2023,3765813,48539/34,736,Redacted Personal Data,RC301785,,ASC S&R DPs LD,R6280,Direct Payments
18/01/2023,3765814,48539/35,"1,556.20",Redacted Personal Data,RC502472,,ASC S&R DPs LD,R6280,Direct Payments
18/01/2023,3765815,48539/36,"3,768.80",Redacted Personal Data,RC300953,,ASC S&R DPs OP,R6280,Direct Payments
18/01/2023,3765816,48539/37,806.28,Redacted Personal Data,RC301584,,ASC S&R DPs LD,R6280,Direct Payments
18/01/2023,3765817,48539/38,184,Redacted Personal Data,RC300652,,Carer Support,R6280,Direct Payments
18/01/2023,3765818,48539/39,"1,721.90",Redacted Personal Data,RC506457,,ASC S&R DPs PD,R6280,Direct Payments
18/01/2023,3765819,48539/40,0,Redacted Personal Data,RC300806,,Carer Support,R6280,Direct Payments
18/01/2023,3765820,48539/41,184,Redacted Personal Data,RC300967,,Carer Support,R6280,Direct Payments
18/01/2023,3765821,48539/42,0,Redacted Personal Data,RC302029,,ASC S&R DPs OP,R6280,Direct Payments
18/01/2023,3765822,48539/43,661.56,Redacted Personal Data,RC302111,,ASC S&R DPs OP,R6280,Direct Payments
18/01/2023,3765823,48539/44,92,Redacted Personal Data,RC506412,,Carer Support,R6280,Direct Payments
18/01/2023,3765824,48539/45,"2,208.08",Redacted Personal Data,RC509164,,ASC S&R DPs LD,R6280,Direct Payments
18/01/2023,3765825,48539/46,"2,427.36",Redacted Personal Data,RC503306,,ASC S&R DPs OP,R6280,Direct Payments
18/01/2023,3765826,48539/47,0,Redacted Personal Data,RC509164,,Carer Support,R6280,Direct Payments
18/01/2023,3765827,48539/48,276,Redacted Personal Data,RC301134,,Carer Support,R6280,Direct Payments
18/01/2023,3765828,48539/49,"2,576.00",Redacted Personal Data,RC301749,,ASC S&R DPs OP,R6280,Direct Payments
18/01/2023,3765829,48539/50,368,Redacted Personal Data,RC300749,,Carer Support,R6280,Direct Payments
18/01/2023,3765830,48539/51,538.2,Redacted Personal Data,RC302293,,ASC S&R DPs OP,R6280,Direct Payments
18/01/2023,3765831,48539/52,276,Redacted Personal Data,RC300650,,ASC S&R DPs MH,R6280,Direct Payments
18/01/2023,3765832,48539/53,368,Redacted Personal Data,RC300727,,Carer Support,R6280,Direct Payments
18/01/2023,3765833,48539/54,120.05,Redacted Personal Data,RC302311,,ASC S&R DPs OP,R6280,Direct Payments
18/01/2023,3765834,48539/55,299,Redacted Personal Data,RC301411,,ASC S&R DPs PD,R6280,Direct Payments
18/01/2023,3765835,48539/56,302.8,Redacted Personal Data,RC301098,,ASC S&R DPs LD,R6280,Direct Payments
18/01/2023,3765836,48539/57,135.72,Redacted Personal Data,RC300950,,ASC S&R DPs OP,R6280,Direct Payments
18/01/2023,3765837,48539/58,0,Redacted Personal Data,RC302316,,ASC S&R DPs OP,R6280,Direct Payments
18/01/2023,3765838,48539/59,"1,288.00",Redacted Personal Data,RC302028,,ASC S&R DPs OP,R6280,Direct Payments
18/01/2023,3765839,48539/60,368,Redacted Personal Data,RC301120,,Carer Support,R6280,Direct Payments
18/01/2023,3765840,48539/61,"1,035.76",Redacted Personal Data,RC301272,,ASC S&R DPs LD,R6280,Direct Payments
18/01/2023,3765841,48539/62,80,Redacted Personal Data,RC301494,,ASC S&R DPs LD,R6280,Direct Payments
18/01/2023,3765842,48539/63,276,Redacted Personal Data,RC301945,,ASC S&R DPs PD,R6280,Direct Payments
18/01/2023,3765843,48539/64,92,Redacted Personal Data,RC301871,,Carer Support,R6280,Direct Payments
18/01/2023,3765844,48539/65,414,Redacted Personal Data,RC302216,,ASC S&R DPs PD,R6280,Direct Payments
18/01/2023,3765845,48539/66,480,Redacted Personal Data,RC301936,,ASC S&R DPs LD,R6280,Direct Payments
18/01/2023,3765846,48539/67,0,Redacted Personal Data,RC301924,,ASC S&R DPs LD,R6280,Direct Payments
18/01/2023,3765847,48539/68,276,Redacted Personal Data,RC302214,,ASC S&R DPs OP,R6280,Direct Payments
18/01/2023,3765848,48539/69,606.3,Redacted Personal Data,RC302217,,ASC S&R DPs OP,R6280,Direct Payments
18/01/2023,3765849,48539/70,387.36,Redacted Personal Data,RC302298,,ASC S&R DPs OP,R6280,Direct Payments
18/01/2023,3765850,48541/1,9,Disability Direct,RC503281,,ASC S&R DPs MH,R6280,Direct Payments
18/01/2023,3765851,48541/2,641.5,Disability Direct,RC503281,,ASC S&R DPs MH,R6280,Direct Payments
18/01/2023,3765852,48541/3,9,Disability Direct,RC503281,,ASC S&R DPs LD,R6280,Direct Payments
18/01/2023,3765853,48541/4,9,Disability Direct,RC503281,,ASC S&R DPs LD,R6280,Direct Payments
18/01/2023,3765854,48541/5,"4,916.56",Disability Direct,RC503281,,ASC S&R DPs LD,R6280,Direct Payments
18/01/2023,3765855,48541/6,"5,933.32",Disability Direct,RC503281,,ASC S&R DPs LD,R6280,Direct Payments
18/01/2023,3765856,48541/7,"1,110.64",Disability Direct,RC503281,,ASC S&R DPs LD,R6280,Direct Payments
18/01/2023,3765857,48541/8,193,Disability Direct,RC503281,,ASC S&R DPs MH,R6280,Direct Payments
18/01/2023,3765858,48541/9,138,Disability Direct,RC503281,,Carer Support,R6280,Direct Payments
18/01/2023,3765859,48541/10,158.57,Disability Direct,RC503281,,ASC S&R DPs LD,R6280,Direct Payments
18/01/2023,3765860,48541/11,655.68,Disability Direct,RC503281,,ASC S&R DPs LD,R6280,Direct Payments
18/01/2023,3765861,48541/12,9,Disability Direct,RC503281,,ASC S&R DPs LD,R6280,Direct Payments
18/01/2023,3765862,48541/13,"1,046.00",Disability Direct,RC503281,,ASC S&R DPs LD,R6280,Direct Payments
18/01/2023,3765863,48541/14,"1,941.00",Disability Direct,RC503281,,ASC S&R DPs OP,R6280,Direct Payments
18/01/2023,3765864,48541/15,149,Disability Direct,RC503281,,ASC S&R DPs MH,R6280,Direct Payments
18/01/2023,3765865,48541/16,9.02,Disability Direct,RC503281,,ASC S&R DPs OP,R6280,Direct Payments
18/01/2023,3765866,48541/17,"1,113.00",Disability Direct,RC503281,,ASC S&R DPs LD,R6280,Direct Payments
18/01/2023,3765867,48541/18,"1,081.48",Disability Direct,RC503281,,ASC S&R DPs LD,R6280,Direct Payments
18/01/2023,3765868,48541/19,377,Disability Direct,RC503281,,ASC S&R DPs MH,R6280,Direct Payments
18/01/2023,3765869,48541/20,241.47,Disability Direct,RC503281,,ASC S&R DPs LD,R6280,Direct Payments
18/01/2023,3765870,48541/21,320.56,Disability Direct,RC503281,,ASC S&R DPs PD,R6280,Direct Payments
18/01/2023,3765871,48541/22,"1,113.00",Disability Direct,RC503281,,ASC S&R DPs OP,R6280,Direct Payments
18/01/2023,3765872,48541/23,239,Disability Direct,RC503281,,ASC S&R DPs MH,R6280,Direct Payments
18/01/2023,3765873,48541/24,9,Disability Direct,RC503281,,ASC S&R DPs LD,R6280,Direct Payments
18/01/2023,3765874,48541/25,342.6,Disability Direct,RC503281,,ASC S&R DPs MH,R6280,Direct Payments
18/01/2023,3765875,48541/26,373.84,Disability Direct,RC503281,,ASC S&R DPs MH,R6280,Direct Payments
18/01/2023,3765876,48541/27,193,Disability Direct,RC503281,,ASC S&R DPs LD,R6280,Direct Payments
18/01/2023,3765877,48541/28,532.2,Disability Direct,RC503281,,ASC S&R DPs MH,R6280,Direct Payments
18/01/2023,3765878,48541/29,285,Disability Direct,RC503281,,ASC S&R DPs PD,R6280,Direct Payments
26/01/2023,3765879,Redacted Personal Data,106.85,Redacted Personal Data,RC502418,,Care Leavers,R4900,Accommodation Costs
26/01/2023,3765880,Redacted Personal Data,100,Redacted Personal Data,RC500229,,Care Leavers,R4900,Accommodation Costs
26/01/2023,3765881,Redacted Personal Data,103.65,Redacted Personal Data,RC500229,,Care Leavers,R4900,Accommodation Costs
26/01/2023,3765882,Redacted Personal Data,550,Redacted Personal Data,RC301656,,Care Leavers,R4900,Accommodation Costs
26/01/2023,3765883,Redacted Personal Data,100,Redacted Personal Data,RC507010,,Care Leavers,R4900,Accommodation Costs
26/01/2023,3765884,Redacted Personal Data,103.65,Redacted Personal Data,RC507010,,Care Leavers,R4900,Accommodation Costs
26/01/2023,3765885,Redacted Personal Data,100,Redacted Personal Data,RC301144,,Care Leavers,R4900,Accommodation Costs
26/01/2023,3765886,Redacted Personal Data,103.65,Redacted Personal Data,RC301144,,Care Leavers,R4900,Accommodation Costs
26/01/2023,3765887,Redacted Personal Data,203.56,Redacted Personal Data,RC301349,,Care Leavers,R4900,Accommodation Costs
26/01/2023,3765888,Redacted Personal Data,203.56,Redacted Personal Data,RC301349,,Care Leavers,R4900,Accommodation Costs
26/01/2023,3765889,Redacted Personal Data,61.22,Redacted Personal Data,RC301656,,Care Leavers,R6292,Section 24 Payments
26/01/2023,3765890,Redacted Personal Data,61.22,Redacted Personal Data,RC301917,,Care Leavers,R6292,Section 24 Payments
26/01/2023,3765891,Redacted Personal Data,162,Redacted Personal Data,RC302155,,Care Leavers,R6292,Section 24 Payments
26/01/2023,3765892,Redacted Personal Data,40,Redacted Personal Data,RC301590,,Care Leavers,R6292,Section 24 Payments
26/01/2023,3765893,Redacted Personal Data,29.75,Redacted Personal Data,RC301029,,Care Leavers,R6292,Section 24 Payments
26/01/2023,3765894,Redacted Personal Data,61.22,Redacted Personal Data,RC302269,,Care Leavers,R6292,Section 24 Payments
26/01/2023,3765895,Redacted Personal Data,64,Redacted Personal Data,RC508568,,Care Leavers,R6292,Section 24 Payments
26/01/2023,3765896,Redacted Personal Data,10,Redacted Personal Data,RC301475,,Care Leavers,R6292,Section 24 Payments
26/01/2023,3765897,Redacted Personal Data,5,Redacted Personal Data,RC302190,,UASC 16-17,R6292,Section 24 Payments
26/01/2023,3765898,Redacted Personal Data,17.3,Redacted Personal Data,RC302190,,UASC 16-17,R6292,Section 24 Payments
26/01/2023,3765899,Redacted Personal Data,61.22,Redacted Personal Data,RC302190,,UASC 16-17,R6293,Asylum Seekers Allowance
26/01/2023,3765900,Redacted Personal Data,465,Redacted Personal Data,RC506055,108245630,Unaccompanied Asylum Seekers - Over 18,R4900,Accommodation Costs
26/01/2023,3765901,Redacted Personal Data,284,Redacted Personal Data,RC508778,,Placements,R5017,TPP - Other
26/01/2023,3765902,Redacted Personal Data,188,Redacted Personal Data,RC506075,,Placements,R5017,TPP - Other
26/01/2023,3765903,Redacted Personal Data,284,Redacted Personal Data,RC506286,,Placements,R5017,TPP - Other
26/01/2023,3765904,Redacted Personal Data,188,Redacted Personal Data,RC300814,,Placements,R5017,TPP - Other
26/01/2023,3765905,Redacted Personal Data,284,Redacted Personal Data,RC301960,,Placements,R5017,TPP - Other
26/01/2023,3765906,Redacted Personal Data,284,Redacted Personal Data,RC301144,,Placements,R5017,TPP - Other
26/01/2023,3765907,Redacted Personal Data,284,Redacted Personal Data,RC507222,,Placements,R5017,TPP - Other
26/01/2023,3765908,Redacted Personal Data,188,Redacted Personal Data,RC301040,,Placements,R5017,TPP - Other
26/01/2023,3765909,Redacted Personal Data,188,Redacted Personal Data,RC301040,,Placements,R5017,TPP - Other
26/01/2023,3765910,Redacted Personal Data,284,Redacted Personal Data,RC301893,,Placements,R5017,TPP - Other
26/01/2023,3765911,Redacted Personal Data,143.95,Redacted Personal Data,RC301658,,Placements,R5017,TPP - Other
26/01/2023,3765912,Redacted Personal Data,188,Redacted Personal Data,RC302008,,Placements,R5017,TPP - Other
26/01/2023,3765913,Redacted Personal Data,188,Redacted Personal Data,RC302008,,Placements,R5017,TPP - Other
26/01/2023,3765914,Redacted Personal Data,165,Redacted Personal Data,RC302283,,Placements,R5017,TPP - Other
26/01/2023,3765915,Redacted Personal Data,188,Redacted Personal Data,RC302290,,Placements,R5017,TPP - Other
26/01/2023,3765916,Redacted Personal Data,165,Redacted Personal Data,RC302290,,Placements,R5017,TPP - Other
26/01/2023,3765917,Redacted Personal Data,249,Redacted Personal Data,RC508778,,Placements,R5017,TPP - Other
26/01/2023,3765918,Redacted Personal Data,249,Redacted Personal Data,RC506075,,Placements,R5017,TPP - Other
26/01/2023,3765919,Redacted Personal Data,249,Redacted Personal Data,RC506286,,Placements,R5017,TPP - Other
26/01/2023,3765920,Redacted Personal Data,249,Redacted Personal Data,RC300814,,Placements,R5017,TPP - Other
26/01/2023,3765921,Redacted Personal Data,197,Redacted Personal Data,RC301960,,Placements,R5017,TPP - Other
26/01/2023,3765922,Redacted Personal Data,249,Redacted Personal Data,RC301144,,Placements,R5017,TPP - Other
26/01/2023,3765923,Redacted Personal Data,249,Redacted Personal Data,RC507222,,Placements,R5017,TPP - Other
26/01/2023,3765924,Redacted Personal Data,142,Redacted Personal Data,RC301040,,Placements,R5017,TPP - Other
26/01/2023,3765925,Redacted Personal Data,107,Redacted Personal Data,RC301040,,Placements,R5017,TPP - Other
26/01/2023,3765926,Redacted Personal Data,197,Redacted Personal Data,RC507547,,Placements,R5017,TPP - Other
26/01/2023,3765927,Redacted Personal Data,142,Redacted Personal Data,RC302008,,Placements,R5017,TPP - Other
26/01/2023,3765928,Redacted Personal Data,107,Redacted Personal Data,RC302008,,Placements,R5017,TPP - Other
26/01/2023,3765929,Redacted Personal Data,142,Redacted Personal Data,RC302283,,Placements,R5017,TPP - Other
26/01/2023,3765930,Redacted Personal Data,163,Redacted Personal Data,RC508167,,Placements,R5017,TPP - Other
26/01/2023,3765931,Redacted Personal Data,167.4,Redacted Personal Data,RC507009,,Placements,R5017,TPP - Other
26/01/2023,3765932,Redacted Personal Data,168.13,Redacted Personal Data,RC507009,,Placements,R5017,TPP - Other
26/01/2023,3765933,Redacted Personal Data,139.85,Redacted Personal Data,RC503878,,Placements,R5017,TPP - Other
26/01/2023,3765934,Redacted Personal Data,404.59,Redacted Personal Data,RC508604,,Placements,R5017,TPP - Other
26/01/2023,3765935,Redacted Personal Data,120,Redacted Personal Data,RC507391,,Placements,R5017,TPP - Other
26/01/2023,3765936,Redacted Personal Data,124,Redacted Personal Data,RC300006,,Placements,R5017,TPP - Other
26/01/2023,3765937,Redacted Personal Data,206,Redacted Personal Data,RC502500,,Placements,R5017,TPP - Other
26/01/2023,3765938,Redacted Personal Data,249,Redacted Personal Data,RC502500,,Placements,R5017,TPP - Other
26/01/2023,3765939,Redacted Personal Data,130.77,Redacted Personal Data,RC507903,,Placements,R5017,TPP - Other
26/01/2023,3765940,Redacted Personal Data,121.08,Redacted Personal Data,RC508044,,Placements,R5017,TPP - Other
26/01/2023,3765941,Redacted Personal Data,295.62,Redacted Personal Data,RC300308,,Placements,R5017,TPP - Other
26/01/2023,3765942,Redacted Personal Data,163,Redacted Personal Data,RC506313,,Placements,R5017,TPP - Other
26/01/2023,3765943,Redacted Personal Data,289.74,Redacted Personal Data,RC301477,,Placements,R5017,TPP - Other
26/01/2023,3765944,Redacted Personal Data,249,Redacted Personal Data,RC505729,,Placements,R5017,TPP - Other
26/01/2023,3765945,Redacted Personal Data,249,Redacted Personal Data,RC505729,,Placements,R5017,TPP - Other
26/01/2023,3765946,Redacted Personal Data,289.7,Redacted Personal Data,RC301689,,Placements,R5017,TPP - Other
26/01/2023,3765947,Redacted Personal Data,145,Redacted Personal Data,RC301485,,Placements,R5017,TPP - Other
26/01/2023,3765948,Redacted Personal Data,32,Redacted Personal Data,RC302132,,Care Leavers,R6292,Section 24 Payments
26/01/2023,3765949,Redacted Personal Data,40,Redacted Personal Data,RC302152,,UASC 16-17,R6292,Section 24 Payments
26/01/2023,3765950,Redacted Personal Data,66,Redacted Personal Data,RC300628,,Care Leavers,R6292,Section 24 Payments
26/01/2023,3765951,Redacted Personal Data,500,Redacted Personal Data,RC302283,,Placements,R5017,TPP - Other
26/01/2023,3765952,Redacted Personal Data,600,Redacted Personal Data,RC300004,,Aiming High,R4400,Professional Fees
23/01/2023,3765960,48585/1,"1,020.00",Aberdeen House Care Limited,RC506722,,Older People,R5028,TPP - Residental Care
23/01/2023,3765961,48585/2,"1,116.00",Aberdeen House Care Limited,RC506722,,Older People,R5028,TPP - Residental Care
23/01/2023,3765962,48585/3,"1,046.00",Aberdeen House Care Limited,RC506722,,Older People,R5028,TPP - Residental Care
23/01/2023,3765963,48585/4,"1,116.00",Aberdeen House Care Limited,RC506722,,Older People,R5028,TPP - Residental Care
23/01/2023,3765964,48585/5,"1,046.00",Aberdeen House Care Limited,RC506722,,Older People,R5028,TPP - Residental Care
23/01/2023,3765966,48585/7,"1,500.00",Aberdeen House Care Limited,RC506722,,Older People,R5028,TPP - Residental Care
23/01/2023,3765967,48616/8,"3,749.48",Leonard Cheshire Disability,RC302253,,Physical Disability,R5028,TPP - Residental Care
23/01/2023,3765968,48614/9,"1,700.00",Askham Village Community Ltd,RC302186,,Physical Disability,R5034,TPP - Nursing Care
23/01/2023,3765969,48593/10,"1,800.00",Alysia Caring,RC301932,,Physical Disability,R5028,TPP - Residental Care
23/01/2023,3765970,48593/11,"7,971.43",Alysia Caring,RC301932,,Mental Health,R5025,TPP - Short Term Care
23/01/2023,3765971,48593/12,"7,071.43",Alysia Caring,RC301932,,Older People,R5028,TPP - Residental Care
23/01/2023,3765972,48593/13,"1,800.00",Alysia Caring,RC301932,,Older People,R5028,TPP - Residental Care
23/01/2023,3765973,48594/14,"1,046.00",Kross Investments Ltd T/A Belton House Retirement Home,RC502319,,Older People,R5028,TPP - Residental Care
23/01/2023,3765974,48594/15,"1,116.00",Kross Investments Ltd T/A Belton House Retirement Home,RC502319,,Mental Health,R5025,TPP - Short Term Care
23/01/2023,3765975,48594/16,"1,116.00",Kross Investments Ltd T/A Belton House Retirement Home,RC502319,,Older People,R5028,TPP - Residental Care
23/01/2023,3765976,48594/17,"1,116.00",Kross Investments Ltd T/A Belton House Retirement Home,RC502319,,Older People,R5028,TPP - Residental Care
23/01/2023,3765977,48594/18,"1,046.00",Kross Investments Ltd T/A Belton House Retirement Home,RC502319,,Older People,R5028,TPP - Residental Care
23/01/2023,3765978,48594/19,"1,116.00",Kross Investments Ltd T/A Belton House Retirement Home,RC502319,,Older People,R5028,TPP - Residental Care
23/01/2023,3765979,48594/20,"1,116.00",Kross Investments Ltd T/A Belton House Retirement Home,RC502319,,Older People,R5028,TPP - Residental Care
23/01/2023,3765980,48626/21,"1,252.00",Braceborough Hall,RC502352,,Older People,R5028,TPP - Residental Care
23/01/2023,3765982,48601/23,"1,230.00",Broadoak Group Of Care Homes (Grange),RC502363,,Older People,R5028,TPP - Residental Care
23/01/2023,3765983,48628/24,"2,138.64",Rutland House Community Trust Ltd,RC502287,,ASC S&R Homecare LD,R5029,TPP - Home Care
23/01/2023,3765984,48628/25,"1,783.50",Rutland House Community Trust Ltd,RC502287,,ASC S&R Homecare LD,R5029,TPP - Home Care
23/01/2023,3765985,48628/26,754,Rutland House Community Trust Ltd,RC502287,,ASC S&R Homecare PD,R5029,TPP - Home Care
23/01/2023,3765986,48586/27,"1,116.00",Chater Lodge Care Home,RC502286,,Older People,R5028,TPP - Residental Care
23/01/2023,3765987,48586/28,"1,116.00",Chater Lodge Care Home,RC502286,,Older People,R5028,TPP - Residental Care
23/01/2023,3765988,48586/29,"1,116.00",Chater Lodge Care Home,RC502286,,Older People,R5028,TPP - Residental Care
23/01/2023,3765989,48586/30,"1,116.00",Chater Lodge Care Home,RC502286,,Older People,R5028,TPP - Residental Care
23/01/2023,3765990,48602/31,"1,919.50",Chestnuts (Arnesby) Limited,RC506807,,Learning Disability,R5028,TPP - Residental Care
23/01/2023,3765991,48602/32,"2,387.50",Chestnuts (Arnesby) Limited,RC506807,,Learning Disability,R5028,TPP - Residental Care
23/01/2023,3765992,48603/33,"1,380.00",Royal Masonic Benevolent Institution No 4 A/C,RC508527,,Older People,R5034,TPP - Nursing Care
23/01/2023,3765993,48599/34,"1,134.00",Whitefriars,RC502306,,Older People,R5028,TPP - Residental Care
23/01/2023,3765994,48604/35,"2,064.18",PJ Care Ltd,RC507400,,Memory and Cognitive,R5028,TPP - Residental Care
23/01/2023,3765995,48604/36,"2,014.18",PJ Care Ltd,RC507400,,Older People,R5028,TPP - Residental Care
23/01/2023,3765996,48605/37,"1,200.00",St Bernard's Hallaton Manor Ltd,RC502292,,Older People,R5034,TPP - Nursing Care
23/01/2023,3765997,48611/38,"7,144.70",Outcomes First Group,RC501992,,Learning Disability,R5028,TPP - Residental Care
23/01/2023,3765998,48615/39,"1,700.00",Hunters Lodge Retirement Home Limited,RC302237,,Older People,R5025,TPP - Short Term Care
23/01/2023,3765999,48606/40,"6,448.06",Kisimul Group Ltd,RC506920,,Learning Disability,R5028,TPP - Residental Care
23/01/2023,3766000,48607/41,"1,276.00",Leicestershire County Care Ltd,RC509037,,Older People,R5028,TPP - Residental Care
23/01/2023,3766001,48608/42,"1,027.94",Longueville Court Care Home,RC509439,,Older People,R5034,TPP - Nursing Care
23/01/2023,3766002,48595/43,650,Manton Hall (Foundation),RC502541,,Older People,R5028,TPP - Residental Care
23/01/2023,3766003,48595/44,"1,116.00",Manton Hall (Foundation),RC502541,,Older People,R5028,TPP - Residental Care
23/01/2023,3766004,48595/45,"1,116.00",Manton Hall (Foundation),RC502541,,Older People,R5028,TPP - Residental Care
23/01/2023,3766005,48595/46,-79.72,Manton Hall (Foundation),RC502541,,Older People,R5028,TPP - Residental Care
23/01/2023,3766006,48595/47,"3,587.14",Manton Hall (Foundation),RC502541,,Older People,R5028,TPP - Residental Care
23/01/2023,3766008,48595/49,"1,100.00",Manton Hall (Foundation),RC502541,,Older People,R5028,TPP - Residental Care
23/01/2023,3766009,48595/50,558,Manton Hall (Foundation),RC502541,,Older People,R5028,TPP - Residental Care
23/01/2023,3766010,48595/51,"1,116.00",Manton Hall (Foundation),RC502541,,Older People,R5028,TPP - Residental Care
23/01/2023,3766011,48595/52,"2,152.29",Manton Hall (Foundation),RC502541,,Older People,R5028,TPP - Residental Care
23/01/2023,3766012,48595/53,"1,116.00",Manton Hall (Foundation),RC502541,,Older People,R5028,TPP - Residental Care
23/01/2023,3766013,48595/54,"1,046.00",Manton Hall (Foundation),RC502541,,Older People,R5028,TPP - Residental Care
23/01/2023,3766014,48595/55,"1,116.00",Manton Hall (Foundation),RC502541,,Older People,R5028,TPP - Residental Care
23/01/2023,3766015,48595/56,"1,116.00",Manton Hall (Foundation),RC502541,,Older People,R5028,TPP - Residental Care
23/01/2023,3766016,48595/57,0,Manton Hall (Foundation),RC502541,,Older People,R5028,TPP - Residental Care
23/01/2023,3766017,48595/58,"1,116.00",Manton Hall (Foundation),RC502541,,Older People,R5028,TPP - Residental Care
23/01/2023,3766018,48592/59,"2,722.50",Ardale (Oakham) Limited,RC301619,,Older People,R5028,TPP - Residental Care
23/01/2023,3766019,48592/60,"2,700.00",Ardale (Oakham) Limited,RC301619,,Older People,R5028,TPP - Residental Care
23/01/2023,3766020,48600/61,"2,852.00",Orchard Court Leicester Ltd,RC300743,,Learning Disability,R5028,TPP - Residental Care
23/01/2023,3766021,48613/62,"1,342.28",Orchard Manor View Ltd,RC302140,,Older People,R5028,TPP - Residental Care
23/01/2023,3766022,48624/63,"3,982.48",Peaker Park Care Village,RC507500,,Older People,R5028,TPP - Residental Care
23/01/2023,3766023,48624/64,"1,600.00",Peaker Park Care Village,RC507500,,Older People,R5034,TPP - Nursing Care
23/01/2023,3766024,48624/65,"1,678.90",Peaker Park Care Village,RC507500,,Older People,R5028,TPP - Residental Care
23/01/2023,3766025,48598/66,"3,043.40",Portland College,RC508221,117 7675 47,Learning Disability,R5028,TPP - Residental Care
23/01/2023,3766026,48609/67,"1,144.72",Craegmoor Mar Lodge Priory,RC502624,,Learning Disability,R5028,TPP - Residental Care
23/01/2023,3766027,48587/68,"2,415.00",Prime Life Ltd,RC502626,729 8397 74,Older People,R5028,TPP - Residental Care
23/01/2023,3766028,48587/69,"2,415.00",Prime Life Ltd,RC502626,729 8397 74,Older People,R5028,TPP - Residental Care
23/01/2023,3766029,48587/70,"1,700.00",Prime Life Ltd,RC502626,729 8397 74,Older People,R5028,TPP - Residental Care
23/01/2023,3766030,48596/71,"1,116.00",Prime Life Ltd,RC502626,729 8397 74,Older People,R5028,TPP - Residental Care
23/01/2023,3766031,48596/72,"1,700.00",Prime Life Ltd,RC502626,729 8397 74,Older People,R5028,TPP - Residental Care
23/01/2023,3766032,48596/73,"1,116.00",Prime Life Ltd,RC502626,729 8397 74,Older People,R5028,TPP - Residental Care
23/01/2023,3766033,48596/74,408.97,Prime Life Ltd,RC502626,729 8397 74,Older People,R5028,TPP - Residental Care
23/01/2023,3766034,48610/75,"1,146.00",Roman Park Ltd,RC502283,,Learning Disability,R5028,TPP - Residental Care
23/01/2023,3766035,48584/76,500,Roman Park Ltd (Day Care),RC300484,,ASC S&R Daycare LD,R5030,TPP - Daycare
23/01/2023,3766036,48612/77,"1,400.00",V & L Corporation Limited,RC302121,,Older People,R5028,TPP - Residental Care
23/01/2023,3766037,48619/78,"2,453.08",Choice Ltd T/A Stoke Lodge,RC300621,,Mental Health,R5028,TPP - Residental Care
23/01/2023,3766038,48620/79,"1,252.00",Tallington Care Home,RC507295,,Older People,R5028,TPP - Residental Care
23/01/2023,3766039,48625/80,"1,390.84",The Amwell Care Home,RC300501,,Older People,R5028,TPP - Residental Care
23/01/2023,3766040,48622/81,"5,870.16",The Hollies,RC502822,,Learning Disability,R5028,TPP - Residental Care
23/01/2023,3766041,48623/82,"1,450.00",The Linkage Community Trust,RC502300,,Learning Disability,R5028,TPP - Residental Care
23/01/2023,3766042,48588/83,"2,377.40",The Lodge Trust,RC501110,,Learning Disability,R5028,TPP - Residental Care
23/01/2023,3766043,48588/84,"2,755.50",The Lodge Trust,RC501110,,Learning Disability,R5028,TPP - Residental Care
23/01/2023,3766044,48617/85,"5,892.80",Cristalcare Ltd,RC300259,,Learning Disability,R5028,TPP - Residental Care
23/01/2023,3766045,48618/86,"3,488.26",Langley House Trust,RC300376,,Mental Health,R5028,TPP - Residental Care
23/01/2023,3766046,48597/87,"1,116.00",Tixover House Care Home,RC502297,,Older People,R5028,TPP - Residental Care
23/01/2023,3766047,48597/88,"1,116.00",Tixover House Care Home,RC502297,,Older People,R5028,TPP - Residental Care
23/01/2023,3766048,48597/89,"1,216.00",Tixover House Care Home,RC502297,,Physical Disability,R5034,TPP - Nursing Care
23/01/2023,3766049,48597/90,"1,900.00",Tixover House Care Home,RC502297,,Older People,R5028,TPP - Residental Care
23/01/2023,3766050,48597/91,"2,160.00",Tixover House Care Home,RC502297,,Older People,R5028,TPP - Residental Care
23/01/2023,3766051,48597/92,"1,116.00",Tixover House Care Home,RC502297,,Older People,R5028,TPP - Residental Care
23/01/2023,3766052,48630/93,"1,019.44",TML Care Solutions Ltd,RC300982,,ASC S&R Homecare MH,R5029,TPP - Home Care
23/01/2023,3766053,48630/94,509.72,TML Care Solutions Ltd,RC300982,,ASC S&R Homecare MH,R5029,TPP - Home Care
23/01/2023,3766054,48621/95,"4,066.36",Voyage Care Ltd,RC502282,787 4551 80,Learning Disability,R5028,TPP - Residental Care
23/01/2023,3766055,48629/96,"1,058.58",Rutland House Community Trust Ltd,RC502287,,ASC S&R Homecare LD,R5029,TPP - Home Care
23/01/2023,3766056,48629/97,"2,514.58",Rutland House Community Trust Ltd,RC502287,,Learning Disability,R5028,TPP - Residental Care
23/01/2023,3766057,48629/98,"1,058.58",Rutland House Community Trust Ltd,RC502287,,Learning Disability,R5028,TPP - Residental Care
23/01/2023,3766058,48590/99,"1,936.96",Rutland House Community Trust Ltd,RC502287,,Learning Disability,R5028,TPP - Residental Care
23/01/2023,3766059,48590/100,"2,042.64",Rutland House Community Trust Ltd,RC502287,,Learning Disability,R5028,TPP - Residental Care
23/01/2023,3766060,48590/101,"2,321.60",Rutland House Community Trust Ltd,RC502287,,Learning Disability,R5028,TPP - Residental Care
23/01/2023,3766061,48590/102,"1,936.96",Rutland House Community Trust Ltd,RC502287,,Learning Disability,R5028,TPP - Residental Care
23/01/2023,3766062,48627/103,696,Rutland House Community Trust Ltd,RC502287,,ASC S&R Homecare LD,R5029,TPP - Home Care
23/01/2023,3766063,48589/104,"1,046.00",Wisteria House,RC502309,,Older People,R5028,TPP - Residental Care
01/01/2023,60066200,2080031,"2,724.50",Weightmans LLP,RC502198,974 8257 69,Legal Services,R4400,Professional Fees
01/01/2023,60069902,100142065,"1,470.50",Leicestershire County Council (Treasurers Dept),RC502058,115 3371 02,Human Resources,R4400,Professional Fees
01/01/2023,60069934,P17440,"8,601.40",Recycle Force Ltd,RC302063,,Waste Management,R5021,TPP - Waste Disposal
01/01/2023,60070183,100145048,"1,440.00",Leicestershire County Council (Treasurers Dept),RC502058,115 3371 02,Human Resources,R4400,Professional Fees
01/01/2023,60070458,I505358,279,Iliffe Media Publishing Ltd,RC501920,261 6151 24,Highways Management,R4317,Non Staff Advertising
01/01/2023,60070721,I503314,139.5,Iliffe Media Publishing Ltd,RC501920,261 6151 24,Highways Management,R4317,Non Staff Advertising
01/01/2023,60070722,I505359,294.5,Iliffe Media Publishing Ltd,RC501920,261 6151 24,Capital Programme Places - Highways,C1010,Capital Fees & Charges
01/01/2023,60070724,I508007,139.5,Iliffe Media Publishing Ltd,RC501920,261 6151 24,Highways Management,R4317,Non Staff Advertising
01/01/2023,60070725,I508008,139.5,Iliffe Media Publishing Ltd,RC501920,261 6151 24,Highways Management,R4317,Non Staff Advertising
01/01/2023,60070726,I508010,341,Iliffe Media Publishing Ltd,RC501920,261 6151 24,Capital Programme Places - Highways,C1010,Capital Fees & Charges
01/01/2023,60070727,I508011,170.5,Iliffe Media Publishing Ltd,RC501920,261 6151 24,Highways Management,R4317,Non Staff Advertising
01/01/2023,60070728,I508012,341,Iliffe Media Publishing Ltd,RC501920,261 6151 24,Drainage and Jetting,R4317,Non Staff Advertising
01/01/2023,60070729,I508013,248,Iliffe Media Publishing Ltd,RC501920,261 6151 24,Highways Management,R4317,Non Staff Advertising
01/01/2023,60070982,I510305,139.5,Iliffe Media Publishing Ltd,RC501920,261 6151 24,Highways Management,R4317,Non Staff Advertising
01/01/2023,60070983,I510306,170.5,Iliffe Media Publishing Ltd,RC501920,261 6151 24,Highways Management,R4317,Non Staff Advertising
01/01/2023,60071056,INV-0083,80,DRC Electrical Services Ltd,RC302119,,Property Services Rechargeable Works,R2003,R & M - Emergency Works
01/01/2023,60071190,29068,615.55,Vogal Group Ltd,RC300065,551 0785 51,Central Maintenance,R2003,R & M - Emergency Works
01/01/2023,60071206,I512442,139.5,Iliffe Media Publishing Ltd,RC501920,261 6151 24,Highways Management,R4317,Non Staff Advertising
01/01/2023,60071207,I512443,279,Iliffe Media Publishing Ltd,RC501920,261 6151 24,Highways Management,R4317,Non Staff Advertising
01/01/2023,60071208,I512444,248,Iliffe Media Publishing Ltd,RC501920,261 6151 24,Drainage and Jetting,R4317,Non Staff Advertising
01/01/2023,60071393,3004665994 - 1/12/22,"6,492.91",TotalEnergies,RC507575,689638949,Admin Buildings,R2100,Electricity
01/01/2023,60071395,3005142481 - 1/12/22,"3,077.75",TotalEnergies,RC507575,689638949,The King Centre,R2100,Electricity
01/01/2023,60071425,11966,275,Manor Welding & Fabrication Ltd,RC502155,550 8256 44,Central Maintenance,R2004,R & M - Programmed
01/01/2023,60071432,I514574,341,Iliffe Media Publishing Ltd,RC501920,261 6151 24,Highways Management,R4317,Non Staff Advertising
01/01/2023,60071433,I514575,341,Iliffe Media Publishing Ltd,RC501920,261 6151 24,Public Rights of Way,R4317,Non Staff Advertising
01/01/2023,60071434,I514576,139.5,Iliffe Media Publishing Ltd,RC501920,261 6151 24,Highways Management,R4317,Non Staff Advertising
01/01/2023,60071569,I517325,170.5,Iliffe Media Publishing Ltd,RC501920,261 6151 24,Highways Management,R4317,Non Staff Advertising
01/01/2023,60071641,2125317,"7,124.00",Weightmans LLP,RC502198,974 8257 69,Legal Services,R4400,Professional Fees
01/01/2023,60071656,172199,214.41,Citipost Mail Ltd,RC300882,881 8531 94,Reprographics & Post,R4503,Postage
01/01/2023,60071903,172472,245.8,Citipost Mail Ltd,RC300882,881 8531 94,Reprographics & Post,R4503,Postage
01/01/2023,60071954,832366,"36,285.72",FCC Recycling (UK) Ltd,RC502258,637 8808 92,Waste Management,R5021,TPP - Waste Disposal
01/01/2023,60071963,I519602,170.5,Iliffe Media Publishing Ltd,RC501920,261 6151 24,Highways Management,R4317,Non Staff Advertising
01/01/2023,60071999,SLS474756,358.53,MG Recycling Limited,RC301398,333 2986 91,Waste Management,R5021,TPP - Waste Disposal
01/01/2023,60072103,OP/I952420,324.21,Phoenix Software Ltd,RC500565,755 3490 15,Early Intervention Youth Services,R4531,Computing - Software
01/01/2023,60072112,INV541175,719.5,Health Management Ltd,RC509363,792 2506 21,Human Resources,R4400,Professional Fees
01/01/2023,60072120,OP/I952601,134.89,Phoenix Software Ltd,RC500565,755 3490 15,SEN Operations,R4530,Computing - Hardware
01/01/2023,60072130,29125,100,Vogal Group Ltd,RC300065,551 0785 51,Central Maintenance,R2004,R & M - Programmed
01/01/2023,60072141,3969955,"1,480.00",Venn Group Limited,RC302061,766 7117 04,Community Care Finance,R1100,Agency Staff
01/01/2023,60072148,13824,389.7,George Walker Tree Care Ltd,RC501703,566 0980 16,Libraries,R2075,Grounds Maintenance - Contract
01/01/2023,60072212,SLS476864,394.06,MG Recycling Limited,RC301398,333 2986 91,Waste Management,R5021,TPP - Waste Disposal
01/01/2023,60072231,29139,56.4,Vogal Group Ltd,RC300065,551 0785 51,Central Maintenance,R2004,R & M - Programmed
01/01/2023,60072254,29131,445.1,Vogal Group Ltd,RC300065,551 0785 51,Central Maintenance,R2300,Business Rates
01/01/2023,60072255,833078,"5,984.55",FCC Recycling (UK) Ltd,RC502258,637 8808 92,Waste Management,R5021,TPP - Waste Disposal
01/01/2023,60072261,11817,"2,700.00",Permanent Futures Ltd,RC508456,790331045,ASC Reforms,R4400,Professional Fees
01/01/2023,60072262,11818,"2,700.00",Permanent Futures Ltd,RC508456,790331045,ASC Reforms,R4400,Professional Fees
01/01/2023,60072263,11819,"2,700.00",Permanent Futures Ltd,RC508456,790331045,ASC Reforms,R4400,Professional Fees
01/01/2023,60072264,11820,"2,700.00",Permanent Futures Ltd,RC508456,790331045,ASC Reforms,R4400,Professional Fees
01/01/2023,60072265,OP/I952882,432.68,Phoenix Software Ltd,RC500565,755 3490 15,Property Services,C1002,Computer Software
01/01/2023,60072277,29141,75,Vogal Group Ltd,RC300065,551 0785 51,The King Centre,R2003,R & M - Emergency Works
01/01/2023,60072338,19636a,403.96,Corby Kilns Ltd,RC509365,694 8753 67,Community Learning,R4000,Furniture & Equipment
01/01/2023,60072351,INV-0951,83.33,G D Sleath Electronics Ltd,RC508495,775 4891 75,Central Maintenance,R2003,R & M - Emergency Works
01/01/2023,60072359,46062,211.25,Melton Mowbray Tyre Recycling Centre,RC507527,970 505 131,Waste Management,R5021,TPP - Waste Disposal
01/01/2023,60072374,Redacted Personal Data,600,Redacted Personal Data,RC300026,241 1337 49,Amenity Grass (Urban Grass & Public Open Spaces),R2076,Grounds Maintenance - Non Contract
01/01/2023,60072376,CBTW/757,115,CoramBaaf Ltd,RC500071,974 9745 51,"Training, Confs & Seminars",R4405,Training Charges
01/01/2023,60072382,OP/I952992,216.34,Phoenix Software Ltd,RC500565,755 3490 15,The King Centre,C1002,Computer Software
01/01/2023,60072394,CD-223380827,70.82,Waterlogic GB Limited,RC300217,828 382 407,Admin Buildings,R4000,Furniture & Equipment
01/01/2023,60072406,3972384,"1,480.00",Venn Group Limited,RC302061,766 7117 04,Community Care Finance,R1100,Agency Staff
01/01/2023,60072415,CD-223399114,13.54,Waterlogic GB Limited,RC300217,828 382 407,Admin Buildings,R4000,Furniture & Equipment
01/01/2023,60072445,29148,260,Vogal Group Ltd,RC300065,551 0785 51,Central Maintenance,R2003,R & M - Emergency Works
01/01/2023,60072470,OP/I953747,42.5,Phoenix Software Ltd,RC500565,755 3490 15,IT Operational Support,C1002,Computer Software
01/01/2023,60072471,OP/I953802,216.34,Phoenix Software Ltd,RC500565,755 3490 15,Development Control,C1002,Computer Software
01/01/2023,60072482,INV-1177,"1,280.00",Truetech Integrated Ltd,RC300629,211796217,Central Maintenance,R2004,R & M - Programmed
01/01/2023,60072487,DR36566,279.5,Wilkin Chapman LLP,RC508417,127 9424 35,Revenues,R4400,Professional Fees
01/01/2023,60072492,111522,"1,741.44",Ruddocks,RC507011,613 5307 70,Elections - Local,R4300,Printing & Photocopying
01/01/2023,60072494,211336,3.25,The Card Processing Advisory Service Ltd,RC301048,236 6645 87,Corporate Financial Expenses,R4401,Fees and Charges
01/01/2023,60072502,G1229238,"3,091.09",Espo (Gas),RC501573,705180561,Oakham Enterprise Park,R2101,Gas
01/01/2023,60072511,OP/I953547,477.12,Phoenix Software Ltd,RC500565,755 3490 15,Business Intelligence,R4530,Computing - Hardware
01/01/2023,60072518,INSURED RECOVERY - NOV 22,"5,663.37",Zurich Municipal,RC502261,107 8316 77,Corporate Insurance,R4962,Insurance Claim Expenditure
01/01/2023,60072519,6378,50,One off Invoice Payments - BACS,RC300802,,Elections - Local,R4000,Furniture & Equipment
01/01/2023,60072530,OP/I951511,-97.65,Phoenix Software Ltd,RC500565,755 3490 15,Business Intelligence,R4503,Postage
01/01/2023,60072532,9066310110,24.78,Royal Mail Group Ltd,RC500772,243 1700 02,Elections - Administration,R4503,Postage
01/01/2023,60072549,847501213,314,Thomson Reuters Professional,RC506803,900548743,Elections - Administration,R4701,Subscriptions
01/01/2023,60072553,6795510000/000013931843,"21,022.96",EDF Energy Customers Plc,RC501509,523 0412 02,Oakham Enterprise Park,R2100,Electricity
01/01/2023,60072554,172918,263.97,Citipost Mail Ltd,RC300882,881 8531 94,Reprographics & Post,R4503,Postage
01/01/2023,60072569,OP/I953963,216.34,Phoenix Software Ltd,RC500565,755 3490 15,Safeguarding QA,C1002,Computer Software
01/01/2023,60072574,260536,"1,295.00",James Andrews Recruitment Solutions,RC302195,976026696,Housing Options Team,R1100,Agency Staff
01/01/2023,60072575,SIN190984,638.99,Ambitions Personnel Limited,RC302090,GB613557153,Childrens Social Care Staffing,R1100,Agency Staff
01/01/2023,60072577,6790534,18.5,Espo,RC502268,705 1805 61,Libraries,R4000,Furniture & Equipment
01/01/2023,60072596,53952,"4,500.00",Wilks Head & Eve LLP,RC301523,239360064,Finance,R4400,Professional Fees
01/01/2023,60072601,LQP589485,"1,449.00",Liquid Personnel Ltd,RC302142,,DOLS,R1100,Agency Staff
01/01/2023,60072602,LQP589486,"1,554.00",Liquid Personnel Ltd,RC302142,,ASC Support and Review Staffing,R1100,Agency Staff
01/01/2023,60072610,833481,"36,677.54",FCC Recycling (UK) Ltd,RC502258,637 8808 92,Waste Management,R5021,TPP - Waste Disposal
01/01/2023,60072612,25571,145,Word Language Services Limited,RC300901,243 5458 05,Hospital Discharge and Therapy,R4400,Professional Fees
01/01/2023,60072613,25575,145,Word Language Services Limited,RC300901,243 5458 05,"OT's, Aids & Equipment",R4400,Professional Fees
01/01/2023,60072614,25583,76,Word Language Services Limited,RC300901,243 5458 05,UASC 16-17,R4400,Professional Fees
01/01/2023,60072615,27764,75.6,Word Language Services Limited,RC300901,243 5458 05,UASC 16-17,R4400,Professional Fees
01/01/2023,60072622,173100,311.82,Citipost Mail Ltd,RC300882,881 8531 94,Reprographics & Post,R4503,Postage
01/01/2023,60072624,27577,75.98,Word Language Services Limited,RC300901,243 5458 05,Homes for Ukraine,R4400,Professional Fees
01/01/2023,60072625,27578,38,Word Language Services Limited,RC300901,243 5458 05,Homes for Ukraine,R4400,Professional Fees
01/01/2023,60072626,28235,38,Word Language Services Limited,RC300901,243 5458 05,Homes for Ukraine,R4400,Professional Fees
01/01/2023,60072627,28236,48,Word Language Services Limited,RC300901,243 5458 05,Homes for Ukraine,R4400,Professional Fees
01/01/2023,60072628,28237,38,Word Language Services Limited,RC300901,243 5458 05,Homes for Ukraine,R4400,Professional Fees
01/01/2023,60072629,1440,"1,312.50",Skeen Computing Services Limited,RC509489,428 5652 32,Digital Rutland,R4400,Professional Fees
01/01/2023,60072632,2660,200,SOLCOM LTD,RC301815,GB717505931,WHZAN ASC Project,R4000,Furniture & Equipment
01/01/2023,60072635,221293,232,Berridge Taxis,RC503277,978 4186 62,Children Looked After Transport,R3200,Hire of Vehicles & Plant
01/01/2023,60072636,2201711,"1,431.38",StaffAid Limited,RC300674,246 0481 17,Management of Community Support Services,R1100,Agency Staff
01/01/2023,60072637,7040683,65.76,Idox Software Ltd,RC506407,766 8008 04,Elections - Administration,R4400,Professional Fees
01/01/2023,60072638,B3549,"1,650.00",Westcotes House Ltd,RC505233,987 7451 53,Homelessness,R4900,Accommodation Costs
01/01/2023,60072639,MI146268,"2,792.50",FCC Recycling (UK) Ltd,RC502258,637 8808 92,Waste Management,R5021,TPP - Waste Disposal
01/01/2023,60072640,5550586,387.58,Prism Medical UK,RC508680,845 6079 03,"OT's, Aids & Equipment",R4401,Fees and Charges
01/01/2023,60072641,5550587,249.83,Prism Medical UK,RC508680,845 6079 03,"OT's, Aids & Equipment",R4401,Fees and Charges
01/01/2023,60072642,5550588,97.1,Prism Medical UK,RC508680,845 6079 03,"OT's, Aids & Equipment",R4401,Fees and Charges
01/01/2023,60072643,5551048,44.22,Prism Medical UK,RC508680,845 6079 03,"OT's, Aids & Equipment",R4401,Fees and Charges
01/01/2023,60072646,90120443,881.76,Ivanti UK LTD,RC301879,GB813040971,IT Operational Support,R4534,Computing - Maintenance Agreements
01/01/2023,60072647,INV-2636,166.95,Unicard Ltd,RC501242,822 6761 26,Concessionary Travel,R6270,Concessionary fares
01/01/2023,60072648,INV-2637,200.68,Unicard Ltd,RC501242,822 6761 26,Concessionary Travel,R6270,Concessionary fares
01/01/2023,60072650,OP/I954280,216.34,Phoenix Software Ltd,RC500565,755 3490 15,Development Control,C1002,Computer Software
01/01/2023,60072651,OP/I954281,216.34,Phoenix Software Ltd,RC500565,755 3490 15,Safeguarding QA,C1002,Computer Software
01/01/2023,60072652,OP/I954282,216.34,Phoenix Software Ltd,RC500565,755 3490 15,Development Control,C1002,Computer Software
01/01/2023,60072653,OP/I954284,216.34,Phoenix Software Ltd,RC500565,755 3490 15,Development Control,C1002,Computer Software
01/01/2023,60072654,3974857,"1,480.00",Venn Group Limited,RC302061,766 7117 04,Community Care Finance,R1100,Agency Staff
01/01/2023,60072655,114669,"1,184.63",G2 Recruitment Limited - a division of G2V Recruitment Group Limited,RC300732,182 8193 83,Revenues,R1100,Agency Staff
01/01/2023,60072656,10948719,"1,323.00",The Oyster Partnership Ltd,RC302167,832961025,Highways Management,R1100,Agency Staff
01/01/2023,60072658,46604105,139.06,Macmillan Publishers International Limited,RC302031,2063302,Museums Service,R4318,Goods For Resale
01/01/2023,60072663,88531800,365,GEZE UK Ltd,RC509361,529 3264 37,Oakham Enterprise Park Service Chargeable Expenditure,R2003,R & M - Emergency Works
01/01/2023,60072664,INV-115096,164.17,Person Centred Software Ltd,RC301607,162981976,Management of Community Support Services,R4535,Computing - Licences
01/01/2023,60072665,905582785,"1,033.24",GEZE UK Ltd,RC509361,529 3264 37,Central Maintenance,R2003,R & M - Emergency Works
01/01/2023,60072666,INV455525,892.64,Sellick Partnership Ltd,RC300496,864 2880 95,Legal Services,R1100,Agency Staff
01/01/2023,60072667,INV1455526,248,Sellick Partnership Ltd,RC300496,864 2880 95,Legal Services,R1100,Agency Staff
01/01/2023,60072668,13831,290.08,George Walker Tree Care Ltd,RC501703,566 0980 16,Oakham Enterprise Park,R2076,Grounds Maintenance - Non Contract
01/01/2023,60072669,1143,"2,199.90",Taxi Direct School Transport,RC302176,402640735,SEN Transport,R3207,Transport Contract
01/01/2023,60072670,CN30236961,174.6,Citron Hygiene UK limited,RC301072,485 6794 80,Admin Buildings,R4000,Furniture & Equipment
01/01/2023,60072671,173234,93.99,Citipost Mail Ltd,RC300882,881 8531 94,Reprographics & Post,R4503,Postage
01/01/2023,60072682,462978,"1,554.00",Seven Resourcing Ltd,RC301926,,ASC P&S Staffing,R1100,Agency Staff
01/01/2023,60072683,INV456162,198.4,Sellick Partnership Ltd,RC300496,864 2880 95,Legal Services,R1100,Agency Staff
01/01/2023,60072689,SIN191120,"1,018.93",Ambitions Personnel Limited,RC302090,GB613557153,Childrens Social Care Staffing,R1100,Agency Staff
01/01/2023,60072690,113358,"1,476.00",Macildowie Associates Limited,RC300706,694 2566 96,Finance,R1100,Agency Staff
01/01/2023,60072692,113359,738,Macildowie Associates Limited,RC300706,694 2566 96,Finance,R1100,Agency Staff
01/01/2023,60072693,LQP591065,"1,415.90",Liquid Personnel Ltd,RC302142,,ASC Support and Review Staffing,R1100,Agency Staff
01/01/2023,60072694,2201735,"1,027.73",StaffAid Limited,RC300674,246 0481 17,Management of Community Support Services,R1100,Agency Staff
01/01/2023,60072695,2201749,"1,462.61",StaffAid Limited,RC300674,246 0481 17,Management of Community Support Services,R1100,Agency Staff
01/01/2023,60072696,3976691,"1,480.00",Venn Group Limited,RC302061,766 7117 04,Community Care Finance,R1100,Agency Staff
01/01/2023,60072699,107761,68,Datashredders Ltd,RC300141,741 0093 71,Admin Buildings,R4000,Furniture & Equipment
01/01/2023,60072700,196715,"13,248.42",Peterborough City Council,RC500551,121 5335 13,Legal Services,R5011,TPP - Local Authorities
03/01/2023,60072702,86,"15,620.00",Human Engine Limited,RC302223,301087350,Transformation,R4400,Professional Fees
03/01/2023,60072703,178,120,Sudan Psychology Services,RC302252,,SEN Funding EOTAS & Tuition,R4400,Professional Fees
03/01/2023,60072705,325-5003670,"11,599.03",Total Community Care Ltd,RC502302,,ASC S&R Homecare PD,R5029,TPP - Home Care
03/01/2023,60072706,325-5003671,"10,647.84",Total Community Care Ltd,RC502302,,ASC S&R Homecare PD,R5029,TPP - Home Care
01/01/2023,60072707,1763,"14,725.00",The Caldecott Foundation,RC509064,,Placements,R5017,TPP - Other
03/01/2023,60072709,2665,175,SOLCOM LTD,RC301815,GB717505931,WHZAN ASC Project,R4000,Furniture & Equipment
01/01/2023,60072711,04527 - 04528,773.22,The Caring Company Rutland,RC508741,,ASC S&R Homecare OP,R5029,TPP - Home Care
03/01/2023,60072724,000030 - Dec 22,240,Redacted Personal Data,RC509375,,Leisure and Health,R4401,Fees and Charges
02/01/2023,60072725,VISIONSCCC.111,420.75,Brimecome-Mills Creative Development,RC508061,,Children's Centres - Revenue,R4401,Fees and Charges
02/01/2023,60072726,4302,360,Redacted Personal Data,RC302233,550859718,Education Otherwise,R2201,Room Hire
02/01/2023,60072727,64,"1,263.50",Angel Cars (Peterborough),RC508942,,SEN Transport,R3207,Transport Contract
01/01/2023,60072728,22/30,"1,800.00",Kevins Taxis (Rutland),RC301950,,Home to School Transport,R3207,Transport Contract
01/01/2023,60072730,096R00700,"2,351.59",Biffa Municipal Ltd,RC501347,537 9116 27,Waste Management,R5021,TPP - Waste Disposal
01/01/2023,60072731,28350,145,Word Language Services Limited,RC300901,243 5458 05,Family Support Services,R4400,Professional Fees
01/01/2023,60072732,278C29778,90.2,Biffa Municipal Ltd,RC501347,537 9116 27,Ashwell Road Business Units,R5002,TPP - Waste Collection
01/01/2023,60072733,278C29780,48.92,Biffa Municipal Ltd,RC501347,537 9116 27,Ashwell Road Business Units,R5002,TPP - Waste Collection
01/01/2023,60072734,28351,38,Word Language Services Limited,RC300901,243 5458 05,UASC 16-17,R4400,Professional Fees
01/01/2023,60072735,E2016454878,476.91,Allstar Business Solutions Ltd,RC507815,747 8801 91,Pool Cars and Car Hire,R3000,Fuel
01/01/2023,60072736,E2016454880,"1,651.68",Allstar Business Solutions Ltd,RC507815,747 8801 91,Transport Fleet,R3000,Fuel
01/01/2023,60072737,28353,126.75,Word Language Services Limited,RC300901,243 5458 05,Children Looked After,R4400,Professional Fees
01/01/2023,60072738,INV-3629,"3,171.73",Vectare,RC301856,GB264131821,Public Transport,R5017,TPP - Other
01/01/2023,60072739,420,"1,320.00",Ace Cabs Stamford Ltd,RC500124,184 8594 53,Home to School Transport,R3207,Transport Contract
01/01/2023,60072740,28358,57,Word Language Services Limited,RC300901,243 5458 05,UASC 16-17,R4400,Professional Fees
01/01/2023,60072741,421,"1,500.00",Ace Cabs Stamford Ltd,RC500124,184 8594 53,SEN Transport,R3207,Transport Contract
01/01/2023,60072742,422,"2,175.00",Ace Cabs Stamford Ltd,RC500124,184 8594 53,SEN Transport,R3207,Transport Contract
01/01/2023,60072743,28359,85.5,Word Language Services Limited,RC300901,243 5458 05,UASC 16-17,R4400,Professional Fees
01/01/2023,60072744,423,"1,050.00",Ace Cabs Stamford Ltd,RC500124,184 8594 53,SEN Transport,R3207,Transport Contract
01/01/2023,60072745,424,"2,560.00",Ace Cabs Stamford Ltd,RC500124,184 8594 53,SEN Transport,R3207,Transport Contract
01/01/2023,60072746,425,"2,235.00",Ace Cabs Stamford Ltd,RC500124,184 8594 53,SEN Transport,R3207,Transport Contract
01/01/2023,60072747,28360,85.5,Word Language Services Limited,RC300901,243 5458 05,UASC 16-17,R4400,Professional Fees
01/01/2023,60072748,426,"2,300.00",Ace Cabs Stamford Ltd,RC500124,184 8594 53,SEN Transport,R3207,Transport Contract
01/01/2023,60072749,427,"1,950.00",Ace Cabs Stamford Ltd,RC500124,184 8594 53,SEN Transport,R3207,Transport Contract
01/01/2023,60072750,28362,38,Word Language Services Limited,RC300901,243 5458 05,UASC 16-17,R4400,Professional Fees
01/01/2023,60072751,428,"2,070.00",Ace Cabs Stamford Ltd,RC500124,184 8594 53,SEN Transport,R3207,Transport Contract
01/01/2023,60072752,100205,"1,697.00",Tranter Fire & Security Systems Ltd,RC501207,566 1983 05,Central Maintenance,R2004,R & M - Programmed
01/01/2023,60072753,429,"1,650.00",Ace Cabs Stamford Ltd,RC500124,184 8594 53,Adult Social Services Transport,R3207,Transport Contract
01/01/2023,60072754,100207,247,Tranter Fire & Security Systems Ltd,RC501207,566 1983 05,Central Maintenance,R2004,R & M - Programmed
01/01/2023,60072755,31818798,345.19,Enterprise Rent-A-Car UK Ltd,RC506800,641634450,Pool Cars and Car Hire,R3200,Hire of Vehicles & Plant
03/01/2023,60072756,100162150,"1,750.00",Leicestershire County Council (Treasurers Dept),RC502058,115 3371 02,Early Intervention Youth Services,R5012,TPP - Health Authorities
03/01/2023,60072757,100162151,"1,421.00",Leicestershire County Council (Treasurers Dept),RC502058,115 3371 02,Early Intervention Youth Services,R5012,TPP - Health Authorities
01/01/2023,60072758,ADV-RCC-33,"1,505.24",Adversa Recruitment Ltd,RC301830,,Highways Management,R1100,Agency Staff
01/01/2023,60072759,ADV-RCC-34,"1,505.24",Adversa Recruitment Ltd,RC301830,,Highways Management,R1100,Agency Staff
03/01/2023,60072760,ARG 01253,"15,748.80",A & R Guardian Services Ltd,RC509277,,ASC S&R Homecare OP,R5029,TPP - Home Care
01/01/2023,60072761,16521,833,Norton Taxi Services Ltd,RC301685,,SEN Transport,R3207,Transport Contract
01/01/2023,60072762,16522,"1,199.00",Norton Taxi Services Ltd,RC301685,,SEN Transport,R3207,Transport Contract
01/01/2023,60072763,16523,887,Norton Taxi Services Ltd,RC301685,,SEN Transport,R3207,Transport Contract
01/01/2023,60072764,132306,199.5,ComCat Services Ltd,RC504058,872 1847 06,Oakham Enterprise Park,R2003,R & M - Emergency Works
01/01/2023,60072765,334752,36.9,W F Howes Ltd,RC506029,729 3836 02,Libraries,R4309,Books
02/01/2023,60072766,Redacted Personal Data,"1,435.90",ICall Care,RC302020,,ASC S&R Homecare OP,R5029,TPP - Home Care
02/01/2023,60072767,Redacted Personal Data,"1,878.99",ICall Care,RC302020,,ASC S&R Homecare PD,R5029,TPP - Home Care
02/01/2023,60072768,Redacted Personal Data,200.24,ICall Care,RC302020,,ASC S&R Homecare OP,R5029,TPP - Home Care
03/01/2023,60072769,RCC0029,"7,033.75",A&S Rescue Services Limited,RC302095,,ASC S&R Homecare OP,R5029,TPP - Home Care
03/01/2023,60072770,RCC00036,"4,347.91",Snowdrop Home Care Rutland Ltd,RC301472,,ASC S&R Homecare OP,R5029,TPP - Home Care
04/01/2023,60072771,35282,789.18,Nobilis Care East Limited,RC506799,,ASC S&R Homecare OP,R5029,TPP - Home Care
04/01/2023,60072772,35283,789.18,Nobilis Care East Limited,RC506799,,ASC S&R Homecare OP,R5029,TPP - Home Care
04/01/2023,60072773,35284,789.18,Nobilis Care East Limited,RC506799,,ASC S&R Homecare OP,R5029,TPP - Home Care
04/01/2023,60072774,35285,789.18,Nobilis Care East Limited,RC506799,,ASC S&R Homecare OP,R5029,TPP - Home Care
03/01/2023,60072775,CONCESSIONARY FARE DEC 22,846.07,Delaine Buses Ltd,RC501419,119 2077 80,Concessionary Travel,R6270,Concessionary fares
03/01/2023,60072778,INV-1180,"1,993.75",Truetech Integrated Ltd,RC300629,211796217,CCTV,R4401,Fees and Charges
01/01/2023,60072779,INV-1217,"2,100.00",Corby Star Cars Ltd,RC501949,307243038,SEN Transport,R3207,Transport Contract
01/01/2023,60072780,INV-1218,"1,618.80",Corby Star Cars Ltd,RC501949,307243038,Home to School Transport,R3207,Transport Contract
01/01/2023,60072781,INV-1219,"1,090.00",Corby Star Cars Ltd,RC501949,307243038,SEN Transport,R3207,Transport Contract
03/01/2023,60072782,INV-1221,"2,190.00",Corby Star Cars Ltd,RC501949,307243038,SEN Transport,R3207,Transport Contract
01/01/2023,60072783,INV-1222,"2,160.00",Corby Star Cars Ltd,RC501949,307243038,SEN Transport,R3207,Transport Contract
01/01/2023,60072784,INV-1223,983.12,Corby Star Cars Ltd,RC501949,307243038,SEN Transport,R3207,Transport Contract
01/01/2023,60072792,INV-27151,170,Locate Accommodation Ltd,RC301793,737619993,Unaccompanied Asylum Seekers - Over 18,R6292,Section 24 Payments
01/01/2023,60072793,INV-27152,"1,706.31",Locate Accommodation Ltd,RC301793,737619993,Unaccompanied Asylum Seekers - Over 18,R6293,Asylum Seekers Allowance
01/01/2023,60072794,INV-27153,"1,830.31",Locate Accommodation Ltd,RC301793,737619993,Unaccompanied Asylum Seekers - Over 18,R6293,Asylum Seekers Allowance
01/01/2023,60072795,INV-27154,"1,830.31",Locate Accommodation Ltd,RC301793,737619993,Unaccompanied Asylum Seekers - Over 18,R6293,Asylum Seekers Allowance
02/01/2023,60072796,INV-ISL-0193372,"1,364.40",IRIS Software Limited,RC509095,678 7928 53,Children's Centres - Revenue,R4401,Fees and Charges
01/01/2023,60072797,J078 / 130110 / 114,20.66,Tarmac Trading Ltd,RC507911,143 7761 02,Property Services,R2003,R & M - Emergency Works
01/01/2023,60072798,Redacted Personal Data,390,Prodec Builders Ltd,RC500627,881 5410 24,"OT's, Aids & Equipment",R4000,Furniture & Equipment
01/01/2023,60072799,P142470,23.72,URM (UK) Ltd T/A Berryman,RC500097,758 5353 94,Waste Management,R5023,TPP - Glass Recycling
01/01/2023,60072800,RWLRut29,"2,445.00",Redwings Lodge (Rutland) Ltd,RC300089,168491177,Homelessness,R4900,Accommodation Costs
01/01/2023,60072801,RWLRut30,"1,155.00",Redwings Lodge (Rutland) Ltd,RC300089,168491177,Homelessness,R4900,Accommodation Costs
01/01/2023,60072807,TRI305706,"1,615.65",Tripod Partners,RC301829,145000955,Contact and Referral Team,R1100,Agency Staff
04/01/2023,60072808,14-22/23,"47,500.00",Rutland Citizens Advice Bureau,RC500792,271224528,Commissioning Team,R5017,TPP - Other
04/01/2023,60072809,37,980,Redacted Personal Data,RC301235,,SEN Funding Other,R5017,TPP - Other
01/01/2023,60072810,144,900.25,Sheerwood Skip Services,RC500887,638 2780 15,Waste Management,R5021,TPP - Waste Disposal
01/01/2023,60072811,1184,"1,155.00",Wish Care Limited,RC301323,330 4404 50,Disabled Children,R5015,TPP - Other Establishments
01/01/2023,60072812,1610,"8,662.00",GHM Planning Limited,RC301996,855590787,Development Control,R1100,Agency Staff
01/01/2023,60072813,1620,"8,349.00",GHM Planning Limited,RC301996,855590787,Development Control,R1100,Agency Staff
01/01/2023,60072814,1636,"8,889.00",GHM Planning Limited,RC301996,855590787,Development Control,R1100,Agency Staff
04/01/2023,60072815,8729,"3,102.00",Lawson's of Corby Ltd,RC506128,937 1394 07,Home to School Transport,R3207,Transport Contract
04/01/2023,60072817,17985,"2,470.00",Topps Express Limited,RC501196,996 3909 51,SEN Transport,R3207,Transport Contract
01/01/2023,60072818,83053,"7,706.75",Age UK Leics & Rutland,RC503273,174 6643 83,BCF: Dementia Services,R5017,TPP - Other
01/01/2023,60072819,113456,"1,927.72",Macildowie Associates Limited,RC300706,694 2566 96,Finance,R1100,Agency Staff
04/01/2023,60072820,834007,"10,755.25",FCC Recycling (UK) Ltd,RC502258,637 8808 92,Waste Management,R5021,TPP - Waste Disposal
04/01/2023,60072822,1047471,"2,720.00",Precision Resourcing Group Limited,RC301972,214013569,SEN Operations,R1100,Agency Staff
01/01/2023,60072823,1635948,24.7,Cooler Aid Ltd,RC501333,599 5176 72,Community Learning,R4000,Furniture & Equipment
04/01/2023,60072824,6267561,"5,014.74",Thornbury Nursing Services,RC302070,676 285 493,Disabled Children,R4401,Fees and Charges
01/01/2023,60072826,855083295,97.5,Nottingham City Council,RC502105,118 0454 92,"Training, Confs & Seminars",R4405,Training Charges
01/01/2023,60072827,B3593,"1,650.00",Westcotes House Ltd,RC505233,987 7451 53,Homelessness,R4900,Accommodation Costs
01/01/2023,60072828,C72939,217.94,Allied Publicity Services (Manchester) Limited t/a APS Group,RC300920,146 4941 52,Blue Badge Scheme,R4401,Fees and Charges
01/01/2023,60072831,CI098379,"2,745.68",Waterman Aspen Ltd,RC301788,GB491408441,Highways Management,R1100,Agency Staff
01/01/2023,60072832,RUT/1292,126,Top Class Tutors,RC501191,910 1781 56,Education Otherwise,R4400,Professional Fees
04/01/2023,60072833,RUT/1294,400,Top Class Tutors,RC501191,910 1781 56,Education Otherwise,R4400,Professional Fees
04/01/2023,60072834,RUT/1295,600,Top Class Tutors,RC501191,910 1781 56,Education Otherwise,R4400,Professional Fees
04/01/2023,60072835,RUT/1296,780,Top Class Tutors,RC501191,910 1781 56,Education Otherwise,R4400,Professional Fees
03/01/2023,60072837,ADV-RCC-35,"1,026.30",Adversa Recruitment Ltd,RC301830,,Highways Management,R1100,Agency Staff
04/01/2023,60072838,17969,"11,920.00",Topps Express Limited,RC501196,996 3909 51,SEN Transport,R3207,Transport Contract
04/01/2023,60072839,RCC230131W,"2,730.00",Rutland Cabs,RC500790,230 1201 87,SEN Transport,R3207,Transport Contract
01/01/2023,60072840,INV-1220,"1,169.28",Corby Star Cars Ltd,RC501949,307243038,SEN Transport,R3207,Transport Contract
01/01/2023,60072841,Redacted Personal Data,390,Prodec Builders Ltd,RC500627,881 5410 24,"OT's, Aids & Equipment",R4000,Furniture & Equipment
01/01/2023,60072842,SI-4003,"2,496.13",The Baca Charity,RC507453,,Unaccompanied Asylum Seekers - Over 18,R6292,Section 24 Payments
01/01/2023,60072843,Redacted Personal Data,"5,260.00",Prodec Builders Ltd,RC500627,881 5410 24,Capital Programme People - Adults,C1150,Capital Grant Expenditure
01/01/2023,60072844,Redacted Personal Data,"4,170.00",Prodec Builders Ltd,RC500627,881 5410 24,Capital Programme People - Adults,C1150,Capital Grant Expenditure
01/01/2023,60072845,47546,810,Total Environmental Compliance LTD,RC302072,669613888,Property Services Rechargeable Works,R2004,R & M - Programmed
04/01/2023,60072846,RUT/1297,820,Top Class Tutors,RC501191,910 1781 56,Education Otherwise,R4400,Professional Fees
31/01/2023,60072847,RUT/1298,540,Top Class Tutors,RC501191,910 1781 56,Education Otherwise,R4400,Professional Fees
01/01/2023,60072848,SI-119839,80,Ian Bryers Car & Commercial Repairs,RC502875,550 9095 37,Transport Fleet,R3004,Vehicle Maintenance
01/01/2023,60072849,SI-119840,80,Ian Bryers Car & Commercial Repairs,RC502875,550 9095 37,Transport Fleet,R3004,Vehicle Maintenance
01/01/2023,60072850,SI-119841,378.8,Ian Bryers Car & Commercial Repairs,RC502875,550 9095 37,Transport Fleet,R3004,Vehicle Maintenance
01/01/2023,60072851,SI-119842,208.99,Ian Bryers Car & Commercial Repairs,RC502875,550 9095 37,Transport Fleet,R3004,Vehicle Maintenance
01/01/2023,60072852,SI-119843,115.5,Ian Bryers Car & Commercial Repairs,RC502875,550 9095 37,Transport Fleet,R3004,Vehicle Maintenance
01/01/2023,60072853,SI-119844,80,Ian Bryers Car & Commercial Repairs,RC502875,550 9095 37,Transport Fleet,R3004,Vehicle Maintenance
01/01/2023,60072854,SI-119845,80,Ian Bryers Car & Commercial Repairs,RC502875,550 9095 37,Transport Fleet,R3004,Vehicle Maintenance
01/01/2023,60072855,SI-119846,222.99,Ian Bryers Car & Commercial Repairs,RC502875,550 9095 37,Transport Fleet,R3004,Vehicle Maintenance
01/01/2023,60072856,SI155077,203.12,Town Mills Craft centre T/A House of Marbles,RC302207,320748571,Museums Service,R4318,Goods For Resale
01/01/2023,60072857,SI-H0000000270,"16,899.34",Horizon Care & Education Group Ltd,RC502356,284410509,Placements,R5017,TPP - Other
04/01/2023,60072858,SI-TPS-00043305,"10,040.42",Turning Point Services Ltd,RC300056,447 2224 60,Substance Misuse,R5017,TPP - Other
01/01/2023,60072859,#UKSI18953,96.72,Valtech Limited,RC300951,628 6560 16,Blue Badge Scheme,R4401,Fees and Charges
04/01/2023,60072863,13-22/23,"1,250.00",Rutland Citizens Advice Bureau,RC500792,271224528,Financial Crisis Support,R5017,TPP - Other
01/01/2023,60072866,1521,"1,310.00",Momma J's Kitchen,RC300782,,Section 31 Holiday Activities and Food,R4401,Fees and Charges
01/01/2023,60072868,1522,739.85,Momma J's Kitchen,RC300782,,Section 31 Holiday Activities and Food,R4401,Fees and Charges
01/01/2023,60072869,66186782,515,Cambs Community Services NHS Trust,RC508575,654439952,Sexual Health,R5017,TPP - Other
01/01/2023,60072870,66186825,214,Cambs Community Services NHS Trust,RC508575,654439952,Sexual Health,R5017,TPP - Other
01/01/2023,60072871,34499367,98.02,Initial Washroom Solutions,RC501850,209 9189 33,The King Centre,R4000,Furniture & Equipment
01/01/2023,60072872,1758,"1,275.00",Playscape Playgrounds Ltd,RC509085,238 8112 03,Amenity Grass (Urban Grass & Public Open Spaces),R2076,Grounds Maintenance - Non Contract
01/01/2023,60072873,DINV/00034150,"1,327.36",Nottingham Community Housing Association,RC505117,859 7959 34,Management of Community Support Services,R4401,Fees and Charges
01/01/2023,60072874,5153220,642,Northamptonshire Healthcare NHS Foundation Trust,RC508217,654 4039 40,Sexual Health,R5017,TPP - Other
05/01/2023,60072875,2668,"1,335.00",SOLCOM LTD,RC301815,GB717505931,WHZAN ASC Project,R4503,Postage
03/01/2023,60072879,48757,72.5,Hirst Signs Ltd,RC507639,457 3469 18,Parking,R4000,Furniture & Equipment
01/01/2023,60072881,INV153376,75,Solo Protect Limited,RC301206,836270427,Childrens Social Care Staffing,R4401,Fees and Charges
01/01/2023,60072882,83714244,101.69,Dx Network Services Ltd,RC501467,849 7413 85,Libraries,R4503,Postage
01/01/2023,60072883,MDN231801-102,423.74,Claranet Limited,RC500963,908 7593 83,IT Operational Support,R4537,Computing - Internet
01/01/2023,60072884,170756,551.18,New Earth Solutions (West) Limited T/A Mid-UK Recycling Ltd,RC505938,246 2500 29,Waste Management,R5021,TPP - Waste Disposal
01/01/2023,60072885,MDN240903-84,"1,398.69",Claranet Limited,RC500963,908 7593 83,IT Operational Support,R4537,Computing - Internet
01/01/2023,60072886,170757,"1,801.80",New Earth Solutions (West) Limited T/A Mid-UK Recycling Ltd,RC505938,246 2500 29,Waste Management,R5021,TPP - Waste Disposal
01/01/2023,60072888,315234610,23,Eden Springs UK Ltd,RC300505,232 1604 11,The King Centre,R4000,Furniture & Equipment
01/01/2023,60072889,170758,"1,635.20",New Earth Solutions (West) Limited T/A Mid-UK Recycling Ltd,RC505938,246 2500 29,Waste Management,R5021,TPP - Waste Disposal
01/01/2023,60072890,INV-1224,"1,393.23",Corby Star Cars Ltd,RC501949,307243038,SEN Transport,R3207,Transport Contract
03/01/2023,60072891,2470-03/01/2023,"1,875.00",Kainos Software Limited,RC301586,888810569,Highways Management,R4535,Computing - Licences
01/01/2023,60072892,28361,96,Word Language Services Limited,RC300901,243 5458 05,Homes for Ukraine,R5017,TPP - Other
01/01/2023,60072893,170759,"3,362.17",New Earth Solutions (West) Limited T/A Mid-UK Recycling Ltd,RC505938,246 2500 29,Waste Management,R5003,TPP - Recycling Contract
01/01/2023,60072895,3227,"4,630.21",Mason Infotech Ltd,RC300408,209 4874 85,IT Operational Support,R4537,Computing - Internet
05/01/2023,60072896,260949,822.5,James Andrews Recruitment Solutions,RC302195,976026696,Housing Options Team,R1100,Agency Staff
03/01/2023,60072897,C403464,-281.32,Health Management Ltd,RC509363,792 2506 21,Human Resources,R4400,Professional Fees
04/01/2023,60072898,6801730,499.18,Espo,RC502268,705 1805 61,Day Opportunities Services,R4000,Furniture & Equipment
06/01/2023,60072899,SIN191217,129.53,Ambitions Personnel Limited,RC302090,GB613557153,Childrens Social Care Staffing,R1100,Agency Staff
05/01/2023,60072900,260950,"1,295.00",James Andrews Recruitment Solutions,RC302195,976026696,Housing Options Team,R1100,Agency Staff
01/01/2023,60072901,Q3-20/23-RUT001,31.35,ITSO Ltd,RC507340,765 6393 88,Concessionary Travel,R6270,Concessionary fares
04/01/2023,60072902,DONATIONS - DEC 22,26,The Friends Of Rutland County Museum & Oakham Castle,RC301908,,Oakham Castle,R9140,Donations
05/01/2023,60072903,260951,647.5,James Andrews Recruitment Solutions,RC302195,976026696,Housing Options Team,R1100,Agency Staff
05/01/2023,60072904,260952,700,James Andrews Recruitment Solutions,RC302195,976026696,Housing Options Team,R1100,Agency Staff
05/01/2023,60072905,834013,"33,874.32",FCC Recycling (UK) Ltd,RC502258,637 8808 92,Waste Management,R5021,TPP - Waste Disposal
04/01/2023,60072906,2201756,797.6,StaffAid Limited,RC300674,246 0481 17,Management of Community Support Services,R1100,Agency Staff
04/01/2023,60072907,2201767,"1,364.29",StaffAid Limited,RC300674,246 0481 17,Management of Community Support Services,R1100,Agency Staff
05/01/2023,60072908,GB02CSI021561,"2,919.00",Direct Healthcare Group,RC509045,241 6574 10,Capital Programme People - Adults,C1150,Capital Grant Expenditure
05/01/2023,60072909,I0102527,804.16,Midlands Partnership NHS FT,RC508170,654441580,Sexual Health,R5017,TPP - Other
05/01/2023,60072910,INV-0119,"10,000.00",mySociety Ltd,RC300242,108 2623 37,IT Operational Support,R4534,Computing - Maintenance Agreements
01/01/2023,60072911,INV0000006449,405,Imperial Civil Enforcement Solutions Ltd,RC501321,794 3960 79,Parking,R5017,TPP - Other
05/01/2023,60072912,INV-014994,84,Safe Kids Walking Ltd t/a Brightkidz and Brand my Thingy,RC500833,834 8147 15,Road Safety and Sustainable Transport,R4000,Furniture & Equipment
05/01/2023,60072913,INV456940,781.06,Sellick Partnership Ltd,RC300496,864 2880 95,Legal Services,R1100,Agency Staff
04/01/2023,60072914,LQP591914,"1,419.05",Liquid Personnel Ltd,RC302142,,ASC Support and Review Staffing,R1100,Agency Staff
04/01/2023,60072915,LQP591915,"1,134.00",Liquid Personnel Ltd,RC302142,,DOLS,R1100,Agency Staff
04/01/2023,60072916,NH040123,"10,184.18",New Hope Specialist Care Ltd,RC300956,,ASC S&R Homecare OP,R5029,TPP - Home Care
01/01/2023,60072917,P18703,"1,289.60",Recycle Force Ltd,RC302063,,Waste Management,R5021,TPP - Waste Disposal
01/01/2023,60072918,P18704,107.2,Recycle Force Ltd,RC302063,,Waste Management,R5021,TPP - Waste Disposal
01/01/2023,60072919,P18706,"1,258.60",Recycle Force Ltd,RC302063,,Waste Management,R5021,TPP - Waste Disposal
04/01/2023,60072922,RUT/1293,"1,470.00",Top Class Tutors,RC501191,910 1781 56,Education Otherwise,R4400,Professional Fees
04/01/2023,60072923,LQP591916,336,Liquid Personnel Ltd,RC302142,,ASC Support and Review Staffing,R1100,Agency Staff
01/01/2023,60072924,021661 - 2023,197,Institute Of Revenues Rating & Valuation,RC501861,626 6045 44,Revenues,R4701,Subscriptions
05/01/2023,60072925,I0102549,60.16,Midlands Partnership NHS FT,RC508170,654441580,Sexual Health,R5017,TPP - Other
01/01/2023,60072926,173363,119.26,Citipost Mail Ltd,RC300882,881 8531 94,Reprographics & Post,R4503,Postage
05/01/2023,60072927,6804121,55.7,Espo,RC502268,705 1805 61,Management of Community Support Services,R4000,Furniture & Equipment
05/01/2023,60072928,6804119,18.59,Espo,RC502268,705 1805 61,Management of Community Support Services,R4000,Furniture & Equipment
01/01/2023,60072929,100257,167,Tranter Fire & Security Systems Ltd,RC501207,566 1983 05,Central Maintenance,R2003,R & M - Emergency Works
01/01/2023,60072930,167960 - 09/12/22,840,Spire Barristers - Miss Holly Littlewood,RC302266,,Legal Services,R4400,Professional Fees
01/01/2023,60072931,636,"1,300.00",PWLC Projects,RC301681,236 3057 22,H2S Travel Demand Management Grant,R3207,Transport Contract
01/01/2023,60072932,EFW214755 - 1956838,156.74,Everflow Limited,RC301184,216493600,The King Centre,R2401,Water Services
01/01/2023,60072933,98836882 - 01287723374,364.92,EE Limited,RC508788,771592016,Mobile Phones,R4507,Mobile Telephones
01/01/2023,60072934,98880229 - 01287725252,"4,345.19",EE Limited,RC508788,771592016,Mobile Phones,R4507,Mobile Telephones
04/01/2023,60072936,247887501 - 04/01/23,74.37,Anglian Water Business Ltd,RC500175,242 5074 29,Libraries,R2401,Water Services
01/01/2023,60072937,R221231-69,204.04,RingGo Limited,RC508614,636 1371 49,Parking,R5017,TPP - Other
01/01/2023,60072938,7000877422 - 25/12/22,9.83,Water Plus,RC500879,486 9855 65,Admin Buildings,R2401,Water Services
01/01/2023,60072940,0831022428 - 30/12/22,60.75,Water Plus,RC500879,486 9855 65,Libraries,R2401,Water Services
03/01/2023,60072941,0594004411 - 03/01/23,18.25,Water Plus,RC500879,486 9855 65,Ashwell Road Business Units,R2401,Water Services
03/01/2023,60072942,0235009364 - 03/01/23,"1,710.10",Water Plus,RC500879,486 9855 65,Oakham Enterprise Park,R2401,Water Services
01/01/2023,60072943,786131,500,Savills (UK) Ltd,RC500912,217 9157 51,Pit Lane,R2202,Property Rental
01/01/2023,60072944,6795510000/000014128125,"-21,022.96",EDF Energy Customers Plc,RC501509,523 0412 02,Oakham Enterprise Park,R2100,Electricity
01/01/2023,60072945,6795510000/000014128138,"21,818.25",EDF Energy Customers Plc,RC501509,523 0412 02,Oakham Enterprise Park,R2100,Electricity
01/01/2023,60072946,855083314,470,Nottingham City Council,RC502105,118 0454 92,Homes for Ukraine,R4405,Training Charges
01/01/2023,60072947,9066307514,87.5,Royal Mail Group Ltd,RC500772,243 1700 02,Reprographics & Post,R4503,Postage
01/01/2023,60072948,2.21E+12,49.74,Canon (UK) Ltd,RC301046,523 7971 28,Printers,R4300,Printing & Photocopying
01/01/2023,60072949,6287,558,Resource Futures Ltd,RC301499,,Waste Management,R4400,Professional Fees
01/01/2023,60072951,425998,"3,215.73",Jay Fostering Limited,RC501901,,Placements,R5017,TPP - Other
01/01/2023,60072952,425999,"3,402.65",Jay Fostering Limited,RC501901,,Placements,R5017,TPP - Other
05/01/2023,60072953,1535863,"2,568.13",Access UK Ltd,RC503291,108 2213 56,Internal Homecare Staffing,R4535,Computing - Licences
05/01/2023,60072954,806209225,48.75,City & Guilds,RC501059,788 6564 55,Rutland Adult Skill Budget Post July 2014,R4401,Fees and Charges
01/01/2023,60072955,2022124362,39.18,G4S Cash Solutions UK Limited,RC301953,238560256,Corporate Financial Expenses,R4401,Fees and Charges
04/01/2023,60072956,B3597,"1,650.00",Westcotes House Ltd,RC505233,987 7451 53,Homelessness,R4900,Accommodation Costs
04/01/2023,60072957,B3600,"1,950.00",Westcotes House Ltd,RC505233,987 7451 53,Homes for Ukraine,R4900,Accommodation Costs
06/01/2023,60072958,C/BN261055,84,Civica UK Ltd,RC501070,391 1710 65,Community Care Finance,R1100,Agency Staff
01/01/2023,60072959,INV-1225,"2,280.00",Corby Star Cars Ltd,RC501949,307243038,SEN Transport,R3207,Transport Contract
05/01/2023,60072961,RCC0063,"12,333.70",Midlands Total Care Limited,RC301877,,ASC S&R Homecare OP,R5029,TPP - Home Care
01/01/2023,60072962,33001,"3,675.67",Compass Fostering Central Limited,RC501320,153 1739 18,Placements,R5017,TPP - Other
01/01/2023,60072964,12087506,898.32,Daisy Communications Ltd,RC507045,722 4713 55,IT Operational Support,R4537,Computing - Internet
06/01/2023,60072965,76201,194.39,Arboricultural Assoication,RC505690,844 2968 95,Forestry Maintenance,R4701,Subscriptions
06/01/2023,60072967,I675985,61.5,Ulverscroft Large Print Books Ltd,RC501241,620 3102 12,Libraries,R4309,Books
05/01/2023,60072968,183E5787-0001,122.23,Redacted Personal Data,RC302260,,Museums Service,R4318,Goods For Resale
07/01/2023,60072969,1091,300,Stonemasons of Rutland Ltd,RC301791,361650409,Central Maintenance,R2003,R & M - Emergency Works
05/01/2023,60072970,2955,900,CASY,RC301626,,SEN Recovery Plan Expenditure,R4400,Professional Fees
08/01/2023,60072971,04531 - 04532,735.73,The Caring Company Rutland,RC508741,,ASC S&R Homecare OP,R5029,TPP - Home Care
09/01/2023,60072972,10438,"7,213.50",The Royal Leicestershire Rutland & Wycliffe Society for the Blind (Vista),RC301997,,BCF Sensory Impairment,R5017,TPP - Other
05/01/2023,60072973,17990,140,Topps Express Limited,RC501196,996 3909 51,Adult Social Services Transport,R3207,Transport Contract
01/01/2023,60072974,132322,"4,507.75",ComCat Services Ltd,RC504058,872 1847 06,The King Centre,R2003,R & M - Emergency Works
01/01/2023,60072975,466538,"1,554.00",Seven Resourcing Ltd,RC301926,,ASC P&S Staffing,R1100,Agency Staff
04/01/2023,60072976,3978344,940,Venn Group Limited,RC302061,766 7117 04,Community Care Finance,R1100,Agency Staff
09/01/2023,60072977,1024380156,189.92,Bechtle Direct Ltd,RC508730,699 3742 67,Prison Library Service - Stocken,R4000,Furniture & Equipment
09/01/2023,60072978,ARG 01269,"14,560.49",A & R Guardian Services Ltd,RC509277,,ASC S&R Homecare OP,R5029,TPP - Home Care
09/01/2023,60072979,INV-38888,25,Oakham Tyre Co (Rutland) Ltd,RC500470,121 1637 17,Transport Fleet,R3004,Vehicle Maintenance
01/01/2023,60072981,INV-7878,"6,857.55",SDSA Ltd,RC500865,110 2306 90,SEN Operations,R4400,Professional Fees
06/01/2023,60072982,173601,301.22,Citipost Mail Ltd,RC300882,881 8531 94,Reprographics & Post,R4503,Postage
03/01/2023,60072983,160829,"2,882.14",Ardale (Oakham) Limited,RC301619,,Interim Beds (CCG),R5028,TPP - Residental Care
06/01/2023,60072984,C-0003386831,50.75,Computershare Voucher Services,RC502015,720707460,Corporate Financial Expenses,R4401,Fees and Charges
01/01/2023,60072985,180910,450.2,Greenline Service & Supplies Ltd,RC501732,610 5559 61,Transport Fleet,R4201,Uniforms
08/01/2023,60072986,Redacted Personal Data,4.3,One off Invoice Payments - BACS,RC300802,,Parking,R9313,Fees - Parking
09/01/2023,60072987,Redacted Personal Data,650,Priory Federation of Academies T/A Heighington Millfield Primary Academy,RC509487,,Pupil Premium Plus,R6300,Schools - Budget Share
09/01/2023,60072988,Redacted Personal Data,650,The Latimer Arts College,RC302021,,Pupil Premium Plus,R6300,Schools - Budget Share
03/01/2023,60072989,5974363390/000014205001,"20,187.28",EDF Energy Customers Plc,RC501509,523 0412 02,Street Lighting,R2100,Electricity
03/01/2023,60072990,4479762429/000014209140,"1,532.19",EDF Energy Customers Plc,RC501509,523 0412 02,Safety,R2100,Electricity
08/01/2023,60072991,Redacted Personal Data,210,Redacted Personal Data,RC301975,,Education Otherwise,R4400,Professional Fees
03/01/2023,60072992,6795510000/000014213942,"24,581.50",EDF Energy Customers Plc,RC501509,523 0412 02,Oakham Enterprise Park,R2100,Electricity
01/01/2023,60072993,90296340,"2,060.22",Neopost Finance Limited,RC500388,805 6441 40,Reprographics & Post,R4503,Postage
09/01/2023,60072994,Redacted Personal Data,"1,719.46",ICall Care,RC302020,,ASC S&R Homecare OP,R5029,TPP - Home Care
01/01/2023,60072995,210456501 - 24/12/22,"1,660.76",Anglian Water Business Ltd,RC500175,242 5074 29,Oakham Enterprise Park,R2401,Water Services
04/01/2023,60072997,247886601 - 04/01/23,12.16,Anglian Water Business Ltd,RC500175,242 5074 29,Cemeteries,R2401,Water Services
01/01/2023,60072998,INV-1943,478.26,Animal Care Services Ltd,RC301589,357922272,Dog Warden & Pest Control Ser,R4401,Fees and Charges
01/01/2023,60072999,INV-2660,126.29,Unicard Ltd,RC501242,822 6761 26,Concessionary Travel,R6270,Concessionary fares
05/01/2023,60073000,A0009233360 - IN05835088,193.88,Npower Commercial Gas Limited (T/A npower Business Solutions),RC301940,,CCTV,R2100,Electricity
05/01/2023,60073001,A0009234556 - IN05835820,726.16,Npower Commercial Gas Limited (T/A npower Business Solutions),RC301940,,Parking,R2100,Electricity
01/01/2023,60073002,INV-2661,11.55,Unicard Ltd,RC501242,822 6761 26,Concessionary Travel,R6270,Concessionary fares
01/01/2023,60073003,EM24413663M122,58.63,British Telecommunications Plc,RC501804,245 7193 48,Telecommunications,R4504,Telephone Rental
01/01/2023,60073004,INV-2698,937.5,Unicard Ltd,RC501242,822 6761 26,Concessionary Travel,R6270,Concessionary fares
01/01/2023,60073005,INV-2699,401.77,Unicard Ltd,RC501242,822 6761 26,Concessionary Travel,R6270,Concessionary fares
04/01/2023,60073007,INV-7879,"7,000.00",SDSA Ltd,RC500865,110 2306 90,Changing Lives,R4401,Fees and Charges
01/01/2023,60073008,P0000789,132,Lincs Community Health Services NHST,RC508052,654 4409 75,Sexual Health,R5017,TPP - Other
06/01/2023,60073009,INV114983,169.5,Knighton Janitorial Ltd,RC505319,799 6985 18,Admin Buildings,R4000,Furniture & Equipment
01/01/2023,60073010,P0000822,132,Lincs Community Health Services NHST,RC508052,654 4409 75,Sexual Health,R5017,TPP - Other
01/01/2023,60073011,P0000836,472,Lincs Community Health Services NHST,RC508052,654 4409 75,Sexual Health,R5017,TPP - Other
01/01/2023,60073012,P0000842,104,Lincs Community Health Services NHST,RC508052,654 4409 75,Sexual Health,R5017,TPP - Other
06/01/2023,60073013,INV-00210674,465.75,LNRS Data Services Ltd,RC301565,730 8595 20,Human Resources,R4400,Professional Fees
06/01/2023,60073014,INV541782,344.04,Health Management Ltd,RC509363,792 2506 21,Human Resources,R4400,Professional Fees
09/01/2023,60073015,Redacted Personal Data,"1,954.82",ICall Care,RC302020,,ASC S&R Homecare PD,R5029,TPP - Home Care
09/01/2023,60073016,Redacted Personal Data,200.24,ICall Care,RC302020,,ASC S&R Homecare OP,R5029,TPP - Home Care
09/01/2023,60073017,RCC0030,"7,329.88",A&S Rescue Services Limited,RC302095,,ASC S&R Homecare OP,R5029,TPP - Home Care
10/01/2023,60073018,356,419.25,Home Straight Partnership Ltd,RC508404,,ASC S&R Homecare OP,R5029,TPP - Home Care
10/01/2023,60073019,357,419.25,Home Straight Partnership Ltd,RC508404,,ASC S&R Homecare OP,R5029,TPP - Home Care
10/01/2023,60073020,358,438.75,Home Straight Partnership Ltd,RC508404,,ASC S&R Homecare OP,R5029,TPP - Home Care
10/01/2023,60073021,359,419.25,Home Straight Partnership Ltd,RC508404,,ASC S&R Homecare OP,R5029,TPP - Home Care
09/01/2023,60073023,207,"7,460.29",Bluebird Care,RC506798,,ASC S&R Homecare OP,R5029,TPP - Home Care
10/01/2023,60073024,RCC0064,"8,865.93",Midlands Total Care Limited,RC301877,,ASC S&R Homecare OP,R5029,TPP - Home Care
08/01/2023,60073025,Redacted Personal Data,220,Redacted Personal Data,RC301975,,Education Otherwise,R4400,Professional Fees
06/01/2023,60073026,53684,214.85,Easibathe Limited,RC302291,,"OT's, Aids & Equipment",R4000,Furniture & Equipment
03/01/2023,60073027,Mental Heath Support - Jan 23,"7,140.00",Rutland First,RC301461,,Other Public Health Services,R5001,TPP - Grants
01/01/2023,60073028,S4F-2386,436,S4 Facilities Management Limited,RC508550,205 863 902,Day Opportunities Services,R2700,Contract Cleaning
06/01/2023,60073029,SI002981,995,Keep Britain Tidy,RC300003,849 7501 88,Street Cleaning,R4701,Subscriptions
01/01/2023,60073030,S4F-2387,688,S4 Facilities Management Limited,RC508550,205 863 902,Day Opportunities Services,R2700,Contract Cleaning
01/01/2023,60073031,1302471,"1,572.50",Eden Brown Ltd,RC300857,743724037,Contact and Referral Team,R1100,Agency Staff
01/01/2023,60073032,1302882,"1,572.50",Eden Brown Ltd,RC300857,743724037,Contact and Referral Team,R1100,Agency Staff
01/01/2023,60073033,1303611,"1,572.50",Eden Brown Ltd,RC300857,743724037,Contact and Referral Team,R1100,Agency Staff
01/01/2023,60073034,1303894,"1,572.50",Eden Brown Ltd,RC300857,743724037,Contact and Referral Team,R1100,Agency Staff
01/01/2023,60073035,1304363,"1,275.00",Eden Brown Ltd,RC300857,743724037,Contact and Referral Team,R1100,Agency Staff
01/01/2023,60073036,1304364,"1,572.50",Eden Brown Ltd,RC300857,743724037,Contact and Referral Team,R1100,Agency Staff
01/01/2023,60073037,1304901,"1,572.50",Eden Brown Ltd,RC300857,743724037,Contact and Referral Team,R1100,Agency Staff
01/01/2023,60073038,1304902,"1,572.50",Eden Brown Ltd,RC300857,743724037,Contact and Referral Team,R1100,Agency Staff
01/01/2023,60073039,1305390,"1,572.50",Eden Brown Ltd,RC300857,743724037,Contact and Referral Team,R1100,Agency Staff
01/01/2023,60073040,1305391,"1,275.00",Eden Brown Ltd,RC300857,743724037,Contact and Referral Team,R1100,Agency Staff
04/01/2023,60073041,1305617,"1,020.00",Eden Brown Ltd,RC300857,743724037,Contact and Referral Team,R1100,Agency Staff
04/01/2023,60073042,1305618,956.25,Eden Brown Ltd,RC300857,743724037,Contact and Referral Team,R1100,Agency Staff
01/01/2023,60073043,22-260,"1,114.00",Elms Landscaping Design Ltd,RC508065,763 6001 46,Oakham Castle,R2075,Grounds Maintenance - Contract
06/01/2023,60073044,168,200,Redacted Personal Data,RC302059,,SEN Funding Other,R5017,TPP - Other
10/01/2023,60073045,1642,"7,167.00",GHM Planning Limited,RC301996,855590787,Development Control,R1100,Agency Staff
10/01/2023,60073047,2133,"2,376.00",New Leaf Triangle CIC,RC300536,,SEN Funding EOTAS & Tuition,R4400,Professional Fees
10/01/2023,60073048,2134,324,New Leaf Triangle CIC,RC300536,,SEN Funding EOTAS & Tuition,R4400,Professional Fees
03/01/2023,60073049,5931,760,Nimble Media,RC509110,174 5562 88,Tourism,R4400,Professional Fees
08/01/2023,60073050,13687,"5,319.00",Pure Homecare,RC300187,231 7071 38,Day Opportunities Services,R1100,Agency Staff
10/01/2023,60073052,23664,69,Sonic Security,RC500924,284 6278 23,Central Maintenance,R2003,R & M - Emergency Works
01/01/2023,60073053,28356,125.25,Word Language Services Limited,RC300901,243 5458 05,UASC 16-17,R4400,Professional Fees
01/01/2023,60073054,76579,607,Enable Access Ltd,RC302287,894014909,"OT's, Aids & Equipment",R4000,Furniture & Equipment
08/01/2023,60073055,113562,"1,927.72",Macildowie Associates Limited,RC300706,694 2566 96,Finance,R1100,Agency Staff
08/01/2023,60073056,113563,"1,107.00",Macildowie Associates Limited,RC300706,694 2566 96,Finance,R1100,Agency Staff
01/01/2023,60073057,176417,62.93,Regent Office Care Ltd,RC500611,415 2528 73,Museums Service,R4530,Computing - Hardware
01/01/2023,60073059,425978,"3,774.87",Jay Fostering Limited,RC501901,,UASC 16-17,R4900,Accommodation Costs
01/01/2023,60073060,INV-2766,"19,464.29",Unity Residential Care Services Limited,RC302166,,Placements,R5017,TPP - Other
09/01/2023,60073061,INV115039,350.8,Knighton Janitorial Ltd,RC505319,799 6985 18,Admin Buildings,R4000,Furniture & Equipment
10/01/2023,60073062,INV457868,573.84,Sellick Partnership Ltd,RC300496,864 2880 95,Legal Services,R1100,Agency Staff
10/01/2023,60073063,INV458156,62,Sellick Partnership Ltd,RC300496,864 2880 95,Legal Services,R1100,Agency Staff
09/01/2023,60073064,Q4-22/23-RUT001,31.35,ITSO Ltd,RC507340,765 6393 88,Concessionary Travel,R6270,Concessionary fares
10/01/2023,60073066,SI-489,500,Elite Housing & Support,RC300384,,Care Leavers,R4900,Accommodation Costs
05/01/2023,60073069,SINVFT00019320,"2,272.78",Longhurst Group Ltd,RC502529,326027036,BCF: Assistive Technology,R4000,Furniture & Equipment
01/01/2023,60073070,SI-K0000000541,"2,639.34",Key 2 Futures Ltd,RC506973,841 788494,Care Leavers,R4900,Accommodation Costs
10/01/2023,60073071,SIRK51,"5,454.33",Red Kite Special Academy,RC301609,,SEN Funding Maintained Schools and Academies,R5011,TPP - Local Authorities
06/01/2023,60073072,SM000507,"1,920.00",Stable Mates Therapy,RC302284,424473502,Family Support Services,R4400,Professional Fees
10/01/2023,60073073,TICS-13689,346.25,Thetford International,RC501171,299 7924 73,Waste Management,R4000,Furniture & Equipment
10/01/2023,60073074,YSI-926361,248.13,WasteCare Ltd,RC509148,354 2108 81,Development Control,R4530,Computing - Hardware
02/01/2023,60073076,14606,"1,600.00",Voluntary Action Rutland,RC502550,,Community Vehicle,R5001,TPP - Grants
01/01/2023,60073077,176458,37.11,Regent Office Care Ltd,RC500611,415 2528 73,The King Centre,R2004,R & M - Programmed
07/01/2023,60073078,0831022463 - 07/01/2023,137.78,Water Plus,RC500879,486 9855 65,Oakham Castle,R2401,Water Services
10/01/2023,60073079,0703033150 - 10/01/2023,26.25,Water Plus,RC500879,486 9855 65,Admin Buildings,R2401,Water Services
10/01/2023,60073080,Redacted Personal Data,50.7,One off Invoice Payments - BACS,RC300802,,Parking,R9313,Fees - Parking
10/01/2023,60073081,Redacted Personal Data,19,One off Invoice Payments - BACS,RC300802,,Parking,R9313,Fees - Parking
06/01/2023,60073082,169,195,Redacted Personal Data,RC302059,,SEN Funding Other,R5017,TPP - Other
01/01/2023,60073083,1452,"2,926.15",Sandra Whiles Coaching Ltd,RC302231,408779066,Directorate Management - Places,R4400,Professional Fees
11/01/2023,60073084,13110,"2,700.00",Permanent Futures Ltd,RC508456,790331045,ASC Reforms,R4400,Professional Fees
11/01/2023,60073085,13111,"2,700.00",Permanent Futures Ltd,RC508456,790331045,ASC Reforms,R4400,Professional Fees
11/01/2023,60073086,13112,"2,160.00",Permanent Futures Ltd,RC508456,790331045,ASC Reforms,R4400,Professional Fees
01/01/2023,60073087,1302472,51.6,Eden Brown Ltd,RC300857,743724037,Contact and Referral Team,R1100,Agency Staff
01/01/2023,60073089,1304365,72,Eden Brown Ltd,RC300857,743724037,Contact and Referral Team,R1100,Agency Staff
01/01/2023,60073090,1304903,90,Eden Brown Ltd,RC300857,743724037,Contact and Referral Team,R1100,Agency Staff
01/01/2023,60073091,1305392,72,Eden Brown Ltd,RC300857,743724037,Contact and Referral Team,R1100,Agency Staff
04/01/2023,60073092,1305619,261,Eden Brown Ltd,RC300857,743724037,Contact and Referral Team,R1100,Agency Staff
08/01/2023,60073093,13686,"8,104.90",Pure Homecare,RC300187,231 7071 38,Day Opportunities Services,R1100,Agency Staff
08/01/2023,60073094,13699,471.83,Pure Homecare,RC300187,231 7071 38,Day Opportunities Services,R1100,Agency Staff
01/01/2023,60073095,33078,"4,787.44",Casepak,RC507209,115128407,Waste Management,R5021,TPP - Waste Disposal
11/01/2023,60073097,115274,"1,053.00",G2 Recruitment Limited - a division of G2V Recruitment Group Limited,RC300732,182 8193 83,Revenues,R1100,Agency Staff
10/01/2023,60073098,132431,244.5,ComCat Services Ltd,RC504058,872 1847 06,Oakham Enterprise Park,R2003,R & M - Emergency Works
11/01/2023,60073099,1048258,"1,360.00",Precision Resourcing Group Limited,RC301972,214013569,SEN Operations,R1100,Agency Staff
11/01/2023,60073100,6279791,"7,143.59",Thornbury Nursing Services,RC302070,676 285 493,Disabled Children,R4401,Fees and Charges
11/01/2023,60073101,10949799,"1,225.00",The Oyster Partnership Ltd,RC302167,832961025,Highways Management,R1100,Agency Staff
06/01/2023,60073102,100162333,"27,563.00",Leicestershire County Council (Treasurers Dept),RC502058,115 3371 02,Records Office,R5011,TPP - Local Authorities
11/01/2023,60073103,200018427,45,Cilip,RC500982,233 1573 87,Libraries,R4701,Subscriptions
01/01/2023,60073104,32756,298,The Association Of Electoral Administrators,RC501051,580 5838 16,"Training, Confs & Seminars",R4405,Training Charges
11/01/2023,60073105,IN20112,126,VoicePower Ltd,RC301127,GB 607141472,Development Control,R4534,Computing - Maintenance Agreements
11/01/2023,60073106,INV-2284,284,Children's Therapy Solutions,RC301842,,SEN Funding Other,R5017,TPP - Other
11/01/2023,60073107,INV-2290,297.51,Children's Therapy Solutions,RC301842,,SEN Funding Other,R5017,TPP - Other
11/01/2023,60073108,INV-2292,469,Children's Therapy Solutions,RC301842,,SEN Funding Other,R5017,TPP - Other
11/01/2023,60073109,INV-2293,569.33,Children's Therapy Solutions,RC301842,,SEN Funding Other,R5017,TPP - Other
11/01/2023,60073110,INV-UK12374,"1,450.33",Bibliotheca Ltd,RC506068,100 1698 59,Libraries,R4530,Computing - Hardware
11/01/2023,60073120,PA Support Dec 22,103.5,Redacted Personal Data,RC302212,,SEN Funding EOTAS & Tuition,R4400,Professional Fees
13/01/2023,60073122,SN38 - JAN 23,"1,040.00",D C Taxis,RC509186,,SEN Transport,R3207,Transport Contract
11/01/2023,60073123,SN63 - JAN 23,90,D C Taxis,RC509186,,SEN Transport,R3207,Transport Contract
13/01/2023,60073124,SN73 - JAN 23,420,D C Taxis,RC509186,,SEN Transport,R3200,Hire of Vehicles & Plant
10/01/2023,60073126,UK158693,644.5,Flowbird Smart City UK Ltd,RC301556,GB821077453,Parking,R4401,Fees and Charges
11/01/2023,60073127,Y7869,766.8,Potclays,RC506265,279 3840 16,Community Learning,R4000,Furniture & Equipment
06/01/2023,60073128,100162341,"1,417.00",Leicestershire County Council (Treasurers Dept),RC502058,115 3371 02,External Audit & Inspection,R4404,Audit Fees
05/01/2023,60073129,2.31E+12,"4,139.84",Canon (UK) Ltd,RC301046,523 7971 28,Printers,R4300,Printing & Photocopying
02/01/2023,60073130,11503,"1,117.29",Aston (Melton Mowbray) Ltd,RC302279,520654078,Transport Fleet,R3004,Vehicle Maintenance
06/01/2023,60073131,2.31E+12,"1,705.05",Canon (UK) Ltd,RC301046,523 7971 28,Printers,R4300,Printing & Photocopying
11/01/2023,60073132,CN-0482,-66,Pure Homecare,RC300187,231 7071 38,Day Opportunities Services,R1100,Agency Staff
01/01/2023,60073134,425184,"3,764.33",Alliance Foster Care Ltd,RC301194,,Placements,R5017,TPP - Other
01/01/2023,60073135,SI-K0000000444,"3,343.66",Key 2 Futures Ltd,RC506973,841 788494,UASC 16-17,R4900,Accommodation Costs
01/01/2023,60073136,SI-K0000000524,"1,655.40",Key 2 Futures Ltd,RC506973,841 788494,Care Leavers,R4900,Accommodation Costs
01/01/2023,60073137,J078 / 130112 / 18,32.94,Tarmac Trading Ltd,RC507911,143 7761 02,Capital Programme Places - Highways,C1015,Engineering Works
13/01/2023,60073138,SIN191343,"1,018.94",Ambitions Personnel Limited,RC302090,GB613557153,Highways Management,R1100,Agency Staff
12/01/2023,60073139,SN33 - DEC 22/JAN 23,86,D C Taxis,RC509186,,SEN Transport,R3207,Transport Contract
11/01/2023,60073140,Redacted Personal Data,889.78,PJ Care Ltd,RC507400,,Older People,R5034,TPP - Nursing Care
01/01/2023,60073141,INV263-022,795.5,Wigston Roofing Ltd,RC301047,399814388,Ashwell Road Business Units,R2003,R & M - Emergency Works
01/01/2023,60073142,SI-K0000000525,"1,902.16",Key 2 Futures Ltd,RC506973,841 788494,Care Leavers,R4900,Accommodation Costs
01/01/2023,60073145,I527738,161.64,Iliffe Media Publishing Ltd,RC501920,261 6151 24,Parking,R4317,Non Staff Advertising
05/01/2023,60073146,CN-0479,"-7,584.25",Pure Homecare,RC300187,231 7071 38,Day Opportunities Services,R1100,Agency Staff
05/01/2023,60073147,CN-0480,"-11,212.07",Pure Homecare,RC300187,231 7071 38,Day Opportunities Services,R1100,Agency Staff
10/01/2023,60073150,Redacted Personal Data,"1,890.00",Climbing High Nurseries Ltd - The Day Nursery At Oakham,RC300926,,Early Years Inclusion 3-5yrs (DSG),R5020,TPP - Nursery Provision
02/01/2023,60073151,20,131.25,The Emily Redding Dance Academy,RC302297,,Children's Centres - Revenue,R2201,Room Hire
01/01/2023,60073152,Redacted Personal Data,245,Institute Of Revenues Rating & Valuation,RC501861,626 6045 44,Revenues,R4701,Subscriptions
01/01/2023,60073154,S4F-2385,"8,060.73",S4 Facilities Management Limited,RC508550,205 863 902,Day Opportunities Services,R2700,Contract Cleaning
12/01/2023,60073155,184,120,Sudan Psychology Services,RC302252,,SEN Funding EOTAS & Tuition,R4400,Professional Fees
12/01/2023,60073156,185,50,Sudan Psychology Services,RC302252,,SEN Funding EOTAS & Tuition,R4400,Professional Fees
12/01/2023,60073157,Redacted Personal Data,224,Super Scientists,RC301671,,SEN Funding EOTAS & Tuition,R4400,Professional Fees
01/01/2023,60073158,2022 /1,"6,000.00",Social Value Engine,RC302289,427 8934 55,Commissioning Team,R4400,Professional Fees
06/01/2023,60073159,2898,120,Travail Education,RC301380,112 8866 10,Education Otherwise,R4400,Professional Fees
06/01/2023,60073160,2899,120,Travail Education,RC301380,112 8866 10,Education Otherwise,R4400,Professional Fees
12/01/2023,60073162,47664,265,Total Environmental Compliance LTD,RC302072,669613888,Central Maintenance,R2004,R & M - Programmed
11/01/2023,60073163,54931,150,Leicestershire Partnership Nhs Trust,RC502063,654 9698 72,BCF: Joint Integrated Care Project,R4534,Computing - Maintenance Agreements
11/01/2023,60073164,2201772,706.45,StaffAid Limited,RC300674,246 0481 17,Management of Community Support Services,R1100,Agency Staff
11/01/2023,60073165,2201789,124.25,StaffAid Limited,RC300674,246 0481 17,Management of Community Support Services,R1100,Agency Staff
11/01/2023,60073166,2201790,"2,329.17",StaffAid Limited,RC300674,246 0481 17,Management of Community Support Services,R1100,Agency Staff
10/01/2023,60073168,4.22E+11,"2,326.67",North Northamptonshire Council,RC301823,,Planning Policy,R5017,TPP - Other
11/01/2023,60073169,LQP593264,836,Liquid Personnel Ltd,RC302142,,ASC Support and Review Staffing,R1100,Agency Staff
11/01/2023,60073170,LQP593265,860.75,Liquid Personnel Ltd,RC302142,,ASC Support and Review Staffing,R1100,Agency Staff
11/01/2023,60073171,LQP593266,714,Liquid Personnel Ltd,RC302142,,DOLS,R1100,Agency Staff
11/01/2023,60073172,LQP593267,"1,512.00",Liquid Personnel Ltd,RC302142,,DOLS,R1100,Agency Staff
11/01/2023,60073173,LQP593268,945,Liquid Personnel Ltd,RC302142,,ASC Support and Review Staffing,R1100,Agency Staff
12/01/2023,60073174,MTGI00169857,"1,391.20",Matchtech,RC301148,991 2571 00,Highways Management,R1100,Agency Staff
12/01/2023,60073175,MTGI00169858,"1,739.00",Matchtech,RC301148,991 2571 00,Highways Management,R1100,Agency Staff
04/01/2023,60073183,AM2023-RCCWG01,"7,800.00",Redacted Personal Data,RC301932,,Interim Beds (CCG),R5028,TPP - Residental Care
09/01/2023,60073184,AM2023-RCCWG02,"-5,385.71",Redacted Personal Data,RC301932,,Interim Beds (CCG),R5028,TPP - Residental Care
13/01/2023,60073185,460M01392,223.92,Biffa Municipal Ltd,RC501347,537 9116 27,Oakham Castle,R2704,Refuse Collection
13/01/2023,60073186,460M01393,724.93,Biffa Municipal Ltd,RC501347,537 9116 27,Waste Management,R5032,TPP - Waste Transport
13/01/2023,60073187,460M01398,"1,144.30",Biffa Municipal Ltd,RC501347,537 9116 27,Refuse Collection,R5002,TPP - Waste Collection
13/01/2023,60073191,460M01399,"2,042.60",Biffa Municipal Ltd,RC501347,537 9116 27,Refuse Collection,R5002,TPP - Waste Collection
13/01/2023,60073193,460M01400,689.06,Biffa Municipal Ltd,RC501347,537 9116 27,Parking,R5017,TPP - Other
13/01/2023,60073194,460M01401,"111,805.71",Biffa Municipal Ltd,RC501347,537 9116 27,Refuse Collection,R5002,TPP - Waste Collection
13/01/2023,60073195,460M01402,"58,639.63",Biffa Municipal Ltd,RC501347,537 9116 27,Street Cleaning,R5016,TPP - Private Contractors
13/01/2023,60073196,460M01403,"21,649.12",Biffa Municipal Ltd,RC501347,537 9116 27,Waste Management,R5031,TPP - CA Site Management
13/01/2023,60073197,460M01404,"10,034.79",Biffa Municipal Ltd,RC501347,537 9116 27,Waste Management,R5032,TPP - Waste Transport
13/01/2023,60073198,460M01405,"45,264.00",Biffa Municipal Ltd,RC501347,537 9116 27,Waste Management,R5021,TPP - Waste Disposal
04/01/2023,60073200,12548,"2,058.00",The Safety Chair,RC302280,303296621,Central Maintenance,R2004,R & M - Programmed
11/01/2023,60073201,12551,784,The Safety Chair,RC302280,303296621,"Training, Confs & Seminars",R4405,Training Charges
08/01/2023,60073202,13688,"17,420.50",Pure Homecare,RC300187,231 7071 38,Day Opportunities Services,R1100,Agency Staff
12/01/2023,60073203,165113,405,Covergold Limited,RC301949,GB 581 4721 36,Museums Service,R4000,Furniture & Equipment
11/01/2023,60073204,261295,822.5,James Andrews Recruitment Solutions,RC302195,976026696,Housing Options Team,R1100,Agency Staff
11/01/2023,60073205,261296,"1,050.00",James Andrews Recruitment Solutions,RC302195,976026696,Housing Options Team,R1100,Agency Staff
10/01/2023,60073207,300034011,168,Cilip,RC500982,233 1573 87,Libraries,R4702,Subscriptions - Employee
12/01/2023,60073209,DESI 737,"3,196.75",The Deepings School,RC302246,124 786 106,SEN Funding Post 16,R5015,TPP - Other Establishments
13/01/2023,60073211,211360,4.3,The Card Processing Advisory Service Ltd,RC301048,236 6645 87,Corporate Financial Expenses,R4401,Fees and Charges
12/01/2023,60073214,1036835,"-3,035.71",Prime Life Ltd,RC502626,729 8397 74,Interim Beds (CCG),R5028,TPP - Residental Care
13/01/2023,60073215,114,"1,620.00",Rutland Rides Ltd,RC301612,,Home to School Transport,R3207,Transport Contract
03/01/2023,60073216,30000025348,"9,350.00",Melton Borough Council,RC502186,115 3945 76,Economic Development,R4400,Professional Fees
05/01/2023,60073217,2.31E+12,476.39,Canon (UK) Ltd,RC301046,523 7971 28,Printers,R4300,Printing & Photocopying
12/01/2023,60073218,DESC 22,"-6,493.75",The Deepings School,RC302246,124 786 106,SEN Funding Post 16,R5015,TPP - Other Establishments
13/01/2023,60073220,INV-6128,139.4,Payonomy Limited T/A Asperato,RC300734,245621514,Green Waste Collections,R4401,Fees and Charges
13/01/2023,60073221,0831167857 - 13/01/2023,8.39,Water Plus,RC500879,486 9855 65,Libraries,R2401,Water Services
13/01/2023,60073222,Redacted Personal Data,19,One off Invoice Payments - BACS,RC300802,,Parking,R9313,Fees - Parking
13/01/2023,60073223,Redacted Personal Data,19,One off Invoice Payments - BACS,RC300802,,Parking,R9313,Fees - Parking
12/01/2023,60073224,Sale Of Artwork From Rutland Museum - Jan 23,176,Oakham Art Group,RC302018,,Museums Service,R4318,Goods For Resale
01/01/2023,60073225,4028,"10,750.00",Amity Relationship Solutions  t/a Kasearma Ltd,RC301812,,Changing Lives,R4401,Fees and Charges
16/01/2023,60073226,15-22/23,"15,000.00",Rutland Citizens Advice Bureau,RC500792,271224528,Voluntary Sector Grants,R5017,TPP - Other
16/01/2023,60073227,101/2223,128,Greetham Community Centre,RC505312,,Early Intervention Youth Services,R4401,Fees and Charges
05/01/2023,60073228,2358,630,LCIL Trading Ltd,RC509021,178 0810 96,Aiming High,R4400,Professional Fees
15/01/2023,60073229,2966,30,CASY,RC301626,,SEN Recovery Plan Expenditure,R4400,Professional Fees
22/01/2023,60073230,INV_S016838,"2,896.20",P3,RC302032,,DOLS,R5017,TPP - Other
16/01/2023,60073234,29204,80,Vogal Group Ltd,RC300065,551 0785 51,Central Maintenance,R2003,R & M - Emergency Works
16/01/2023,60073235,30619,110,Association Of Democratic Services Officers,RC505495,985 7655 49,Governance,R4405,Training Charges
16/01/2023,60073236,48824,392,Hirst Signs Ltd,RC507639,457 3469 18,Parking,R4000,Furniture & Equipment
16/01/2023,60073237,86764,"24,666.66",Outcomes First Group,RC501992,,SEN Funding - Independent Special Schools,R5017,TPP - Other
11/01/2023,60073243,3980501,"1,180.00",Venn Group Limited,RC302061,766 7117 04,Community Care Finance,R1100,Agency Staff
21/01/2023,60073246,CCC/RCC.DC/005,294,Redacted Personal Data,RC507202,,Early Senco (0-3yrs support),R5020,TPP - Nursery Provision
21/01/2023,60073247,CCC/RCC.MM/013,420,Redacted Personal Data,RC507202,,Early Years Inclusion 3-5yrs (DSG),R5020,TPP - Nursery Provision
15/01/2023,60073248,E2016512203,527.97,Allstar Business Solutions Ltd,RC507815,747 8801 91,Pool Cars and Car Hire,R3000,Fuel
15/01/2023,60073249,E2016512204,"2,527.47",Allstar Business Solutions Ltd,RC507815,747 8801 91,Transport Fleet,R3000,Fuel
15/01/2023,60073250,I528940,229.5,Iliffe Media Publishing Ltd,RC501920,261 6151 24,Development Control,R4515,Publicity
16/01/2023,60073251,INV009017,455,RG Distribution Ltd T/A The Branded Company,RC302303,291722984,Children's Centres - Revenue,R4401,Fees and Charges
01/01/2023,60073252,SI-572,405,Crystal Presentations Limited,RC301645,GB 377657791,BCF: Programme Support,R4400,Professional Fees
12/01/2023,60073253,SINVFT00019418,"5,521.17",Longhurst Group Ltd,RC502529,326027036,"OT's, Aids & Equipment",R4000,Furniture & Equipment
16/01/2023,60073254,SLS482351,500.65,MG Recycling Limited,RC301398,333 2986 91,Waste Management,R5021,TPP - Waste Disposal
08/01/2023,60073255,S-SIN1357127,87.41,Securitas Security Services (UK) Ltd,RC300778,GB 603 1758 64,Libraries,R2004,R & M - Programmed
13/01/2023,60073257,34565049,52.14,Initial Washroom Solutions,RC501850,209 9189 33,Active Rutland Hub,R4000,Furniture & Equipment
16/01/2023,60073258,1000/90062621,"1,556.02",Post Office Ltd,RC302040,GB172670502,Household Support Fund,R4401,Fees and Charges
16/01/2023,60073260,G1232023,424.76,Espo (Gas),RC501573,705180561,Admin Buildings,R2101,Gas
16/01/2023,60073261,G1232024,764.7,Espo (Gas),RC501573,705180561,Oakham Castle,R2101,Gas
16/01/2023,60073262,G1232025,524.5,Espo (Gas),RC501573,705180561,Libraries,R2101,Gas
16/01/2023,60073263,G1232026,272.85,Espo (Gas),RC501573,705180561,Early Intervention Youth Services,R2101,Gas
16/01/2023,60073264,G1232027,"2,292.48",Espo (Gas),RC501573,705180561,Admin Buildings,R2101,Gas
16/01/2023,60073265,G1232028,"1,824.14",Espo (Gas),RC501573,705180561,Museums Service,R2101,Gas
16/01/2023,60073266,G1232029,113.56,Espo (Gas),RC501573,705180561,Libraries,R2101,Gas
16/01/2023,60073267,G1232030,"4,793.17",Espo (Gas),RC501573,705180561,Oakham Enterprise Park,R2101,Gas
16/01/2023,60073268,G1232031,"1,455.48",Espo (Gas),RC501573,705180561,The King Centre,R2101,Gas
16/01/2023,60073269,Annual Membership To Leicestershire & Rutland Heritage Forum - Jan 23,30,One off Invoice Payments - BACS,RC300802,,Museums Service,R4701,Subscriptions
09/01/2023,60073270,36,144,Daventry Town Bowls Club,RC302278,,Children Looked After,R4900,Accommodation Costs
06/01/2023,60073271,1975,129,DesignCounsell,RC300220,,Tourism,R4400,Professional Fees
03/01/2023,60073272,3874,"1,200.00",LLR Patient Care Locally Community Interest Company,RC302308,371395581,BCF: Reablement,R4875,Contribution to provision
06/01/2023,60073273,265303,52.5,LGSS Law Ltd,RC301174,206 700 934,Legal Services,R5011,TPP - Local Authorities
06/01/2023,60073274,265305,17.5,LGSS Law Ltd,RC301174,206 700 934,Legal Services,R5011,TPP - Local Authorities
06/01/2023,60073275,265306,18.2,LGSS Law Ltd,RC301174,206 700 934,Legal Services,R5011,TPP - Local Authorities
16/01/2023,60073276,1230001,875,Robert Evans Catmose Limited T/A Taxi Bob,RC302204,,SEN Transport,R3207,Transport Contract
16/01/2023,60073277,1.00E+17,"9,452.85",Brackenfield SEND School,RC302038,,SEN Funding Maintained Schools and Academies,R5011,TPP - Local Authorities
16/01/2023,60073278,Redacted Personal Data,"14,187.30",A & R Guardian Services Ltd,RC509277,,ASC S&R Homecare OP,R5029,TPP - Home Care
16/01/2023,60073279,Redacted Personal Data,"1,719.46",ICall Care,RC302020,,ASC S&R Homecare OP,R5029,TPP - Home Care
17/01/2023,60073280,INV-1776,"1,090.00",Root-and-Branch Out CIC,RC300442,,Children's Centres - Revenue,R4400,Professional Fees
17/01/2023,60073281,INV-1778,350,Root-and-Branch Out CIC,RC300442,,Section 31 Holiday Activities and Food,R4401,Fees and Charges
17/01/2023,60073282,INV458783,701.36,Sellick Partnership Ltd,RC300496,864 2880 95,Legal Services,R1100,Agency Staff
17/01/2023,60073283,INV458803,74.4,Sellick Partnership Ltd,RC300496,864 2880 95,Legal Services,R1100,Agency Staff
17/01/2023,60073284,INV-UK12426,18.07,Bibliotheca Ltd,RC506068,100 1698 59,Libraries,R4530,Computing - Hardware
16/01/2023,60073285,Redacted Personal Data,"1,878.99",ICall Care,RC302020,,ASC S&R Homecare PD,R5029,TPP - Home Care
16/01/2023,60073286,Redacted Personal Data,200.24,ICall Care,RC302020,,ASC S&R Homecare OP,R5029,TPP - Home Care
17/01/2023,60073287,RCC0065,"9,383.20",Midlands Total Care Limited,RC301877,,ASC S&R Homecare OP,R5029,TPP - Home Care
01/01/2023,60073288,A0009234556 - CR05106671,-912.51,Npower Commercial Gas Limited (T/A npower Business Solutions),RC301940,,Parking,R2100,Electricity
16/01/2023,60073289,34566284,98.02,Initial Washroom Solutions,RC501850,209 9189 33,The King Centre,R4000,Furniture & Equipment
16/01/2023,60073290,43277658,"3,594.00",Care Quality Commission,RC504132,,Internal Homecare Staffing,R4401,Fees and Charges
15/01/2023,60073291,04534-04535,720.37,The Caring Company Rutland,RC508741,,ASC S&R Homecare OP,R5029,TPP - Home Care
16/01/2023,60073292,RCC0031,"7,087.27",A&S Rescue Services Limited,RC302095,,ASC S&R Homecare OP,R5029,TPP - Home Care
16/01/2023,60073293,INV-0081,"16,624.15",Trust We Care Limited,RC302017,,ASC S&R Homecare PD,R5029,TPP - Home Care
16/01/2023,60073295,66840066,109.5,Hoople Ltd,RC509298,113 9813 20,Finance,R4401,Fees and Charges
17/01/2023,60073296,Redacted Personal Data,4.75,One off Invoice Payments - BACS,RC300802,,Parking,R9313,Fees - Parking
13/01/2023,60073298,INV-2819,600,One off Invoice Payments - BACS,RC300802,,Capability Fund,R4405,Training Charges
13/01/2023,60073299,173858,203.69,Citipost Mail Ltd,RC300882,881 8531 94,Reprographics & Post,R4503,Postage
13/01/2023,60073300,098/2223,594,Greetham Community Centre,RC505312,,Aiming High,R2201,Room Hire
18/01/2023,60073301,104/2223,216,Greetham Community Centre,RC505312,,Children's Centres - Revenue,R2201,Room Hire
18/01/2023,60073302,3268,"2,495.00",The Melton Learning Hub,RC507309,,Education Otherwise,R4401,Fees and Charges
18/01/2023,60073303,3269,"2,580.00",The Melton Learning Hub,RC507309,,Education Otherwise,R4401,Fees and Charges
18/01/2023,60073304,3270,"1,955.00",The Melton Learning Hub,RC507309,,Education Otherwise,R4401,Fees and Charges
17/01/2023,60073305,89087,478.5,Sorbus,RC302281,915 2031 64,Forestry Maintenance,R5009,TPP - Highway`s
19/01/2023,60073306,Redacted Personal Data,346.28,Longhurst Group,RC301347,763 7502 19,Homelessness,R5017,TPP - Other
15/01/2023,60073307,113690,"1,476.00",Macildowie Associates Limited,RC300706,694 2566 96,Finance,R1100,Agency Staff
18/01/2023,60073308,115721,"1,298.70",G2 Recruitment Limited - a division of G2V Recruitment Group Limited,RC300732,182 8193 83,Revenues,R1100,Agency Staff
19/01/2023,60073309,Parent Milage - Jan 2023,289.44,One off Invoice Payments - BACS,RC300802,,SEN Transport,R3200,Hire of Vehicles & Plant
18/01/2023,60073311,261646,"1,120.00",James Andrews Recruitment Solutions,RC302195,976026696,Housing Options Team,R1100,Agency Staff
18/01/2023,60073312,261647,"1,295.00",James Andrews Recruitment Solutions,RC302195,976026696,Housing Options Team,R1100,Agency Staff
18/01/2023,60073313,1048756,"1,700.00",Precision Resourcing Group Limited,RC301972,214013569,SEN Operations,R1100,Agency Staff
17/01/2023,60073314,4753363,"1,520.00",CCS Media Ltd,RC302292,261 0180 47,IT Operational Support,R4530,Computing - Hardware
18/01/2023,60073315,6289993,"6,591.88",Thornbury Nursing Services,RC302070,676 285 493,Disabled Children,R4401,Fees and Charges
18/01/2023,60073316,10950454,"1,470.00",The Oyster Partnership Ltd,RC302167,832961025,Highways Management,R1100,Agency Staff
18/01/2023,60073317,I0102744,60.16,Midlands Partnership NHS FT,RC508170,654441580,Sexual Health,R5017,TPP - Other
18/01/2023,60073318,I0102747,"12,685.39",Midlands Partnership NHS FT,RC508170,654441580,Sexual Health,R5017,TPP - Other
03/01/2023,60073319,INV-0186,720,Cuttlefish Media Ltd,RC302096,864940296,Human Resources,R4400,Professional Fees
18/01/2023,60073320,INV-2238,890,Peopletoo Ltd,RC302129,,Fair Cost of Care,R4400,Professional Fees
18/01/2023,60073321,INV-6393,374.57,TransportConnect Ltd,RC300161,246278388,Concessionary Travel,R6270,Concessionary fares
18/01/2023,60073322,MTGI00171421,"1,188.00",Matchtech,RC301148,991 2571 00,Highways Management,R1100,Agency Staff
18/01/2023,60073323,MTGI00171422,"1,188.00",Matchtech,RC301148,991 2571 00,Highways Management,R1100,Agency Staff
18/01/2023,60073324,MTGI00171423,"1,739.00",Matchtech,RC301148,991 2571 00,Highways Management,R1100,Agency Staff
16/01/2023,60073325,RWLRut31,140,Redwings Lodge (Rutland) Ltd,RC300089,168491177,Homelessness,R4900,Accommodation Costs
12/01/2023,60073327,335931,36.9,W F Howes Ltd,RC506029,729 3836 02,Libraries,R4309,Books
11/01/2023,60073330,9066553302,87.5,Royal Mail Group Ltd,RC500772,243 1700 02,Reprographics & Post,R4503,Postage
18/01/2023,60073331,EFW214755 - 18/01/23,162.85,Everflow Limited,RC301184,216493600,The King Centre,R2401,Water Services
18/01/2023,60073332,INV08513,"10,500.00",Rutland & District Schools' Federation (catmose),RC502547,,Catmose Sports & Swimming,R2205,Service Charges
18/01/2023,60073333,Redacted Personal Data,50.7,One off Invoice Payments - BACS,RC300802,,Parking,R9313,Fees - Parking
20/01/2023,60073354,SIN191470,"1,277.98",Ambitions Personnel Limited,RC302090,GB613557153,Childrens Social Care Staffing,R1100,Agency Staff
01/01/2023,60073355,INV-0952,60,G D Sleath Electronics Ltd,RC508495,775 4891 75,The King Centre,R2003,R & M - Emergency Works
01/01/2023,60073356,INV-0975,100,G D Sleath Electronics Ltd,RC508495,775 4891 75,The King Centre,R2003,R & M - Emergency Works
03/01/2023,60073357,1802598084,825,Royal Mail Group Ltd,RC500772,243 1700 02,The King Centre,R4503,Postage
17/01/2023,60073358,1642,765,Syston Rolling Shutters Ltd T/A Syston Doors,RC501013,114 6728 75,The King Centre,R2004,R & M - Programmed
19/01/2023,60073359,297,930,One Way Out Escape Rooms,RC302302,,Section 31 Holiday Activities and Food,R4401,Fees and Charges
17/01/2023,60073360,47726,875,Total Environmental Compliance LTD,RC302072,669613888,Property Services Rechargeable Works,R2004,R & M - Programmed
01/01/2023,60073364,8361195502,282.69,Veolia Environmental Services (UK) Plc,RC301229,530 008893,The King Centre,R5002,TPP - Waste Collection
16/01/2023,60073365,173817,113.23,Citipost Mail Ltd,RC300882,881 8531 94,Reprographics & Post,R4503,Postage
01/01/2023,60073366,INV-002002,"1,536.00",One off Invoice Payments - BACS,RC300802,,Planning Policy,R4701,Subscriptions
16/01/2023,60073367,Redacted Personal Data,19,One off Invoice Payments - BACS,RC300802,,Parking,R9313,Fees - Parking
16/01/2023,60073368,Redacted Personal Data,19,One off Invoice Payments - BACS,RC300802,,Parking,R9313,Fees - Parking
06/01/2023,60073369,265304,117,LGSS Law Ltd,RC301174,206 700 934,Legal Services,R5011,TPP - Local Authorities
06/01/2023,60073370,326327901 - 16/01/23,25.95,Anglian Water Business Ltd,RC500175,242 5074 29,Cemeteries,R2401,Water Services
01/01/2023,60073371,2970256,15.83,Virgin Strauss Water Uk Ltd T/A Vigin Pure,RC501021,832101383,Libraries,R4401,Fees and Charges
01/01/2023,60073372,2976738,15.83,Virgin Strauss Water Uk Ltd T/A Vigin Pure,RC501021,832101383,Admin Buildings,R4000,Furniture & Equipment
01/01/2023,60073373,2976801,15.83,Virgin Strauss Water Uk Ltd T/A Vigin Pure,RC501021,832101383,Admin Buildings,R4000,Furniture & Equipment
01/01/2023,60073374,2995556,15.83,Virgin Strauss Water Uk Ltd T/A Vigin Pure,RC501021,832101383,Admin Buildings,R4000,Furniture & Equipment
01/01/2023,60073375,2997532,14.07,Virgin Strauss Water Uk Ltd T/A Vigin Pure,RC501021,832101383,Admin Buildings,R4000,Furniture & Equipment
01/01/2023,60073376,3004942,15.83,Virgin Strauss Water Uk Ltd T/A Vigin Pure,RC501021,832101383,Libraries,R4401,Fees and Charges
01/01/2023,60073377,3011603,15.83,Virgin Strauss Water Uk Ltd T/A Vigin Pure,RC501021,832101383,Admin Buildings,R4000,Furniture & Equipment
01/01/2023,60073378,3011621,15.83,Virgin Strauss Water Uk Ltd T/A Vigin Pure,RC501021,832101383,Admin Buildings,R4000,Furniture & Equipment
01/01/2023,60073380,3033726,14.07,Virgin Strauss Water Uk Ltd T/A Vigin Pure,RC501021,832101383,Admin Buildings,R4000,Furniture & Equipment
01/01/2023,60073381,3047188,15.83,Virgin Strauss Water Uk Ltd T/A Vigin Pure,RC501021,832101383,Admin Buildings,R4000,Furniture & Equipment
01/01/2023,60073382,3047250,15.83,Virgin Strauss Water Uk Ltd T/A Vigin Pure,RC501021,832101383,Admin Buildings,R4000,Furniture & Equipment
14/01/2023,60073385,3004597959 - 14/01/23,393.47,TotalEnergies,RC507575,689638949,Admin Buildings,R2100,Electricity
14/01/2023,60073386,3004597960 - 14/1/23,306,TotalEnergies,RC507575,689638949,Oakham Bus Station,R2100,Electricity
14/01/2023,60073387,3004597970 - 14/1/23,386.6,TotalEnergies,RC507575,689638949,Early Intervention Youth Services,R2100,Electricity
14/01/2023,60073388,3004600049 - 14/1/23,"1,143.82",TotalEnergies,RC507575,689638949,Museums Service,R2100,Electricity
14/01/2023,60073389,3004600050 - 14/1/23,126.41,TotalEnergies,RC507575,689638949,Libraries,R2100,Electricity
14/01/2023,60073390,3004600060 - 14/1/23,92.39,TotalEnergies,RC507575,689638949,Museums Service,R2100,Electricity
14/01/2023,60073391,3004600071 - 14/1/23,237.47,TotalEnergies,RC507575,689638949,Museums Service,R2100,Electricity
14/01/2023,60073392,3004600082 - 14/1/23,571.35,TotalEnergies,RC507575,689638949,Libraries,R2100,Electricity
14/01/2023,60073393,3004600093 - 14/1/23,564.5,TotalEnergies,RC507575,689638949,Admin Buildings,R2100,Electricity
01/01/2023,60073394,3041169,15.83,Virgin Strauss Water Uk Ltd T/A Vigin Pure,RC501021,832101383,Libraries,R4401,Fees and Charges
14/01/2023,60073395,3004600104 - 14/1/23,145.55,TotalEnergies,RC507575,689638949,Cemeteries,R2100,Electricity
14/01/2023,60073398,3004665994 - 14/1/23,"5,783.28",TotalEnergies,RC507575,689638949,Admin Buildings,R2100,Electricity
14/01/2023,60073400,3005142481 - 14/1/23,"3,053.11",TotalEnergies,RC507575,689638949,The King Centre,R2100,Electricity
11/01/2023,60073402,97,"2,008.25",Routewise Consulting,RC302128,,Public Rights of Way,R4400,Professional Fees
01/01/2023,60073403,3004597959 - 10/12/22,196.51,TotalEnergies,RC507575,689638949,Admin Buildings,R2100,Electricity
01/01/2023,60073404,3004597960 - 10/12/22,183.06,TotalEnergies,RC507575,689638949,Oakham Bus Station,R2100,Electricity
01/01/2023,60073405,3004597970 - 10/12/22,260.2,TotalEnergies,RC507575,689638949,Early Intervention Youth Services,R2100,Electricity
01/01/2023,60073413,3004600093 - 10/12/22,493.23,TotalEnergies,RC507575,689638949,Admin Buildings,R2100,Electricity
01/01/2023,60073414,3004600104 - 10/12/22,32.14,TotalEnergies,RC507575,689638949,Cemeteries,R2100,Electricity
01/01/2023,60073418,3004665994 - 10/12/22,"5,436.48",TotalEnergies,RC507575,689638949,Admin Buildings,R2100,Electricity
01/01/2023,60073421,3005142481 - 10/12/22,"2,726.12",TotalEnergies,RC507575,689638949,The King Centre,R2100,Electricity
19/01/2023,60073424,197299,950.11,Peterborough City Council,RC500551,121 5335 13,Legal Services,R5011,TPP - Local Authorities
01/01/2023,60073425,3004597959 -1/12/22,218.43,TotalEnergies,RC507575,689638949,Admin Buildings,R2100,Electricity
01/01/2023,60073426,3004597960 - 1/12/22,164.6,TotalEnergies,RC507575,689638949,Oakham Bus Station,R2100,Electricity
17/01/2023,60073427,3201102,53,Berridge Taxis,RC503277,978 4186 62,Homelessness,R5017,TPP - Other
01/01/2023,60073428,3004597970 - 1/12/22,309.66,TotalEnergies,RC507575,689638949,Early Intervention Youth Services,R2100,Electricity
19/01/2023,60073431,10157793,"3,535.96",Lincolnshire County Council,RC502090,129 3923 55,Adoption,R6292,Section 24 Payments
01/01/2023,60073435,3004600093 - 1/12/22,594.46,TotalEnergies,RC507575,689638949,Admin Buildings,R2100,Electricity
01/01/2023,60073436,3004600104 - 1/12/22,25.16,TotalEnergies,RC507575,689638949,Cemeteries,R2100,Electricity
17/01/2023,60073440,018 22-23,"9,926.98",Pre-School Learning Alliance T/A Early Years Alliance,RC508069,830 4722 51,Children's Centres - Revenue,R4401,Fees and Charges
19/01/2023,60073441,INV-0469,90,Rutland Showground Ltd,RC509159,,Crime And Disorder,R4401,Fees and Charges
01/01/2023,60073443,3004597959 - 1/12/22 cr,-219.53,TotalEnergies,RC507575,689638949,Admin Buildings,R2100,Electricity
19/01/2023,60073444,INV-5248,194,AWD Recruitment Limited,RC301737,898 8262 46,ASC Support and Review Staffing,R1700,Staff Advertising Costs
01/01/2023,60073445,3004597960 - 1/12/22 cr,-165.39,TotalEnergies,RC507575,689638949,Oakham Bus Station,R2100,Electricity
18/01/2023,60073446,INV-5249,194,AWD Recruitment Limited,RC301737,898 8262 46,ASC Support and Review Staffing,R1700,Staff Advertising Costs
01/01/2023,60073447,3004597970 - 1/12/22 cr,-311.2,TotalEnergies,RC507575,689638949,Early Intervention Youth Services,R2100,Electricity
19/01/2023,60073448,INV-31860,"1,150.00",Opus Pharmacy Services Ltd,RC500494,821 7566 25,"Training, Confs & Seminars",R4405,Training Charges
01/01/2023,60073456,3004600093 - 1/12/22 cr,-597.48,TotalEnergies,RC507575,689638949,Admin Buildings,R2100,Electricity
01/01/2023,60073457,3004600104 - 1/12/22 cr,-25.19,TotalEnergies,RC507575,689638949,Cemeteries,R2100,Electricity
19/01/2023,60073464,LQP594829,"1,216.00",Liquid Personnel Ltd,RC302142,,ASC Support and Review Staffing,R1100,Agency Staff
19/01/2023,60073465,LQP594830,"1,176.00",Liquid Personnel Ltd,RC302142,,DOLS,R1100,Agency Staff
19/01/2023,60073466,RWLRut32,560,Redwings Lodge (Rutland) Ltd,RC300089,168491177,Homelessness,R4900,Accommodation Costs
07/01/2023,60073467,SI-739,"2,330.50",Fiesta Sports Coaching,RC301836,,Section 31 Holiday Activities and Food,R4401,Fees and Charges
18/01/2023,60073468,SINVFT00019655,"3,736.45",Longhurst Group Ltd,RC502529,326027036,"OT's, Aids & Equipment",R4000,Furniture & Equipment
19/01/2023,60073469,ZOO200170430,378,Zoolab,RC300807,150 4867 12,Children's Centres - Revenue,R4401,Fees and Charges
17/01/2023,60073470,209430501 - 17/1/23,183.69,Anglian Water Business Ltd,RC500175,242 5074 29,Libraries,R2401,Water Services
11/01/2023,60073471,6810359,20.45,Espo,RC502268,705 1805 61,Transport Management,R4000,Furniture & Equipment
24/01/2023,60073472,Redacted Personal Data,"1,031.02",Prime Life Ltd,RC502626,729 8397 74,Older People,R5028,TPP - Residental Care
15/01/2023,60073473,471347,"1,323.00",Seven Resourcing Ltd,RC301926,,ASC P&S Staffing,R1100,Agency Staff
19/01/2023,60073474,LQP594831,"1,554.00",Liquid Personnel Ltd,RC302142,,ASC Support and Review Staffing,R1100,Agency Staff
16/01/2023,60073475,326268501 - 16/1/23,47.95,Anglian Water Business Ltd,RC500175,242 5074 29,Libraries,R2401,Water Services
19/01/2023,60073476,Redacted Personal Data,19,One off Invoice Payments - BACS,RC300802,,Parking,R9313,Fees - Parking
10/01/2023,60073477,6808937,74.25,Espo,RC502268,705 1805 61,Health & Safety,R4000,Furniture & Equipment
11/01/2023,60073478,6810360,61,Espo,RC502268,705 1805 61,Transport Fleet,R3004,Vehicle Maintenance
20/01/2023,60073479,22/ 072i,750,Conservation Services Ltd,RC508293,,Museums Service,R4000,Furniture & Equipment
10/01/2023,60073480,22/ 073i,260,Conservation Services Ltd,RC508293,,Museums Service,R4000,Furniture & Equipment
13/01/2023,60073481,2914,120,Travail Education,RC301380,112 8866 10,Education Otherwise,R4400,Professional Fees
13/01/2023,60073482,2917,120,Travail Education,RC301380,112 8866 10,Education Otherwise,R4400,Professional Fees
13/01/2023,60073483,2918,120,Travail Education,RC301380,112 8866 10,Education Otherwise,R4400,Professional Fees
13/01/2023,60073484,2920,160,Travail Education,RC301380,112 8866 10,Education Otherwise,R4400,Professional Fees
17/01/2023,60073485,46049,"5,550.00",UKCM,RC302148,,Waste Management,R4000,Furniture & Equipment
20/01/2023,60073487,269633,"1,427.84",MiHomecare limited,RC502617,,ASC S&R Homecare MH,R5029,TPP - Home Care
09/01/2023,60073489,1009554,80.27,Askews and Holts Library Services Ltd,RC505812,153 4009 95,Libraries,R4309,Books
09/01/2023,60073490,1009555,328.95,Askews and Holts Library Services Ltd,RC505812,153 4009 95,Libraries,R4309,Books
20/01/2023,60073491,4754653,51,AAT,RC500114,524 8751 31,Rutland Adult Skill Budget Post July 2014,R4401,Fees and Charges
01/01/2023,60073493,Redacted Personal Data,"3,162.00",The Housing Network,RC302053,,Homelessness,R4900,Accommodation Costs
20/01/2023,60073495,INV-015021,220,Safe Kids Walking Ltd t/a Brightkidz and Brand my Thingy,RC500833,834 8147 15,Road Safety and Sustainable Transport,R4000,Furniture & Equipment
20/01/2023,60073496,2022/23_LLRTM03,400,Redacted Personal Data,RC302276,,WHZAN ASC Project,R4401,Fees and Charges
18/01/2023,60073497,SINVFT00019659,911,Longhurst Group Ltd,RC502529,326027036,BCF: Assistive Technology,R4000,Furniture & Equipment
17/01/2023,60073498,Redacted Personal Data,"2,878.00",Prodec Builders Ltd,RC500627,881 5410 24,Capital Programme People - Adults,C1150,Capital Grant Expenditure
13/01/2023,60073499,2915,60,Travail Education,RC301380,112 8866 10,Education Otherwise,R4400,Professional Fees
14/01/2023,60073501,59898,90,Millennium Telecom Ltd,RC508183,876312804,IT Operational Support,R4537,Computing - Internet
14/01/2023,60073502,59924,40,Millennium Telecom Ltd,RC508183,876312804,IT Operational Support,R4537,Computing - Internet
14/01/2023,60073503,60042,52.48,Millennium Telecom Ltd,RC508183,876312804,IT Operational Support,R4537,Computing - Internet
14/01/2023,60073504,60043,259.94,Millennium Telecom Ltd,RC508183,876312804,IT Operational Support,R4537,Computing - Internet
19/01/2023,60073507,1037343,"-1,578.57",Prime Life Ltd,RC502626,729 8397 74,Interim Beds (CCG),R5028,TPP - Residental Care
10/01/2023,60073508,04351270AC01Q020,"2,795.04",British Telecommunications Plc,RC501804,245 7193 48,Telecommunications,R4505,Telephone Call charges
10/01/2023,60073509,97822270AC01Q020,"1,397.52",British Telecommunications Plc,RC501804,245 7193 48,Telecommunications,R4505,Telephone Call charges
17/01/2023,60073510,209996601 - 17/1/23,113.5,Anglian Water Business Ltd,RC500175,242 5074 29,Oakham Bus Station,R2401,Water Services
17/01/2023,60073511,209997501 - 17/1/23,297.35,Anglian Water Business Ltd,RC500175,242 5074 29,Admin Buildings,R2401,Water Services
11/01/2023,60073512,2023002241,"1,195.01",Neopost Finance Limited,RC500388,805 6441 40,Reprographics & Post,R4401,Fees and Charges
20/01/2023,60073513,Redacted Personal Data,19,One off Invoice Payments - BACS,RC300802,,Parking,R9313,Fees - Parking
23/01/2023,60073514,17,32.5,Redacted Personal Data,RC301810,,Aiming High,R4401,Fees and Charges
20/01/2023,60073515,35,"1,327.25",JFrostPlayTherapy,RC301930,,SEN Recovery Plan Expenditure,R4400,Professional Fees
23/01/2023,60073516,109/2223,84,Greetham Community Centre,RC505312,,Aiming High,R2201,Room Hire
23/01/2023,60073517,198,120,Sudan Psychology Services,RC302252,,SEN Funding EOTAS & Tuition,R4400,Professional Fees
23/01/2023,60073518,[202] - 2023,10,Rural Museums Network,RC500783,,Museums Service,R4701,Subscriptions
21/01/2023,60073520,Redacted Personal Data,261.8,Super Scientists,RC301671,,Education Otherwise,R4400,Professional Fees
22/01/2023,60073521,04548 - 04549,696.89,The Caring Company Rutland,RC508741,,ASC S&R Homecare OP,R5029,TPP - Home Care
03/01/2023,60073522,10307,"1,365.00",M Bissell Display Ltd,RC302229,371538544,Capital Programme - ITB,C1001,"Vehicle, Plant & Equipment Purchase"
23/01/2023,60073523,12521,30.75,"Inspire Culture, Learning & Libraries (Midlands)",RC302317,232994192,Libraries,R4309,Books
19/01/2023,60073525,132448,157.25,ComCat Services Ltd,RC504058,872 1847 06,The King Centre,R2003,R & M - Emergency Works
18/01/2023,60073527,2201798,"1,546.75",StaffAid Limited,RC300674,246 0481 17,Management of Community Support Services,R1100,Agency Staff
18/01/2023,60073528,2201810,519.88,StaffAid Limited,RC300674,246 0481 17,Management of Community Support Services,R1100,Agency Staff
18/01/2023,60073529,3982816,"1,480.00",Venn Group Limited,RC302061,766 7117 04,Community Care Finance,R1100,Agency Staff
23/01/2023,60073530,7040944,225,Idox Software Ltd,RC506407,766 8008 04,"Training, Confs & Seminars",R4405,Training Charges
23/01/2023,60073531,ARG 01284,"14,242.31",A & R Guardian Services Ltd,RC509277,,ASC S&R Homecare OP,R5029,TPP - Home Care
10/01/2023,60073532,B3604,"1,485.00",Westcotes House Ltd,RC505233,987 7451 53,Homelessness,R4900,Accommodation Costs
23/01/2023,60073534,C/BN261864,840,Civica UK Ltd,RC501070,391 1710 65,Community Care Finance,R1100,Agency Staff
23/01/2023,60073538,Redacted Personal Data,"1,719.46",ICall Care,RC302020,,ASC S&R Homecare OP,R5029,TPP - Home Care
23/01/2023,60073542,Redacted Personal Data,61.07,ICall Care,RC302020,,ASC S&R Homecare OP,R5029,TPP - Home Care
23/01/2023,60073543,Redacted Personal Data,"1,878.99",ICall Care,RC302020,,ASC S&R Homecare PD,R5029,TPP - Home Care
23/01/2023,60073544,Redacted Personal Data,200.24,ICall Care,RC302020,,ASC S&R Homecare OP,R5029,TPP - Home Care
11/01/2023,60073545,RCC Sep - Dec 22,"1,221.00",Uppingham School Sports Centre,RC302147,135562319,Recreation and Leisure,R2201,Room Hire
23/01/2023,60073546,SLS484211,390.32,MG Recycling Limited,RC301398,333 2986 91,Waste Management,R5021,TPP - Waste Disposal
19/01/2023,60073547,UK159064,"1,342.32",Flowbird Smart City UK Ltd,RC301556,GB821077453,Parking,R5017,TPP - Other
19/01/2023,60073548,UK159065,143,Flowbird Smart City UK Ltd,RC301556,GB821077453,Parking,R5017,TPP - Other
23/01/2023,60073549,9c - 23/01/23,25,Kleena Windows,RC501990,,Children's Centres - Revenue,R2700,Contract Cleaning
23/01/2023,60073550,WF01/23/28521,645,WRIGHT Foundation CIC,RC301845,,Recreation and Leisure,R1650,Training Expenses
22/01/2023,60073552,0152010664 - 22/01/23,24.82,Water Plus,RC500879,486 9855 65,Admin Buildings,R2401,Water Services
24/01/2023,60073553,11-191915,"1,035.00",Trowers & Hamlins LLP,RC301985,,Catmose Leisure Contract Procurement,R4400,Professional Fees
24/01/2023,60073554,4647,395,Geo Green Power Limited,RC302285,994365470,Central Maintenance,R2004,R & M - Programmed
01/01/2023,60073555,6291,125,Escalla TS Ltd,RC302138,853747690,"Training, Confs & Seminars",R4405,Training Charges
24/01/2023,60073556,14191,"5,000.00",Phil Jones Associates Ltd,RC302267,811620373,Capability Fund,R4400,Professional Fees
24/01/2023,60073558,99701,99.75,Tranter Fire & Security Systems Ltd,RC501207,566 1983 05,Ashwell Road Business Units,R2004,R & M - Programmed
22/01/2023,60073559,113841,"1,927.72",Macildowie Associates Limited,RC300706,694 2566 96,Finance,R1100,Agency Staff
24/01/2023,60073560,Grant Agreement Phase 2 - Jan 23,"133,672.48",Uppingham Community College,RC501260,111 5329 57,Capital Programme People � Childrens,C1150,Capital Grant Expenditure
22/01/2023,60073561,113842,"1,927.72",Macildowie Associates Limited,RC300706,694 2566 96,Finance,R1100,Agency Staff
22/01/2023,60073562,113843,"1,476.00",Macildowie Associates Limited,RC300706,694 2566 96,Finance,R1100,Agency Staff
20/01/2023,60073563,150090,180,Flow Mech Products Ltd,RC301794,593 4329 17,Central Maintenance,R2004,R & M - Programmed
20/01/2023,60073564,150099,180,Flow Mech Products Ltd,RC301794,593 4329 17,Oakham Enterprise Park Service Chargeable Expenditure,R2004,R & M - Programmed
20/01/2023,60073565,150100,180,Flow Mech Products Ltd,RC301794,593 4329 17,Oakham Enterprise Park Service Chargeable Expenditure,R2004,R & M - Programmed
20/01/2023,60073566,150101,180,Flow Mech Products Ltd,RC301794,593 4329 17,Oakham Enterprise Park Service Chargeable Expenditure,R2004,R & M - Programmed
20/01/2023,60073567,150102,180,Flow Mech Products Ltd,RC301794,593 4329 17,Oakham Enterprise Park Service Chargeable Expenditure,R2004,R & M - Programmed
20/01/2023,60073568,150103,180,Flow Mech Products Ltd,RC301794,593 4329 17,Oakham Enterprise Park Service Chargeable Expenditure,R2004,R & M - Programmed
20/01/2023,60073569,150104,180,Flow Mech Products Ltd,RC301794,593 4329 17,Oakham Enterprise Park Service Chargeable Expenditure,R2004,R & M - Programmed
20/01/2023,60073570,150105,180,Flow Mech Products Ltd,RC301794,593 4329 17,Oakham Enterprise Park Service Chargeable Expenditure,R2004,R & M - Programmed
01/01/2023,60073572,1009370,335.47,Askews and Holts Library Services Ltd,RC505812,153 4009 95,Prison Library Service - Stocken,R4309,Books
23/01/2023,60073573,RCC01/03,650.5,Jeakins Weir Ltd,RC301857,121257116,Central Maintenance,R2003,R & M - Emergency Works
24/01/2023,60073574,Sessions Jan 2023,306,Toddle Talk With Sarah,RC300426,,Children's Centres - Revenue,R4401,Fees and Charges
19/01/2023,60073575,School Admissions - Ranking Service Level 3,-82,North Luffenham C Of E Primary School,RC500422,,Admissions Service,R9109,Contributions - Schools
13/01/2023,60073576,2919,120,Travail Education,RC301380,112 8866 10,Education Otherwise,R4400,Professional Fees
20/01/2023,60073577,NEW4STEABBAHOYLES,507,One off Invoice Payments - BACS,RC300802,,Homelessness,R5017,TPP - Other
22/01/2023,60073579,Modelling for Life Drawing - Jan 23,50,One off Invoice Payments - BACS,RC300802,,Community Learning,R4401,Fees and Charges
19/01/2023,60073580,5033947,38.5,UK Health security Agency,RC300248,888 8516 48,Property Services Rechargeable Works,R2004,R & M - Programmed
24/01/2023,60073582,I676110,65.45,Ulverscroft Large Print Books Ltd,RC501241,620 3102 12,Libraries,R4309,Books
24/01/2023,60073583,INV-015030,175,Safe Kids Walking Ltd t/a Brightkidz and Brand my Thingy,RC500833,834 8147 15,Road Safety and Sustainable Transport,R4000,Furniture & Equipment
01/01/2023,60073584,INV-94318,745,Global Mediation Ltd,RC508789,740 3623 59,SEN Operations,R4400,Professional Fees
26/01/2023,60073588,PI002423,694,Able Training Support Ltd,RC301245,245 7843 77,"Training, Confs & Seminars",R4405,Training Charges
27/01/2023,60073589,PI002424,628,Able Training Support Ltd,RC301245,245 7843 77,"Training, Confs & Seminars",R4405,Training Charges
23/01/2023,60073590,RCC0032,"6,702.36",A&S Rescue Services Limited,RC302095,,ASC S&R Homecare OP,R5029,TPP - Home Care
24/01/2023,60073591,RCC0066,"8,778.81",Midlands Total Care Limited,RC301877,,ASC S&R Homecare OP,R5029,TPP - Home Care
24/01/2023,60073592,INV460250,204,Sellick Partnership Ltd,RC300496,864 2880 95,Legal Services,R1100,Agency Staff
24/01/2023,60073593,Redacted Personal Data,19,One off Invoice Payments - BACS,RC300802,,Parking,R9313,Fees - Parking
23/01/2023,60073594,PH Credit Note - 23.01.23,-610.68,A&S Rescue Services Limited,RC302095,,ASC S&R Homecare OP,R5029,TPP - Home Care
25/01/2023,60073596,240,570,Rutland Gymnastics,RC500798,,Aiming High,R4401,Fees and Charges
25/01/2023,60073597,258.22.23,"2,343.00",Opinion Research Services Limited,RC302174,647 7177 02,Local Plan (Started 2021-22),R4400,Professional Fees
25/01/2023,60073598,1914,600,Summers Tree and Garden Services,RC302309,319282495,Children's Centres - Revenue,R4401,Fees and Charges
01/01/2023,60073599,3939,792.25,Action Deafness Ltd,RC506720,978 8916 31,ASC S&R Homecare PD,R5029,TPP - Home Care
25/01/2023,60073600,5455,170,Leicester LGBT Centre,RC301107,,Early Intervention Youth Services,R4401,Fees and Charges
25/01/2023,60073601,116102,"1,035.45",G2 Recruitment Limited - a division of G2V Recruitment Group Limited,RC300732,182 8193 83,Revenues,R1100,Agency Staff
25/01/2023,60073602,261992,"1,120.00",James Andrews Recruitment Solutions,RC302195,976026696,Housing Options Team,R1100,Agency Staff
25/01/2023,60073603,261993,"1,295.00",James Andrews Recruitment Solutions,RC302195,976026696,Housing Options Team,R1100,Agency Staff
25/01/2023,60073604,1049288,"1,700.00",Precision Resourcing Group Limited,RC301972,214013569,SEN Operations,R1100,Agency Staff
25/01/2023,60073605,6299936,"6,837.96",Thornbury Nursing Services,RC302070,676 285 493,Disabled Children,R4401,Fees and Charges
25/01/2023,60073606,100370,218.93,Tranter Fire & Security Systems Ltd,RC501207,566 1983 05,Oakham Enterprise Park Service Chargeable Expenditure,R2004,R & M - Programmed
25/01/2023,60073607,100371,122.85,Tranter Fire & Security Systems Ltd,RC501207,566 1983 05,Oakham Enterprise Park Service Chargeable Expenditure,R2004,R & M - Programmed
25/01/2023,60073608,100373,290.85,Tranter Fire & Security Systems Ltd,RC501207,566 1983 05,Central Maintenance,R2004,R & M - Programmed
25/01/2023,60073617,100374,119,Tranter Fire & Security Systems Ltd,RC501207,566 1983 05,Central Maintenance,R2004,R & M - Programmed
25/01/2023,60073619,100375,57.75,Tranter Fire & Security Systems Ltd,RC501207,566 1983 05,Central Maintenance,R2004,R & M - Programmed
25/01/2023,60073620,100376,94.5,Tranter Fire & Security Systems Ltd,RC501207,566 1983 05,Central Maintenance,R2004,R & M - Programmed
25/01/2023,60073621,100377,110.25,Tranter Fire & Security Systems Ltd,RC501207,566 1983 05,Central Maintenance,R2004,R & M - Programmed
25/01/2023,60073622,100378,99.75,Tranter Fire & Security Systems Ltd,RC501207,566 1983 05,Property Services Rechargeable Works,R2004,R & M - Programmed
25/01/2023,60073623,100379,131.25,Tranter Fire & Security Systems Ltd,RC501207,566 1983 05,Oakham Enterprise Park Service Chargeable Expenditure,R2004,R & M - Programmed
25/01/2023,60073624,100380,131.25,Tranter Fire & Security Systems Ltd,RC501207,566 1983 05,Oakham Enterprise Park Service Chargeable Expenditure,R2004,R & M - Programmed
25/01/2023,60073625,10951144,"1,470.00",The Oyster Partnership Ltd,RC302167,832961025,Highways Management,R1100,Agency Staff
10/01/2023,60073628,B3611,"1,705.00",Westcotes House Ltd,RC505233,987 7451 53,Homelessness,R4900,Accommodation Costs
25/01/2023,60073629,B3614,"1,705.00",Westcotes House Ltd,RC505233,987 7451 53,Homelessness,R4900,Accommodation Costs
25/01/2023,60073630,MTGI00173273,"1,600.00",Matchtech,RC301148,991 2571 00,Highways Management,R1100,Agency Staff
25/01/2023,60073631,MTGI00173274,"1,739.00",Matchtech,RC301148,991 2571 00,Highways Management,R1100,Agency Staff
25/01/2023,60073632,MTGI00173275,"1,188.00",Matchtech,RC301148,991 2571 00,Highways Management,R1100,Agency Staff
25/01/2023,60073633,3274,950.17,The Melton Learning Hub,RC507309,,Post 16 Transport,R3207,Transport Contract
25/01/2023,60073634,3294,142.5,The Melton Learning Hub,RC507309,,Education Otherwise,R4401,Fees and Charges
23/01/2023,60073636,B3616,"2,015.00",Westcotes House Ltd,RC505233,987 7451 53,Homes for Ukraine,R4900,Accommodation Costs
18/01/2023,60073637,Redacted Personal Data,287.22,ICall Care,RC302020,,ASC S&R Homecare OP,R5028,TPP - Residental Care
25/01/2023,60073639,Redacted Personal Data,19,One off Invoice Payments - BACS,RC300802,,Parking,R9313,Fees - Parking
25/01/2023,60073640,Redacted Personal Data,19,One off Invoice Payments - BACS,RC300802,,Parking,R9313,Fees - Parking
26/01/2023,60073643,Redacted Personal Data,529,Super Scientists,RC301671,,Education Otherwise,R4400,Professional Fees
26/01/2023,60073644,Redacted Personal Data,"1,024.00",Super Scientists,RC301671,,Education Otherwise,R4400,Professional Fees
26/01/2023,60073645,Redacted Personal Data,768,Super Scientists,RC301671,,SEN Funding EOTAS & Tuition,R4400,Professional Fees
26/01/2023,60073646,Redacted Personal Data,895.35,Super Scientists,RC301671,,SEN Funding EOTAS & Tuition,R4400,Professional Fees
26/01/2023,60073647,Redacted Personal Data,737.2,Super Scientists,RC301671,,Education Otherwise,R4400,Professional Fees
26/01/2023,60073648,Redacted Personal Data,640,Super Scientists,RC301671,,Education Otherwise,R4400,Professional Fees
26/01/2023,60073649,Redacted Personal Data,"2,960.00",Super Scientists,RC301671,,SEN Funding EOTAS & Tuition,R4400,Professional Fees
26/01/2023,60073650,Redacted Personal Data,"1,280.00",Super Scientists,RC301671,,Education Otherwise,R4400,Professional Fees
26/01/2023,60073651,559,240,Gail Justice Drama Therapist,RC302019,,SEN Funding Other,R5017,TPP - Other
03/01/2023,60073653,807,"1,641.20",Platform Up Ltd,RC301916,274231711,UASC 16-17,R6293,Asylum Seekers Allowance
10/01/2023,60073654,808,"1,641.20",Platform Up Ltd,RC301916,274231711,UASC 16-17,R6293,Asylum Seekers Allowance
17/01/2023,60073655,809,"1,641.20",Platform Up Ltd,RC301916,274231711,UASC 16-17,R6293,Asylum Seekers Allowance
24/01/2023,60073656,810,"1,641.20",Platform Up Ltd,RC301916,274231711,UASC 16-17,R6293,Asylum Seekers Allowance
03/01/2023,60073658,812,"1,893.20",Platform Up Ltd,RC301916,274231711,UASC 16-17,R6293,Asylum Seekers Allowance
10/01/2023,60073659,813,"1,893.20",Platform Up Ltd,RC301916,274231711,UASC 16-17,R6293,Asylum Seekers Allowance
17/01/2023,60073660,814,"1,893.20",Platform Up Ltd,RC301916,274231711,UASC 16-17,R6293,Asylum Seekers Allowance
24/01/2023,60073661,815,"1,893.20",Platform Up Ltd,RC301916,274231711,UASC 16-17,R6293,Asylum Seekers Allowance
20/01/2023,60073662,2939,120,Travail Education,RC301380,112 8866 10,Education Otherwise,R4400,Professional Fees
20/01/2023,60073663,2942,120,Travail Education,RC301380,112 8866 10,Education Otherwise,R4400,Professional Fees
20/01/2023,60073664,2943,120,Travail Education,RC301380,112 8866 10,Education Otherwise,R4400,Professional Fees
20/01/2023,60073665,2944,120,Travail Education,RC301380,112 8866 10,Education Otherwise,R4400,Professional Fees
20/01/2023,60073666,2945,160,Travail Education,RC301380,112 8866 10,Education Otherwise,R4400,Professional Fees
24/01/2023,60073667,28750,125.25,Word Language Services Limited,RC300901,243 5458 05,Children Looked After,R4400,Professional Fees
24/01/2023,60073668,28752,121.5,Word Language Services Limited,RC300901,243 5458 05,Early Intervention Youth Services,R4400,Professional Fees
25/01/2023,60073669,2201815,"2,504.88",StaffAid Limited,RC300674,246 0481 17,Management of Community Support Services,R1100,Agency Staff
26/01/2023,60073670,I0102818,"12,685.39",Midlands Partnership NHS FT,RC508170,654441580,Sexual Health,R5017,TPP - Other
20/01/2023,60073673,INV-27286,60,Locate Accommodation Ltd,RC301793,737619993,Unaccompanied Asylum Seekers - Over 18,R6292,Section 24 Payments
01/01/2023,60073674,855077698,95,Nottingham City Council,RC502105,118 0454 92,Human Resources,R4400,Professional Fees
20/01/2023,60073675,INV-27287,120,Locate Accommodation Ltd,RC301793,737619993,Unaccompanied Asylum Seekers - Over 18,R6292,Section 24 Payments
01/01/2023,60073676,333,"3,000.00",Brooke Hill Academy Trust Ltd,RC501837,,Early Years Training,R4405,Training Charges
